Workbook

Sheet 使用手册
B1: 此表使用手册（已更新）
B3: 信誉提升汇总记录表 | C3: 此表用于记录信誉提升的资料，不论是信誉提升作为的资金结算，还是作为后续问题联系相关人员的凭证，都是很方便的。
B6: 螺旋计划款信誉提升明细表 | C6: 此表只需填写需要加入螺旋计划的新品货号，即可自动生成，此表的数据均从“信誉提升汇总表”筛选而来，如果这张表中无数据，则无法生成。
C7: 此表只是从“信誉提升汇总表”中，导出填写的螺旋计划款的相关信誉提升记录，并且作为“螺旋计划款操作总表”计算当前转换率，完成率等的依据。
B9: 螺旋计划款操作总表 | C9: 此表是根据新品21天的权重，配合销量的有规律提升，打造新品爆款，保证搜索流量的来源。
C10: 如想打造某款新品，需在“螺旋计划款信誉提升明细表”中，填写对应的货号，即可自动生成此表。
C11: 此表中均采用公式计算，且，均经过测试数据测试，保证公式无误，切勿随意更改表格位置。
C12: 表中字段，均有批注，实时统计，实时计算，方便实操者把握时机。
B14: 螺旋计划款操作效果图表 | C14: 此表根据“螺旋计划款操作总表”的数据，自动生成对应的图表，方便操作者一目了然的观看。
B17: 注：更多使用功能，请看表内测试数据，推广必备。
B18: 转发请注明出处-派代：无语泪，微信：polantao8

Sheet 信誉提升汇总记录表
A1: 店铺名-信誉提升记录
A2: 货号 | B2: 刷单日期 | C2: 刷单关键词 | D2: 进店方式 | E2: 购买件数 | F2: 刷单金额 | G2: 支付方式 | H2: 有无佣金 | I2: 是否结算 | J2: 刷单人旺旺ID | K2: 来源 | L2: 联系方式 | M2: 备注
A3: 测试货号1-拼接撞色连衣裙 | B3: 2014-07-22 | D3: 直接进店 | E3: 1 | F3: 76 | G3: 垫付 | H3: 无 | I3: 已结算 | J3: 旺旺2014001 | K3: QQ好友 | L3: QQ:123456789
A4: 测试货号1-拼接撞色连衣裙 | B4: 2014-07-22 | C4: 拼接撞色连衣裙 | D4: 搜索进店 | E4: 1 | F4: 76 | G4: 垫付 | H4: 无 | I4: 已结算 | J4: 旺旺2014002 | K4: QQ群 | L4: QQ:123456789
A5: 测试货号2-波西米亚长裙 | B5: 2014-07-23 | C5: 波西米亚长裙 | D5: 搜索进店 | E5: 1 | F5: 98 | G5: 垫付 | H5: 无 | I5: 已结算 | J5: 旺旺2014003 | K5: QT频道 | L5: QQ:123456789
A6: 测试货号1-拼接撞色连衣裙 | B6: 2014-07-23 | C6: 拼接撞色连衣裙 | D6: 搜索进店 | E6: 1 | F6: 72 | G6: 垫付 | H6: 无 | I6: 已结算 | J6: 旺旺2014004 | K6: QQ好友 | L6: QQ:123456789
A7: 测试货号1-拼接撞色连衣裙 | B7: 2014-07-23 | C7: 拼接撞色连衣裙 | D7: 搜索进店 | E7: 2 | F7: 152 | G7: 转账 | H7: 无 | I7: 已结算 | J7: 旺旺2014005 | K7: YY频道 | L7: QQ:123456789
A8: 测试货号2-波西米亚长裙 | B8: 2014-07-24 | C8: 波西米亚长裙 | D8: 搜索进店 | E8: 1 | F8: 98 | G8: 垫付 | H8: 无 | I8: 已结算 | J8: 旺旺2014006 | K8: QQ好友 | L8: QQ:123456789
A9: 测试货号3-田园小清新连衣裙 | B9: 2014-07-24 | C9: 田园小清新连衣裙 | D9: 搜索进店 | E9: 1 | F9: 78 | G9: 垫付 | H9: 无 | I9: 已结算 | J9: 旺旺2014007 | K9: YY频道 | L9: QQ:123456789
A10: 测试货号1-拼接撞色连衣裙 | B10: 2014-07-24 | C10: 拼接撞色连衣裙 | D10: 搜索进店 | E10: 1 | F10: 76 | G10: 垫付 | H10: 无 | I10: 已结算 | J10: 旺旺2014008 | K10: YY频道 | L10: QQ:123456789
A11: 测试货号1-拼接撞色连衣裙 | B11: 2014-07-24 | C11: 拼接撞色连衣裙 | D11: 搜索进店 | E11: 1 | F11: 76 | G11: 垫付 | H11: 无 | I11: 已结算 | J11: 旺旺2014009 | K11: QT频道 | L11: QQ:123456789

Sheet 螺旋计划款信誉提升明细表
A1: 单个宝贝信誉提升记录明细
A2: 输入需要进入螺旋计划的货号，便可自动生成这张表（货号需与信誉提升记录名单中货号相同，且存在记录） | C2: 测试货号1-拼接撞色连衣裙
A3: 刷单日期 | B3: 货号 | C3: 刷单关键词 | D3: 进店方式 | E3: 购买件数 | F3: 刷单人旺旺ID | G3: 来源 | H3: 备注
A4: =IF(B4="","",INDEX(信誉提升汇总记录表!B:B,SMALL(IF(信誉提升汇总记录表!$A:$A=$C$2,ROW($B:$B),36500),ROW(A1)))) -> 2014-07-22 | B4: =INDEX(信誉提升汇总记录表!A:A,SMALL(IF(信誉提升汇总记录表!$A:$A=$C$2,ROW($B:$B),36500),ROW(B1)))&"" -> 测试货号1-拼接撞色连衣裙 | C4: =INDEX(信誉提升汇总记录表!C:C,SMALL(IF(信誉提升汇总记录表!$A:$A=$C$2,ROW($B:$B),36500),ROW(C1)))&"" ->  | D4: =INDEX(信誉提升汇总记录表!D:D,SMALL(IF(信誉提升汇总记录表!$A:$A=$C$2,ROW($B:$B),36500),ROW(D1)))&"" -> 直接进店 | E4: =IF(ISERROR(VALUE(INDEX(信誉提升汇总记录表!E:E,SMALL(IF(信誉提升汇总记录表!$A:$A=$C$2,ROW($B:$B),36500),ROW(E1)))&"")),"",VALUE(INDEX(信誉提升汇总记录表!E:E,SMALL(IF(信誉提升汇总记录表!$A:$A=$C$2,ROW($B:$B),36500),ROW(E1)))&"")) -> 1 | F4: =INDEX(信誉提升汇总记录表!J:J,SMALL(IF(信誉提升汇总记录表!$A:$A=$C$2,ROW($B:$B),36500),ROW(F1)))&"" -> 旺旺2014001 | G4: =INDEX(信誉提升汇总记录表!K:K,SMALL(IF(信誉提升汇总记录表!$A:$A=$C$2,ROW($B:$B),36500),ROW(G1)))&"" -> QQ好友 | H4: =INDEX(信誉提升汇总记录表!M:M,SMALL(IF(信誉提升汇总记录表!$A:$A=$C$2,ROW($B:$B),36500),ROW(H1)))&"" -> 
A5: =IF(B5="","",INDEX(信誉提升汇总记录表!B:B,SMALL(IF(信誉提升汇总记录表!$A:$A=$C$2,ROW($B:$B),36500),ROW(A2)))) -> 2014-07-22 | B5: =INDEX(信誉提升汇总记录表!A:A,SMALL(IF(信誉提升汇总记录表!$A:$A=$C$2,ROW($B:$B),36500),ROW(B2)))&"" -> 测试货号1-拼接撞色连衣裙 | C5: =INDEX(信誉提升汇总记录表!C:C,SMALL(IF(信誉提升汇总记录表!$A:$A=$C$2,ROW($B:$B),36500),ROW(C2)))&"" -> 拼接撞色连衣裙 | D5: =INDEX(信誉提升汇总记录表!D:D,SMALL(IF(信誉提升汇总记录表!$A:$A=$C$2,ROW($B:$B),36500),ROW(D2)))&"" -> 搜索进店 | E5: =IF(ISERROR(VALUE(INDEX(信誉提升汇总记录表!E:E,SMALL(IF(信誉提升汇总记录表!$A:$A=$C$2,ROW($B:$B),36500),ROW(E2)))&"")),"",VALUE(INDEX(信誉提升汇总记录表!E:E,SMALL(IF(信誉提升汇总记录表!$A:$A=$C$2,ROW($B:$B),36500),ROW(E2)))&"")) -> 1 | F5: =INDEX(信誉提升汇总记录表!J:J,SMALL(IF(信誉提升汇总记录表!$A:$A=$C$2,ROW($B:$B),36500),ROW(F2)))&"" -> 旺旺2014002 | G5: =INDEX(信誉提升汇总记录表!K:K,SMALL(IF(信誉提升汇总记录表!$A:$A=$C$2,ROW($B:$B),36500),ROW(G2)))&"" -> QQ群 | H5: =INDEX(信誉提升汇总记录表!M:M,SMALL(IF(信誉提升汇总记录表!$A:$A=$C$2,ROW($B:$B),36500),ROW(H2)))&"" -> 
A6: =IF(B6="","",INDEX(信誉提升汇总记录表!B:B,SMALL(IF(信誉提升汇总记录表!$A:$A=$C$2,ROW($B:$B),36500),ROW(A3)))) -> 2014-07-23 | B6: =INDEX(信誉提升汇总记录表!A:A,SMALL(IF(信誉提升汇总记录表!$A:$A=$C$2,ROW($B:$B),36500),ROW(B3)))&"" -> 测试货号1-拼接撞色连衣裙 | C6: =INDEX(信誉提升汇总记录表!C:C,SMALL(IF(信誉提升汇总记录表!$A:$A=$C$2,ROW($B:$B),36500),ROW(C3)))&"" -> 拼接撞色连衣裙 | D6: =INDEX(信誉提升汇总记录表!D:D,SMALL(IF(信誉提升汇总记录表!$A:$A=$C$2,ROW($B:$B),36500),ROW(D3)))&"" -> 搜索进店 | E6: =IF(ISERROR(VALUE(INDEX(信誉提升汇总记录表!E:E,SMALL(IF(信誉提升汇总记录表!$A:$A=$C$2,ROW($B:$B),36500),ROW(E3)))&"")),"",VALUE(INDEX(信誉提升汇总记录表!E:E,SMALL(IF(信誉提升汇总记录表!$A:$A=$C$2,ROW($B:$B),36500),ROW(E3)))&"")) -> 1 | F6: =INDEX(信誉提升汇总记录表!J:J,SMALL(IF(信誉提升汇总记录表!$A:$A=$C$2,ROW($B:$B),36500),ROW(F3)))&"" -> 旺旺2014004 | G6: =INDEX(信誉提升汇总记录表!K:K,SMALL(IF(信誉提升汇总记录表!$A:$A=$C$2,ROW($B:$B),36500),ROW(G3)))&"" -> QQ好友 | H6: =INDEX(信誉提升汇总记录表!M:M,SMALL(IF(信誉提升汇总记录表!$A:$A=$C$2,ROW($B:$B),36500),ROW(H3)))&"" -> 
A7: =IF(B7="","",INDEX(信誉提升汇总记录表!B:B,SMALL(IF(信誉提升汇总记录表!$A:$A=$C$2,ROW($B:$B),36500),ROW(A4)))) -> 2014-07-23 | B7: =INDEX(信誉提升汇总记录表!A:A,SMALL(IF(信誉提升汇总记录表!$A:$A=$C$2,ROW($B:$B),36500),ROW(B4)))&"" -> 测试货号1-拼接撞色连衣裙 | C7: =INDEX(信誉提升汇总记录表!C:C,SMALL(IF(信誉提升汇总记录表!$A:$A=$C$2,ROW($B:$B),36500),ROW(C4)))&"" -> 拼接撞色连衣裙 | D7: =INDEX(信誉提升汇总记录表!D:D,SMALL(IF(信誉提升汇总记录表!$A:$A=$C$2,ROW($B:$B),36500),ROW(D4)))&"" -> 搜索进店 | E7: =IF(ISERROR(VALUE(INDEX(信誉提升汇总记录表!E:E,SMALL(IF(信誉提升汇总记录表!$A:$A=$C$2,ROW($B:$B),36500),ROW(E4)))&"")),"",VALUE(INDEX(信誉提升汇总记录表!E:E,SMALL(IF(信誉提升汇总记录表!$A:$A=$C$2,ROW($B:$B),36500),ROW(E4)))&"")) -> 2 | F7: =INDEX(信誉提升汇总记录表!J:J,SMALL(IF(信誉提升汇总记录表!$A:$A=$C$2,ROW($B:$B),36500),ROW(F4)))&"" -> 旺旺2014005 | G7: =INDEX(信誉提升汇总记录表!K:K,SMALL(IF(信誉提升汇总记录表!$A:$A=$C$2,ROW($B:$B),36500),ROW(G4)))&"" -> YY频道 | H7: =INDEX(信誉提升汇总记录表!M:M,SMALL(IF(信誉提升汇总记录表!$A:$A=$C$2,ROW($B:$B),36500),ROW(H4)))&"" -> 
A8: =IF(B8="","",INDEX(信誉提升汇总记录表!B:B,SMALL(IF(信誉提升汇总记录表!$A:$A=$C$2,ROW($B:$B),36500),ROW(A5)))) -> 2014-07-24 | B8: =INDEX(信誉提升汇总记录表!A:A,SMALL(IF(信誉提升汇总记录表!$A:$A=$C$2,ROW($B:$B),36500),ROW(B5)))&"" -> 测试货号1-拼接撞色连衣裙 | C8: =INDEX(信誉提升汇总记录表!C:C,SMALL(IF(信誉提升汇总记录表!$A:$A=$C$2,ROW($B:$B),36500),ROW(C5)))&"" -> 拼接撞色连衣裙 | D8: =INDEX(信誉提升汇总记录表!D:D,SMALL(IF(信誉提升汇总记录表!$A:$A=$C$2,ROW($B:$B),36500),ROW(D5)))&"" -> 搜索进店 | E8: =IF(ISERROR(VALUE(INDEX(信誉提升汇总记录表!E:E,SMALL(IF(信誉提升汇总记录表!$A:$A=$C$2,ROW($B:$B),36500),ROW(E5)))&"")),"",VALUE(INDEX(信誉提升汇总记录表!E:E,SMALL(IF(信誉提升汇总记录表!$A:$A=$C$2,ROW($B:$B),36500),ROW(E5)))&"")) -> 1 | F8: =INDEX(信誉提升汇总记录表!J:J,SMALL(IF(信誉提升汇总记录表!$A:$A=$C$2,ROW($B:$B),36500),ROW(F5)))&"" -> 旺旺2014008 | G8: =INDEX(信誉提升汇总记录表!K:K,SMALL(IF(信誉提升汇总记录表!$A:$A=$C$2,ROW($B:$B),36500),ROW(G5)))&"" -> YY频道 | H8: =INDEX(信誉提升汇总记录表!M:M,SMALL(IF(信誉提升汇总记录表!$A:$A=$C$2,ROW($B:$B),36500),ROW(H5)))&"" -> 
A9: =IF(B9="","",INDEX(信誉提升汇总记录表!B:B,SMALL(IF(信誉提升汇总记录表!$A:$A=$C$2,ROW($B:$B),36500),ROW(A6)))) -> 2014-07-24 | B9: =INDEX(信誉提升汇总记录表!A:A,SMALL(IF(信誉提升汇总记录表!$A:$A=$C$2,ROW($B:$B),36500),ROW(B6)))&"" -> 测试货号1-拼接撞色连衣裙 | C9: =INDEX(信誉提升汇总记录表!C:C,SMALL(IF(信誉提升汇总记录表!$A:$A=$C$2,ROW($B:$B),36500),ROW(C6)))&"" -> 拼接撞色连衣裙 | D9: =INDEX(信誉提升汇总记录表!D:D,SMALL(IF(信誉提升汇总记录表!$A:$A=$C$2,ROW($B:$B),36500),ROW(D6)))&"" -> 搜索进店 | E9: =IF(ISERROR(VALUE(INDEX(信誉提升汇总记录表!E:E,SMALL(IF(信誉提升汇总记录表!$A:$A=$C$2,ROW($B:$B),36500),ROW(E6)))&"")),"",VALUE(INDEX(信誉提升汇总记录表!E:E,SMALL(IF(信誉提升汇总记录表!$A:$A=$C$2,ROW($B:$B),36500),ROW(E6)))&"")) -> 1 | F9: =INDEX(信誉提升汇总记录表!J:J,SMALL(IF(信誉提升汇总记录表!$A:$A=$C$2,ROW($B:$B),36500),ROW(F6)))&"" -> 旺旺2014009 | G9: =INDEX(信誉提升汇总记录表!K:K,SMALL(IF(信誉提升汇总记录表!$A:$A=$C$2,ROW($B:$B),36500),ROW(G6)))&"" -> QT频道 | H9: =INDEX(信誉提升汇总记录表!M:M,SMALL(IF(信誉提升汇总记录表!$A:$A=$C$2,ROW($B:$B),36500),ROW(H6)))&"" -> 
A10: =IF(B10="","",INDEX(信誉提升汇总记录表!B:B,SMALL(IF(信誉提升汇总记录表!$A:$A=$C$2,ROW($B:$B),36500),ROW(A7)))) ->  | B10: =INDEX(信誉提升汇总记录表!A:A,SMALL(IF(信誉提升汇总记录表!$A:$A=$C$2,ROW($B:$B),36500),ROW(B7)))&"" ->  | C10: =INDEX(信誉提升汇总记录表!C:C,SMALL(IF(信誉提升汇总记录表!$A:$A=$C$2,ROW($B:$B),36500),ROW(C7)))&"" ->  | D10: =INDEX(信誉提升汇总记录表!D:D,SMALL(IF(信誉提升汇总记录表!$A:$A=$C$2,ROW($B:$B),36500),ROW(D7)))&"" ->  | E10: =IF(ISERROR(VALUE(INDEX(信誉提升汇总记录表!E:E,SMALL(IF(信誉提升汇总记录表!$A:$A=$C$2,ROW($B:$B),36500),ROW(E7)))&"")),"",VALUE(INDEX(信誉提升汇总记录表!E:E,SMALL(IF(信誉提升汇总记录表!$A:$A=$C$2,ROW($B:$B),36500),ROW(E7)))&"")) ->  | F10: =INDEX(信誉提升汇总记录表!J:J,SMALL(IF(信誉提升汇总记录表!$A:$A=$C$2,ROW($B:$B),36500),ROW(F7)))&"" ->  | G10: =INDEX(信誉提升汇总记录表!K:K,SMALL(IF(信誉提升汇总记录表!$A:$A=$C$2,ROW($B:$B),36500),ROW(G7)))&"" ->  | H10: =INDEX(信誉提升汇总记录表!M:M,SMALL(IF(信誉提升汇总记录表!$A:$A=$C$2,ROW($B:$B),36500),ROW(H7)))&"" -> 
A11: =IF(B11="","",INDEX(信誉提升汇总记录表!B:B,SMALL(IF(信誉提升汇总记录表!$A:$A=$C$2,ROW($B:$B),36500),ROW(A8)))) ->  | B11: =INDEX(信誉提升汇总记录表!A:A,SMALL(IF(信誉提升汇总记录表!$A:$A=$C$2,ROW($B:$B),36500),ROW(B8)))&"" ->  | C11: =INDEX(信誉提升汇总记录表!C:C,SMALL(IF(信誉提升汇总记录表!$A:$A=$C$2,ROW($B:$B),36500),ROW(C8)))&"" ->  | D11: =INDEX(信誉提升汇总记录表!D:D,SMALL(IF(信誉提升汇总记录表!$A:$A=$C$2,ROW($B:$B),36500),ROW(D8)))&"" ->  | E11: =IF(ISERROR(VALUE(INDEX(信誉提升汇总记录表!E:E,SMALL(IF(信誉提升汇总记录表!$A:$A=$C$2,ROW($B:$B),36500),ROW(E8)))&"")),"",VALUE(INDEX(信誉提升汇总记录表!E:E,SMALL(IF(信誉提升汇总记录表!$A:$A=$C$2,ROW($B:$B),36500),ROW(E8)))&"")) ->  | F11: =INDEX(信誉提升汇总记录表!J:J,SMALL(IF(信誉提升汇总记录表!$A:$A=$C$2,ROW($B:$B),36500),ROW(F8)))&"" ->  | G11: =INDEX(信誉提升汇总记录表!K:K,SMALL(IF(信誉提升汇总记录表!$A:$A=$C$2,ROW($B:$B),36500),ROW(G8)))&"" ->  | H11: =INDEX(信誉提升汇总记录表!M:M,SMALL(IF(信誉提升汇总记录表!$A:$A=$C$2,ROW($B:$B),36500),ROW(H8)))&"" -> 
A12: =IF(B12="","",INDEX(信誉提升汇总记录表!B:B,SMALL(IF(信誉提升汇总记录表!$A:$A=$C$2,ROW($B:$B),36500),ROW(A9)))) ->  | B12: =INDEX(信誉提升汇总记录表!A:A,SMALL(IF(信誉提升汇总记录表!$A:$A=$C$2,ROW($B:$B),36500),ROW(B9)))&"" ->  | C12: =INDEX(信誉提升汇总记录表!C:C,SMALL(IF(信誉提升汇总记录表!$A:$A=$C$2,ROW($B:$B),36500),ROW(C9)))&"" ->  | D12: =INDEX(信誉提升汇总记录表!D:D,SMALL(IF(信誉提升汇总记录表!$A:$A=$C$2,ROW($B:$B),36500),ROW(D9)))&"" ->  | E12: =IF(ISERROR(VALUE(INDEX(信誉提升汇总记录表!E:E,SMALL(IF(信誉提升汇总记录表!$A:$A=$C$2,ROW($B:$B),36500),ROW(E9)))&"")),"",VALUE(INDEX(信誉提升汇总记录表!E:E,SMALL(IF(信誉提升汇总记录表!$A:$A=$C$2,ROW($B:$B),36500),ROW(E9)))&"")) ->  | F12: =INDEX(信誉提升汇总记录表!J:J,SMALL(IF(信誉提升汇总记录表!$A:$A=$C$2,ROW($B:$B),36500),ROW(F9)))&"" ->  | G12: =INDEX(信誉提升汇总记录表!K:K,SMALL(IF(信誉提升汇总记录表!$A:$A=$C$2,ROW($B:$B),36500),ROW(G9)))&"" ->  | H12: =INDEX(信誉提升汇总记录表!M:M,SMALL(IF(信誉提升汇总记录表!$A:$A=$C$2,ROW($B:$B),36500),ROW(H9)))&"" -> 
A13: =IF(B13="","",INDEX(信誉提升汇总记录表!B:B,SMALL(IF(信誉提升汇总记录表!$A:$A=$C$2,ROW($B:$B),36500),ROW(A10)))) ->  | B13: =INDEX(信誉提升汇总记录表!A:A,SMALL(IF(信誉提升汇总记录表!$A:$A=$C$2,ROW($B:$B),36500),ROW(B10)))&"" ->  | C13: =INDEX(信誉提升汇总记录表!C:C,SMALL(IF(信誉提升汇总记录表!$A:$A=$C$2,ROW($B:$B),36500),ROW(C10)))&"" ->  | D13: =INDEX(信誉提升汇总记录表!D:D,SMALL(IF(信誉提升汇总记录表!$A:$A=$C$2,ROW($B:$B),36500),ROW(D10)))&"" ->  | E13: =IF(ISERROR(VALUE(INDEX(信誉提升汇总记录表!E:E,SMALL(IF(信誉提升汇总记录表!$A:$A=$C$2,ROW($B:$B),36500),ROW(E10)))&"")),"",VALUE(INDEX(信誉提升汇总记录表!E:E,SMALL(IF(信誉提升汇总记录表!$A:$A=$C$2,ROW($B:$B),36500),ROW(E10)))&"")) ->  | F13: =INDEX(信誉提升汇总记录表!J:J,SMALL(IF(信誉提升汇总记录表!$A:$A=$C$2,ROW($B:$B),36500),ROW(F10)))&"" ->  | G13: =INDEX(信誉提升汇总记录表!K:K,SMALL(IF(信誉提升汇总记录表!$A:$A=$C$2,ROW($B:$B),36500),ROW(G10)))&"" ->  | H13: =INDEX(信誉提升汇总记录表!M:M,SMALL(IF(信誉提升汇总记录表!$A:$A=$C$2,ROW($B:$B),36500),ROW(H10)))&"" -> 
A14: =IF(B14="","",INDEX(信誉提升汇总记录表!B:B,SMALL(IF(信誉提升汇总记录表!$A:$A=$C$2,ROW($B:$B),36500),ROW(A11)))) ->  | B14: =INDEX(信誉提升汇总记录表!A:A,SMALL(IF(信誉提升汇总记录表!$A:$A=$C$2,ROW($B:$B),36500),ROW(B11)))&"" ->  | C14: =INDEX(信誉提升汇总记录表!C:C,SMALL(IF(信誉提升汇总记录表!$A:$A=$C$2,ROW($B:$B),36500),ROW(C11)))&"" ->  | D14: =INDEX(信誉提升汇总记录表!D:D,SMALL(IF(信誉提升汇总记录表!$A:$A=$C$2,ROW($B:$B),36500),ROW(D11)))&"" ->  | E14: =IF(ISERROR(VALUE(INDEX(信誉提升汇总记录表!E:E,SMALL(IF(信誉提升汇总记录表!$A:$A=$C$2,ROW($B:$B),36500),ROW(E11)))&"")),"",VALUE(INDEX(信誉提升汇总记录表!E:E,SMALL(IF(信誉提升汇总记录表!$A:$A=$C$2,ROW($B:$B),36500),ROW(E11)))&"")) ->  | F14: =INDEX(信誉提升汇总记录表!J:J,SMALL(IF(信誉提升汇总记录表!$A:$A=$C$2,ROW($B:$B),36500),ROW(F11)))&"" ->  | G14: =INDEX(信誉提升汇总记录表!K:K,SMALL(IF(信誉提升汇总记录表!$A:$A=$C$2,ROW($B:$B),36500),ROW(G11)))&"" ->  | H14: =INDEX(信誉提升汇总记录表!M:M,SMALL(IF(信誉提升汇总记录表!$A:$A=$C$2,ROW($B:$B),36500),ROW(H11)))&"" -> 
A15: =IF(B15="","",INDEX(信誉提升汇总记录表!B:B,SMALL(IF(信誉提升汇总记录表!$A:$A=$C$2,ROW($B:$B),36500),ROW(A12)))) ->  | B15: =INDEX(信誉提升汇总记录表!A:A,SMALL(IF(信誉提升汇总记录表!$A:$A=$C$2,ROW($B:$B),36500),ROW(B12)))&"" ->  | C15: =INDEX(信誉提升汇总记录表!C:C,SMALL(IF(信誉提升汇总记录表!$A:$A=$C$2,ROW($B:$B),36500),ROW(C12)))&"" ->  | D15: =INDEX(信誉提升汇总记录表!D:D,SMALL(IF(信誉提升汇总记录表!$A:$A=$C$2,ROW($B:$B),36500),ROW(D12)))&"" ->  | E15: =IF(ISERROR(VALUE(INDEX(信誉提升汇总记录表!E:E,SMALL(IF(信誉提升汇总记录表!$A:$A=$C$2,ROW($B:$B),36500),ROW(E12)))&"")),"",VALUE(INDEX(信誉提升汇总记录表!E:E,SMALL(IF(信誉提升汇总记录表!$A:$A=$C$2,ROW($B:$B),36500),ROW(E12)))&"")) ->  | F15: =INDEX(信誉提升汇总记录表!J:J,SMALL(IF(信誉提升汇总记录表!$A:$A=$C$2,ROW($B:$B),36500),ROW(F12)))&"" ->  | G15: =INDEX(信誉提升汇总记录表!K:K,SMALL(IF(信誉提升汇总记录表!$A:$A=$C$2,ROW($B:$B),36500),ROW(G12)))&"" ->  | H15: =INDEX(信誉提升汇总记录表!M:M,SMALL(IF(信誉提升汇总记录表!$A:$A=$C$2,ROW($B:$B),36500),ROW(H12)))&"" -> 
A16: =IF(B16="","",INDEX(信誉提升汇总记录表!B:B,SMALL(IF(信誉提升汇总记录表!$A:$A=$C$2,ROW($B:$B),36500),ROW(A13)))) ->  | B16: =INDEX(信誉提升汇总记录表!A:A,SMALL(IF(信誉提升汇总记录表!$A:$A=$C$2,ROW($B:$B),36500),ROW(B13)))&"" ->  | C16: =INDEX(信誉提升汇总记录表!C:C,SMALL(IF(信誉提升汇总记录表!$A:$A=$C$2,ROW($B:$B),36500),ROW(C13)))&"" ->  | D16: =INDEX(信誉提升汇总记录表!D:D,SMALL(IF(信誉提升汇总记录表!$A:$A=$C$2,ROW($B:$B),36500),ROW(D13)))&"" ->  | E16: =IF(ISERROR(VALUE(INDEX(信誉提升汇总记录表!E:E,SMALL(IF(信誉提升汇总记录表!$A:$A=$C$2,ROW($B:$B),36500),ROW(E13)))&"")),"",VALUE(INDEX(信誉提升汇总记录表!E:E,SMALL(IF(信誉提升汇总记录表!$A:$A=$C$2,ROW($B:$B),36500),ROW(E13)))&"")) ->  | F16: =INDEX(信誉提升汇总记录表!J:J,SMALL(IF(信誉提升汇总记录表!$A:$A=$C$2,ROW($B:$B),36500),ROW(F13)))&"" ->  | G16: =INDEX(信誉提升汇总记录表!K:K,SMALL(IF(信誉提升汇总记录表!$A:$A=$C$2,ROW($B:$B),36500),ROW(G13)))&"" ->  | H16: =INDEX(信誉提升汇总记录表!M:M,SMALL(IF(信誉提升汇总记录表!$A:$A=$C$2,ROW($B:$B),36500),ROW(H13)))&"" -> 
A17: =IF(B17="","",INDEX(信誉提升汇总记录表!B:B,SMALL(IF(信誉提升汇总记录表!$A:$A=$C$2,ROW($B:$B),36500),ROW(A14)))) ->  | B17: =INDEX(信誉提升汇总记录表!A:A,SMALL(IF(信誉提升汇总记录表!$A:$A=$C$2,ROW($B:$B),36500),ROW(B14)))&"" ->  | C17: =INDEX(信誉提升汇总记录表!C:C,SMALL(IF(信誉提升汇总记录表!$A:$A=$C$2,ROW($B:$B),36500),ROW(C14)))&"" ->  | D17: =INDEX(信誉提升汇总记录表!D:D,SMALL(IF(信誉提升汇总记录表!$A:$A=$C$2,ROW($B:$B),36500),ROW(D14)))&"" ->  | E17: =IF(ISERROR(VALUE(INDEX(信誉提升汇总记录表!E:E,SMALL(IF(信誉提升汇总记录表!$A:$A=$C$2,ROW($B:$B),36500),ROW(E14)))&"")),"",VALUE(INDEX(信誉提升汇总记录表!E:E,SMALL(IF(信誉提升汇总记录表!$A:$A=$C$2,ROW($B:$B),36500),ROW(E14)))&"")) ->  | F17: =INDEX(信誉提升汇总记录表!J:J,SMALL(IF(信誉提升汇总记录表!$A:$A=$C$2,ROW($B:$B),36500),ROW(F14)))&"" ->  | G17: =INDEX(信誉提升汇总记录表!K:K,SMALL(IF(信誉提升汇总记录表!$A:$A=$C$2,ROW($B:$B),36500),ROW(G14)))&"" ->  | H17: =INDEX(信誉提升汇总记录表!M:M,SMALL(IF(信誉提升汇总记录表!$A:$A=$C$2,ROW($B:$B),36500),ROW(H14)))&"" -> 
A18: =IF(B18="","",INDEX(信誉提升汇总记录表!B:B,SMALL(IF(信誉提升汇总记录表!$A:$A=$C$2,ROW($B:$B),36500),ROW(A15)))) ->  | B18: =INDEX(信誉提升汇总记录表!A:A,SMALL(IF(信誉提升汇总记录表!$A:$A=$C$2,ROW($B:$B),36500),ROW(B15)))&"" ->  | C18: =INDEX(信誉提升汇总记录表!C:C,SMALL(IF(信誉提升汇总记录表!$A:$A=$C$2,ROW($B:$B),36500),ROW(C15)))&"" ->  | D18: =INDEX(信誉提升汇总记录表!D:D,SMALL(IF(信誉提升汇总记录表!$A:$A=$C$2,ROW($B:$B),36500),ROW(D15)))&"" ->  | E18: =IF(ISERROR(VALUE(INDEX(信誉提升汇总记录表!E:E,SMALL(IF(信誉提升汇总记录表!$A:$A=$C$2,ROW($B:$B),36500),ROW(E15)))&"")),"",VALUE(INDEX(信誉提升汇总记录表!E:E,SMALL(IF(信誉提升汇总记录表!$A:$A=$C$2,ROW($B:$B),36500),ROW(E15)))&"")) ->  | F18: =INDEX(信誉提升汇总记录表!J:J,SMALL(IF(信誉提升汇总记录表!$A:$A=$C$2,ROW($B:$B),36500),ROW(F15)))&"" ->  | G18: =INDEX(信誉提升汇总记录表!K:K,SMALL(IF(信誉提升汇总记录表!$A:$A=$C$2,ROW($B:$B),36500),ROW(G15)))&"" ->  | H18: =INDEX(信誉提升汇总记录表!M:M,SMALL(IF(信誉提升汇总记录表!$A:$A=$C$2,ROW($B:$B),36500),ROW(H15)))&"" -> 
A19: =IF(B19="","",INDEX(信誉提升汇总记录表!B:B,SMALL(IF(信誉提升汇总记录表!$A:$A=$C$2,ROW($B:$B),36500),ROW(A16)))) ->  | B19: =INDEX(信誉提升汇总记录表!A:A,SMALL(IF(信誉提升汇总记录表!$A:$A=$C$2,ROW($B:$B),36500),ROW(B16)))&"" ->  | C19: =INDEX(信誉提升汇总记录表!C:C,SMALL(IF(信誉提升汇总记录表!$A:$A=$C$2,ROW($B:$B),36500),ROW(C16)))&"" ->  | D19: =INDEX(信誉提升汇总记录表!D:D,SMALL(IF(信誉提升汇总记录表!$A:$A=$C$2,ROW($B:$B),36500),ROW(D16)))&"" ->  | E19: =IF(ISERROR(VALUE(INDEX(信誉提升汇总记录表!E:E,SMALL(IF(信誉提升汇总记录表!$A:$A=$C$2,ROW($B:$B),36500),ROW(E16)))&"")),"",VALUE(INDEX(信誉提升汇总记录表!E:E,SMALL(IF(信誉提升汇总记录表!$A:$A=$C$2,ROW($B:$B),36500),ROW(E16)))&"")) ->  | F19: =INDEX(信誉提升汇总记录表!J:J,SMALL(IF(信誉提升汇总记录表!$A:$A=$C$2,ROW($B:$B),36500),ROW(F16)))&"" ->  | G19: =INDEX(信誉提升汇总记录表!K:K,SMALL(IF(信誉提升汇总记录表!$A:$A=$C$2,ROW($B:$B),36500),ROW(G16)))&"" ->  | H19: =INDEX(信誉提升汇总记录表!M:M,SMALL(IF(信誉提升汇总记录表!$A:$A=$C$2,ROW($B:$B),36500),ROW(H16)))&"" -> 
A20: =IF(B20="","",INDEX(信誉提升汇总记录表!B:B,SMALL(IF(信誉提升汇总记录表!$A:$A=$C$2,ROW($B:$B),36500),ROW(A17)))) ->  | B20: =INDEX(信誉提升汇总记录表!A:A,SMALL(IF(信誉提升汇总记录表!$A:$A=$C$2,ROW($B:$B),36500),ROW(B17)))&"" ->  | C20: =INDEX(信誉提升汇总记录表!C:C,SMALL(IF(信誉提升汇总记录表!$A:$A=$C$2,ROW($B:$B),36500),ROW(C17)))&"" ->  | D20: =INDEX(信誉提升汇总记录表!D:D,SMALL(IF(信誉提升汇总记录表!$A:$A=$C$2,ROW($B:$B),36500),ROW(D17)))&"" ->  | E20: =IF(ISERROR(VALUE(INDEX(信誉提升汇总记录表!E:E,SMALL(IF(信誉提升汇总记录表!$A:$A=$C$2,ROW($B:$B),36500),ROW(E17)))&"")),"",VALUE(INDEX(信誉提升汇总记录表!E:E,SMALL(IF(信誉提升汇总记录表!$A:$A=$C$2,ROW($B:$B),36500),ROW(E17)))&"")) ->  | F20: =INDEX(信誉提升汇总记录表!J:J,SMALL(IF(信誉提升汇总记录表!$A:$A=$C$2,ROW($B:$B),36500),ROW(F17)))&"" ->  | G20: =INDEX(信誉提升汇总记录表!K:K,SMALL(IF(信誉提升汇总记录表!$A:$A=$C$2,ROW($B:$B),36500),ROW(G17)))&"" ->  | H20: =INDEX(信誉提升汇总记录表!M:M,SMALL(IF(信誉提升汇总记录表!$A:$A=$C$2,ROW($B:$B),36500),ROW(H17)))&"" -> 
A21: =IF(B21="","",INDEX(信誉提升汇总记录表!B:B,SMALL(IF(信誉提升汇总记录表!$A:$A=$C$2,ROW($B:$B),36500),ROW(A18)))) ->  | B21: =INDEX(信誉提升汇总记录表!A:A,SMALL(IF(信誉提升汇总记录表!$A:$A=$C$2,ROW($B:$B),36500),ROW(B18)))&"" ->  | C21: =INDEX(信誉提升汇总记录表!C:C,SMALL(IF(信誉提升汇总记录表!$A:$A=$C$2,ROW($B:$B),36500),ROW(C18)))&"" ->  | D21: =INDEX(信誉提升汇总记录表!D:D,SMALL(IF(信誉提升汇总记录表!$A:$A=$C$2,ROW($B:$B),36500),ROW(D18)))&"" ->  | E21: =IF(ISERROR(VALUE(INDEX(信誉提升汇总记录表!E:E,SMALL(IF(信誉提升汇总记录表!$A:$A=$C$2,ROW($B:$B),36500),ROW(E18)))&"")),"",VALUE(INDEX(信誉提升汇总记录表!E:E,SMALL(IF(信誉提升汇总记录表!$A:$A=$C$2,ROW($B:$B),36500),ROW(E18)))&"")) ->  | F21: =INDEX(信誉提升汇总记录表!J:J,SMALL(IF(信誉提升汇总记录表!$A:$A=$C$2,ROW($B:$B),36500),ROW(F18)))&"" ->  | G21: =INDEX(信誉提升汇总记录表!K:K,SMALL(IF(信誉提升汇总记录表!$A:$A=$C$2,ROW($B:$B),36500),ROW(G18)))&"" ->  | H21: =INDEX(信誉提升汇总记录表!M:M,SMALL(IF(信誉提升汇总记录表!$A:$A=$C$2,ROW($B:$B),36500),ROW(H18)))&"" -> 
A22: =IF(B22="","",INDEX(信誉提升汇总记录表!B:B,SMALL(IF(信誉提升汇总记录表!$A:$A=$C$2,ROW($B:$B),36500),ROW(A19)))) ->  | B22: =INDEX(信誉提升汇总记录表!A:A,SMALL(IF(信誉提升汇总记录表!$A:$A=$C$2,ROW($B:$B),36500),ROW(B19)))&"" ->  | C22: =INDEX(信誉提升汇总记录表!C:C,SMALL(IF(信誉提升汇总记录表!$A:$A=$C$2,ROW($B:$B),36500),ROW(C19)))&"" ->  | D22: =INDEX(信誉提升汇总记录表!D:D,SMALL(IF(信誉提升汇总记录表!$A:$A=$C$2,ROW($B:$B),36500),ROW(D19)))&"" ->  | E22: =IF(ISERROR(VALUE(INDEX(信誉提升汇总记录表!E:E,SMALL(IF(信誉提升汇总记录表!$A:$A=$C$2,ROW($B:$B),36500),ROW(E19)))&"")),"",VALUE(INDEX(信誉提升汇总记录表!E:E,SMALL(IF(信誉提升汇总记录表!$A:$A=$C$2,ROW($B:$B),36500),ROW(E19)))&"")) ->  | F22: =INDEX(信誉提升汇总记录表!J:J,SMALL(IF(信誉提升汇总记录表!$A:$A=$C$2,ROW($B:$B),36500),ROW(F19)))&"" ->  | G22: =INDEX(信誉提升汇总记录表!K:K,SMALL(IF(信誉提升汇总记录表!$A:$A=$C$2,ROW($B:$B),36500),ROW(G19)))&"" ->  | H22: =INDEX(信誉提升汇总记录表!M:M,SMALL(IF(信誉提升汇总记录表!$A:$A=$C$2,ROW($B:$B),36500),ROW(H19)))&"" -> 
A23: =IF(B23="","",INDEX(信誉提升汇总记录表!B:B,SMALL(IF(信誉提升汇总记录表!$A:$A=$C$2,ROW($B:$B),36500),ROW(A20)))) ->  | B23: =INDEX(信誉提升汇总记录表!A:A,SMALL(IF(信誉提升汇总记录表!$A:$A=$C$2,ROW($B:$B),36500),ROW(B20)))&"" ->  | C23: =INDEX(信誉提升汇总记录表!C:C,SMALL(IF(信誉提升汇总记录表!$A:$A=$C$2,ROW($B:$B),36500),ROW(C20)))&"" ->  | D23: =INDEX(信誉提升汇总记录表!D:D,SMALL(IF(信誉提升汇总记录表!$A:$A=$C$2,ROW($B:$B),36500),ROW(D20)))&"" ->  | E23: =IF(ISERROR(VALUE(INDEX(信誉提升汇总记录表!E:E,SMALL(IF(信誉提升汇总记录表!$A:$A=$C$2,ROW($B:$B),36500),ROW(E20)))&"")),"",VALUE(INDEX(信誉提升汇总记录表!E:E,SMALL(IF(信誉提升汇总记录表!$A:$A=$C$2,ROW($B:$B),36500),ROW(E20)))&"")) ->  | F23: =INDEX(信誉提升汇总记录表!J:J,SMALL(IF(信誉提升汇总记录表!$A:$A=$C$2,ROW($B:$B),36500),ROW(F20)))&"" ->  | G23: =INDEX(信誉提升汇总记录表!K:K,SMALL(IF(信誉提升汇总记录表!$A:$A=$C$2,ROW($B:$B),36500),ROW(G20)))&"" ->  | H23: =INDEX(信誉提升汇总记录表!M:M,SMALL(IF(信誉提升汇总记录表!$A:$A=$C$2,ROW($B:$B),36500),ROW(H20)))&"" -> 
A24: =IF(B24="","",INDEX(信誉提升汇总记录表!B:B,SMALL(IF(信誉提升汇总记录表!$A:$A=$C$2,ROW($B:$B),36500),ROW(A21)))) ->  | B24: =INDEX(信誉提升汇总记录表!A:A,SMALL(IF(信誉提升汇总记录表!$A:$A=$C$2,ROW($B:$B),36500),ROW(B21)))&"" ->  | C24: =INDEX(信誉提升汇总记录表!C:C,SMALL(IF(信誉提升汇总记录表!$A:$A=$C$2,ROW($B:$B),36500),ROW(C21)))&"" ->  | D24: =INDEX(信誉提升汇总记录表!D:D,SMALL(IF(信誉提升汇总记录表!$A:$A=$C$2,ROW($B:$B),36500),ROW(D21)))&"" ->  | E24: =IF(ISERROR(VALUE(INDEX(信誉提升汇总记录表!E:E,SMALL(IF(信誉提升汇总记录表!$A:$A=$C$2,ROW($B:$B),36500),ROW(E21)))&"")),"",VALUE(INDEX(信誉提升汇总记录表!E:E,SMALL(IF(信誉提升汇总记录表!$A:$A=$C$2,ROW($B:$B),36500),ROW(E21)))&"")) ->  | F24: =INDEX(信誉提升汇总记录表!J:J,SMALL(IF(信誉提升汇总记录表!$A:$A=$C$2,ROW($B:$B),36500),ROW(F21)))&"" ->  | G24: =INDEX(信誉提升汇总记录表!K:K,SMALL(IF(信誉提升汇总记录表!$A:$A=$C$2,ROW($B:$B),36500),ROW(G21)))&"" ->  | H24: =INDEX(信誉提升汇总记录表!M:M,SMALL(IF(信誉提升汇总记录表!$A:$A=$C$2,ROW($B:$B),36500),ROW(H21)))&"" -> 
A25: =IF(B25="","",INDEX(信誉提升汇总记录表!B:B,SMALL(IF(信誉提升汇总记录表!$A:$A=$C$2,ROW($B:$B),36500),ROW(A22)))) ->  | B25: =INDEX(信誉提升汇总记录表!A:A,SMALL(IF(信誉提升汇总记录表!$A:$A=$C$2,ROW($B:$B),36500),ROW(B22)))&"" ->  | C25: =INDEX(信誉提升汇总记录表!C:C,SMALL(IF(信誉提升汇总记录表!$A:$A=$C$2,ROW($B:$B),36500),ROW(C22)))&"" ->  | D25: =INDEX(信誉提升汇总记录表!D:D,SMALL(IF(信誉提升汇总记录表!$A:$A=$C$2,ROW($B:$B),36500),ROW(D22)))&"" ->  | E25: =IF(ISERROR(VALUE(INDEX(信誉提升汇总记录表!E:E,SMALL(IF(信誉提升汇总记录表!$A:$A=$C$2,ROW($B:$B),36500),ROW(E22)))&"")),"",VALUE(INDEX(信誉提升汇总记录表!E:E,SMALL(IF(信誉提升汇总记录表!$A:$A=$C$2,ROW($B:$B),36500),ROW(E22)))&"")) ->  | F25: =INDEX(信誉提升汇总记录表!J:J,SMALL(IF(信誉提升汇总记录表!$A:$A=$C$2,ROW($B:$B),36500),ROW(F22)))&"" ->  | G25: =INDEX(信誉提升汇总记录表!K:K,SMALL(IF(信誉提升汇总记录表!$A:$A=$C$2,ROW($B:$B),36500),ROW(G22)))&"" ->  | H25: =INDEX(信誉提升汇总记录表!M:M,SMALL(IF(信誉提升汇总记录表!$A:$A=$C$2,ROW($B:$B),36500),ROW(H22)))&"" -> 
A26: =IF(B26="","",INDEX(信誉提升汇总记录表!B:B,SMALL(IF(信誉提升汇总记录表!$A:$A=$C$2,ROW($B:$B),36500),ROW(A23)))) ->  | B26: =INDEX(信誉提升汇总记录表!A:A,SMALL(IF(信誉提升汇总记录表!$A:$A=$C$2,ROW($B:$B),36500),ROW(B23)))&"" ->  | C26: =INDEX(信誉提升汇总记录表!C:C,SMALL(IF(信誉提升汇总记录表!$A:$A=$C$2,ROW($B:$B),36500),ROW(C23)))&"" ->  | D26: =INDEX(信誉提升汇总记录表!D:D,SMALL(IF(信誉提升汇总记录表!$A:$A=$C$2,ROW($B:$B),36500),ROW(D23)))&"" ->  | E26: =IF(ISERROR(VALUE(INDEX(信誉提升汇总记录表!E:E,SMALL(IF(信誉提升汇总记录表!$A:$A=$C$2,ROW($B:$B),36500),ROW(E23)))&"")),"",VALUE(INDEX(信誉提升汇总记录表!E:E,SMALL(IF(信誉提升汇总记录表!$A:$A=$C$2,ROW($B:$B),36500),ROW(E23)))&"")) ->  | F26: =INDEX(信誉提升汇总记录表!J:J,SMALL(IF(信誉提升汇总记录表!$A:$A=$C$2,ROW($B:$B),36500),ROW(F23)))&"" ->  | G26: =INDEX(信誉提升汇总记录表!K:K,SMALL(IF(信誉提升汇总记录表!$A:$A=$C$2,ROW($B:$B),36500),ROW(G23)))&"" ->  | H26: =INDEX(信誉提升汇总记录表!M:M,SMALL(IF(信誉提升汇总记录表!$A:$A=$C$2,ROW($B:$B),36500),ROW(H23)))&"" -> 
A27: =IF(B27="","",INDEX(信誉提升汇总记录表!B:B,SMALL(IF(信誉提升汇总记录表!$A:$A=$C$2,ROW($B:$B),36500),ROW(A24)))) ->  | B27: =INDEX(信誉提升汇总记录表!A:A,SMALL(IF(信誉提升汇总记录表!$A:$A=$C$2,ROW($B:$B),36500),ROW(B24)))&"" ->  | C27: =INDEX(信誉提升汇总记录表!C:C,SMALL(IF(信誉提升汇总记录表!$A:$A=$C$2,ROW($B:$B),36500),ROW(C24)))&"" ->  | D27: =INDEX(信誉提升汇总记录表!D:D,SMALL(IF(信誉提升汇总记录表!$A:$A=$C$2,ROW($B:$B),36500),ROW(D24)))&"" ->  | E27: =IF(ISERROR(VALUE(INDEX(信誉提升汇总记录表!E:E,SMALL(IF(信誉提升汇总记录表!$A:$A=$C$2,ROW($B:$B),36500),ROW(E24)))&"")),"",VALUE(INDEX(信誉提升汇总记录表!E:E,SMALL(IF(信誉提升汇总记录表!$A:$A=$C$2,ROW($B:$B),36500),ROW(E24)))&"")) ->  | F27: =INDEX(信誉提升汇总记录表!J:J,SMALL(IF(信誉提升汇总记录表!$A:$A=$C$2,ROW($B:$B),36500),ROW(F24)))&"" ->  | G27: =INDEX(信誉提升汇总记录表!K:K,SMALL(IF(信誉提升汇总记录表!$A:$A=$C$2,ROW($B:$B),36500),ROW(G24)))&"" ->  | H27: =INDEX(信誉提升汇总记录表!M:M,SMALL(IF(信誉提升汇总记录表!$A:$A=$C$2,ROW($B:$B),36500),ROW(H24)))&"" -> 
A28: =IF(B28="","",INDEX(信誉提升汇总记录表!B:B,SMALL(IF(信誉提升汇总记录表!$A:$A=$C$2,ROW($B:$B),36500),ROW(A25)))) ->  | B28: =INDEX(信誉提升汇总记录表!A:A,SMALL(IF(信誉提升汇总记录表!$A:$A=$C$2,ROW($B:$B),36500),ROW(B25)))&"" ->  | C28: =INDEX(信誉提升汇总记录表!C:C,SMALL(IF(信誉提升汇总记录表!$A:$A=$C$2,ROW($B:$B),36500),ROW(C25)))&"" ->  | D28: =INDEX(信誉提升汇总记录表!D:D,SMALL(IF(信誉提升汇总记录表!$A:$A=$C$2,ROW($B:$B),36500),ROW(D25)))&"" ->  | E28: =IF(ISERROR(VALUE(INDEX(信誉提升汇总记录表!E:E,SMALL(IF(信誉提升汇总记录表!$A:$A=$C$2,ROW($B:$B),36500),ROW(E25)))&"")),"",VALUE(INDEX(信誉提升汇总记录表!E:E,SMALL(IF(信誉提升汇总记录表!$A:$A=$C$2,ROW($B:$B),36500),ROW(E25)))&"")) ->  | F28: =INDEX(信誉提升汇总记录表!J:J,SMALL(IF(信誉提升汇总记录表!$A:$A=$C$2,ROW($B:$B),36500),ROW(F25)))&"" ->  | G28: =INDEX(信誉提升汇总记录表!K:K,SMALL(IF(信誉提升汇总记录表!$A:$A=$C$2,ROW($B:$B),36500),ROW(G25)))&"" ->  | H28: =INDEX(信誉提升汇总记录表!M:M,SMALL(IF(信誉提升汇总记录表!$A:$A=$C$2,ROW($B:$B),36500),ROW(H25)))&"" -> 
A29: =IF(B29="","",INDEX(信誉提升汇总记录表!B:B,SMALL(IF(信誉提升汇总记录表!$A:$A=$C$2,ROW($B:$B),36500),ROW(A26)))) ->  | B29: =INDEX(信誉提升汇总记录表!A:A,SMALL(IF(信誉提升汇总记录表!$A:$A=$C$2,ROW($B:$B),36500),ROW(B26)))&"" ->  | C29: =INDEX(信誉提升汇总记录表!C:C,SMALL(IF(信誉提升汇总记录表!$A:$A=$C$2,ROW($B:$B),36500),ROW(C26)))&"" ->  | D29: =INDEX(信誉提升汇总记录表!D:D,SMALL(IF(信誉提升汇总记录表!$A:$A=$C$2,ROW($B:$B),36500),ROW(D26)))&"" ->  | E29: =IF(ISERROR(VALUE(INDEX(信誉提升汇总记录表!E:E,SMALL(IF(信誉提升汇总记录表!$A:$A=$C$2,ROW($B:$B),36500),ROW(E26)))&"")),"",VALUE(INDEX(信誉提升汇总记录表!E:E,SMALL(IF(信誉提升汇总记录表!$A:$A=$C$2,ROW($B:$B),36500),ROW(E26)))&"")) ->  | F29: =INDEX(信誉提升汇总记录表!J:J,SMALL(IF(信誉提升汇总记录表!$A:$A=$C$2,ROW($B:$B),36500),ROW(F26)))&"" ->  | G29: =INDEX(信誉提升汇总记录表!K:K,SMALL(IF(信誉提升汇总记录表!$A:$A=$C$2,ROW($B:$B),36500),ROW(G26)))&"" ->  | H29: =INDEX(信誉提升汇总记录表!M:M,SMALL(IF(信誉提升汇总记录表!$A:$A=$C$2,ROW($B:$B),36500),ROW(H26)))&"" -> 
A30: =IF(B30="","",INDEX(信誉提升汇总记录表!B:B,SMALL(IF(信誉提升汇总记录表!$A:$A=$C$2,ROW($B:$B),36500),ROW(A27)))) ->  | B30: =INDEX(信誉提升汇总记录表!A:A,SMALL(IF(信誉提升汇总记录表!$A:$A=$C$2,ROW($B:$B),36500),ROW(B27)))&"" ->  | C30: =INDEX(信誉提升汇总记录表!C:C,SMALL(IF(信誉提升汇总记录表!$A:$A=$C$2,ROW($B:$B),36500),ROW(C27)))&"" ->  | D30: =INDEX(信誉提升汇总记录表!D:D,SMALL(IF(信誉提升汇总记录表!$A:$A=$C$2,ROW($B:$B),36500),ROW(D27)))&"" ->  | E30: =IF(ISERROR(VALUE(INDEX(信誉提升汇总记录表!E:E,SMALL(IF(信誉提升汇总记录表!$A:$A=$C$2,ROW($B:$B),36500),ROW(E27)))&"")),"",VALUE(INDEX(信誉提升汇总记录表!E:E,SMALL(IF(信誉提升汇总记录表!$A:$A=$C$2,ROW($B:$B),36500),ROW(E27)))&"")) ->  | F30: =INDEX(信誉提升汇总记录表!J:J,SMALL(IF(信誉提升汇总记录表!$A:$A=$C$2,ROW($B:$B),36500),ROW(F27)))&"" ->  | G30: =INDEX(信誉提升汇总记录表!K:K,SMALL(IF(信誉提升汇总记录表!$A:$A=$C$2,ROW($B:$B),36500),ROW(G27)))&"" ->  | H30: =INDEX(信誉提升汇总记录表!M:M,SMALL(IF(信誉提升汇总记录表!$A:$A=$C$2,ROW($B:$B),36500),ROW(H27)))&"" -> 
A31: =IF(B31="","",INDEX(信誉提升汇总记录表!B:B,SMALL(IF(信誉提升汇总记录表!$A:$A=$C$2,ROW($B:$B),36500),ROW(A28)))) ->  | B31: =INDEX(信誉提升汇总记录表!A:A,SMALL(IF(信誉提升汇总记录表!$A:$A=$C$2,ROW($B:$B),36500),ROW(B28)))&"" ->  | C31: =INDEX(信誉提升汇总记录表!C:C,SMALL(IF(信誉提升汇总记录表!$A:$A=$C$2,ROW($B:$B),36500),ROW(C28)))&"" ->  | D31: =INDEX(信誉提升汇总记录表!D:D,SMALL(IF(信誉提升汇总记录表!$A:$A=$C$2,ROW($B:$B),36500),ROW(D28)))&"" ->  | E31: =IF(ISERROR(VALUE(INDEX(信誉提升汇总记录表!E:E,SMALL(IF(信誉提升汇总记录表!$A:$A=$C$2,ROW($B:$B),36500),ROW(E28)))&"")),"",VALUE(INDEX(信誉提升汇总记录表!E:E,SMALL(IF(信誉提升汇总记录表!$A:$A=$C$2,ROW($B:$B),36500),ROW(E28)))&"")) ->  | F31: =INDEX(信誉提升汇总记录表!J:J,SMALL(IF(信誉提升汇总记录表!$A:$A=$C$2,ROW($B:$B),36500),ROW(F28)))&"" ->  | G31: =INDEX(信誉提升汇总记录表!K:K,SMALL(IF(信誉提升汇总记录表!$A:$A=$C$2,ROW($B:$B),36500),ROW(G28)))&"" ->  | H31: =INDEX(信誉提升汇总记录表!M:M,SMALL(IF(信誉提升汇总记录表!$A:$A=$C$2,ROW($B:$B),36500),ROW(H28)))&"" -> 
A32: =IF(B32="","",INDEX(信誉提升汇总记录表!B:B,SMALL(IF(信誉提升汇总记录表!$A:$A=$C$2,ROW($B:$B),36500),ROW(A29)))) ->  | B32: =INDEX(信誉提升汇总记录表!A:A,SMALL(IF(信誉提升汇总记录表!$A:$A=$C$2,ROW($B:$B),36500),ROW(B29)))&"" ->  | C32: =INDEX(信誉提升汇总记录表!C:C,SMALL(IF(信誉提升汇总记录表!$A:$A=$C$2,ROW($B:$B),36500),ROW(C29)))&"" ->  | D32: =INDEX(信誉提升汇总记录表!D:D,SMALL(IF(信誉提升汇总记录表!$A:$A=$C$2,ROW($B:$B),36500),ROW(D29)))&"" ->  | E32: =IF(ISERROR(VALUE(INDEX(信誉提升汇总记录表!E:E,SMALL(IF(信誉提升汇总记录表!$A:$A=$C$2,ROW($B:$B),36500),ROW(E29)))&"")),"",VALUE(INDEX(信誉提升汇总记录表!E:E,SMALL(IF(信誉提升汇总记录表!$A:$A=$C$2,ROW($B:$B),36500),ROW(E29)))&"")) ->  | F32: =INDEX(信誉提升汇总记录表!J:J,SMALL(IF(信誉提升汇总记录表!$A:$A=$C$2,ROW($B:$B),36500),ROW(F29)))&"" ->  | G32: =INDEX(信誉提升汇总记录表!K:K,SMALL(IF(信誉提升汇总记录表!$A:$A=$C$2,ROW($B:$B),36500),ROW(G29)))&"" ->  | H32: =INDEX(信誉提升汇总记录表!M:M,SMALL(IF(信誉提升汇总记录表!$A:$A=$C$2,ROW($B:$B),36500),ROW(H29)))&"" -> 
A33: =IF(B33="","",INDEX(信誉提升汇总记录表!B:B,SMALL(IF(信誉提升汇总记录表!$A:$A=$C$2,ROW($B:$B),36500),ROW(A30)))) ->  | B33: =INDEX(信誉提升汇总记录表!A:A,SMALL(IF(信誉提升汇总记录表!$A:$A=$C$2,ROW($B:$B),36500),ROW(B30)))&"" ->  | C33: =INDEX(信誉提升汇总记录表!C:C,SMALL(IF(信誉提升汇总记录表!$A:$A=$C$2,ROW($B:$B),36500),ROW(C30)))&"" ->  | D33: =INDEX(信誉提升汇总记录表!D:D,SMALL(IF(信誉提升汇总记录表!$A:$A=$C$2,ROW($B:$B),36500),ROW(D30)))&"" ->  | E33: =IF(ISERROR(VALUE(INDEX(信誉提升汇总记录表!E:E,SMALL(IF(信誉提升汇总记录表!$A:$A=$C$2,ROW($B:$B),36500),ROW(E30)))&"")),"",VALUE(INDEX(信誉提升汇总记录表!E:E,SMALL(IF(信誉提升汇总记录表!$A:$A=$C$2,ROW($B:$B),36500),ROW(E30)))&"")) ->  | F33: =INDEX(信誉提升汇总记录表!J:J,SMALL(IF(信誉提升汇总记录表!$A:$A=$C$2,ROW($B:$B),36500),ROW(F30)))&"" ->  | G33: =INDEX(信誉提升汇总记录表!K:K,SMALL(IF(信誉提升汇总记录表!$A:$A=$C$2,ROW($B:$B),36500),ROW(G30)))&"" ->  | H33: =INDEX(信誉提升汇总记录表!M:M,SMALL(IF(信誉提升汇总记录表!$A:$A=$C$2,ROW($B:$B),36500),ROW(H30)))&"" -> 
A34: =IF(B34="","",INDEX(信誉提升汇总记录表!B:B,SMALL(IF(信誉提升汇总记录表!$A:$A=$C$2,ROW($B:$B),36500),ROW(A31)))) ->  | B34: =INDEX(信誉提升汇总记录表!A:A,SMALL(IF(信誉提升汇总记录表!$A:$A=$C$2,ROW($B:$B),36500),ROW(B31)))&"" ->  | C34: =INDEX(信誉提升汇总记录表!C:C,SMALL(IF(信誉提升汇总记录表!$A:$A=$C$2,ROW($B:$B),36500),ROW(C31)))&"" ->  | D34: =INDEX(信誉提升汇总记录表!D:D,SMALL(IF(信誉提升汇总记录表!$A:$A=$C$2,ROW($B:$B),36500),ROW(D31)))&"" ->  | E34: =IF(ISERROR(VALUE(INDEX(信誉提升汇总记录表!E:E,SMALL(IF(信誉提升汇总记录表!$A:$A=$C$2,ROW($B:$B),36500),ROW(E31)))&"")),"",VALUE(INDEX(信誉提升汇总记录表!E:E,SMALL(IF(信誉提升汇总记录表!$A:$A=$C$2,ROW($B:$B),36500),ROW(E31)))&"")) ->  | F34: =INDEX(信誉提升汇总记录表!J:J,SMALL(IF(信誉提升汇总记录表!$A:$A=$C$2,ROW($B:$B),36500),ROW(F31)))&"" ->  | G34: =INDEX(信誉提升汇总记录表!K:K,SMALL(IF(信誉提升汇总记录表!$A:$A=$C$2,ROW($B:$B),36500),ROW(G31)))&"" ->  | H34: =INDEX(信誉提升汇总记录表!M:M,SMALL(IF(信誉提升汇总记录表!$A:$A=$C$2,ROW($B:$B),36500),ROW(H31)))&"" -> 
A35: =IF(B35="","",INDEX(信誉提升汇总记录表!B:B,SMALL(IF(信誉提升汇总记录表!$A:$A=$C$2,ROW($B:$B),36500),ROW(A32)))) ->  | B35: =INDEX(信誉提升汇总记录表!A:A,SMALL(IF(信誉提升汇总记录表!$A:$A=$C$2,ROW($B:$B),36500),ROW(B32)))&"" ->  | C35: =INDEX(信誉提升汇总记录表!C:C,SMALL(IF(信誉提升汇总记录表!$A:$A=$C$2,ROW($B:$B),36500),ROW(C32)))&"" ->  | D35: =INDEX(信誉提升汇总记录表!D:D,SMALL(IF(信誉提升汇总记录表!$A:$A=$C$2,ROW($B:$B),36500),ROW(D32)))&"" ->  | E35: =IF(ISERROR(VALUE(INDEX(信誉提升汇总记录表!E:E,SMALL(IF(信誉提升汇总记录表!$A:$A=$C$2,ROW($B:$B),36500),ROW(E32)))&"")),"",VALUE(INDEX(信誉提升汇总记录表!E:E,SMALL(IF(信誉提升汇总记录表!$A:$A=$C$2,ROW($B:$B),36500),ROW(E32)))&"")) ->  | F35: =INDEX(信誉提升汇总记录表!J:J,SMALL(IF(信誉提升汇总记录表!$A:$A=$C$2,ROW($B:$B),36500),ROW(F32)))&"" ->  | G35: =INDEX(信誉提升汇总记录表!K:K,SMALL(IF(信誉提升汇总记录表!$A:$A=$C$2,ROW($B:$B),36500),ROW(G32)))&"" ->  | H35: =INDEX(信誉提升汇总记录表!M:M,SMALL(IF(信誉提升汇总记录表!$A:$A=$C$2,ROW($B:$B),36500),ROW(H32)))&"" -> 
A36: =IF(B36="","",INDEX(信誉提升汇总记录表!B:B,SMALL(IF(信誉提升汇总记录表!$A:$A=$C$2,ROW($B:$B),36500),ROW(A33)))) ->  | B36: =INDEX(信誉提升汇总记录表!A:A,SMALL(IF(信誉提升汇总记录表!$A:$A=$C$2,ROW($B:$B),36500),ROW(B33)))&"" ->  | C36: =INDEX(信誉提升汇总记录表!C:C,SMALL(IF(信誉提升汇总记录表!$A:$A=$C$2,ROW($B:$B),36500),ROW(C33)))&"" ->  | D36: =INDEX(信誉提升汇总记录表!D:D,SMALL(IF(信誉提升汇总记录表!$A:$A=$C$2,ROW($B:$B),36500),ROW(D33)))&"" ->  | E36: =IF(ISERROR(VALUE(INDEX(信誉提升汇总记录表!E:E,SMALL(IF(信誉提升汇总记录表!$A:$A=$C$2,ROW($B:$B),36500),ROW(E33)))&"")),"",VALUE(INDEX(信誉提升汇总记录表!E:E,SMALL(IF(信誉提升汇总记录表!$A:$A=$C$2,ROW($B:$B),36500),ROW(E33)))&"")) ->  | F36: =INDEX(信誉提升汇总记录表!J:J,SMALL(IF(信誉提升汇总记录表!$A:$A=$C$2,ROW($B:$B),36500),ROW(F33)))&"" ->  | G36: =INDEX(信誉提升汇总记录表!K:K,SMALL(IF(信誉提升汇总记录表!$A:$A=$C$2,ROW($B:$B),36500),ROW(G33)))&"" ->  | H36: =INDEX(信誉提升汇总记录表!M:M,SMALL(IF(信誉提升汇总记录表!$A:$A=$C$2,ROW($B:$B),36500),ROW(H33)))&"" -> 
A37: =IF(B37="","",INDEX(信誉提升汇总记录表!B:B,SMALL(IF(信誉提升汇总记录表!$A:$A=$C$2,ROW($B:$B),36500),ROW(A34)))) ->  | B37: =INDEX(信誉提升汇总记录表!A:A,SMALL(IF(信誉提升汇总记录表!$A:$A=$C$2,ROW($B:$B),36500),ROW(B34)))&"" ->  | C37: =INDEX(信誉提升汇总记录表!C:C,SMALL(IF(信誉提升汇总记录表!$A:$A=$C$2,ROW($B:$B),36500),ROW(C34)))&"" ->  | D37: =INDEX(信誉提升汇总记录表!D:D,SMALL(IF(信誉提升汇总记录表!$A:$A=$C$2,ROW($B:$B),36500),ROW(D34)))&"" ->  | E37: =IF(ISERROR(VALUE(INDEX(信誉提升汇总记录表!E:E,SMALL(IF(信誉提升汇总记录表!$A:$A=$C$2,ROW($B:$B),36500),ROW(E34)))&"")),"",VALUE(INDEX(信誉提升汇总记录表!E:E,SMALL(IF(信誉提升汇总记录表!$A:$A=$C$2,ROW($B:$B),36500),ROW(E34)))&"")) ->  | F37: =INDEX(信誉提升汇总记录表!J:J,SMALL(IF(信誉提升汇总记录表!$A:$A=$C$2,ROW($B:$B),36500),ROW(F34)))&"" ->  | G37: =INDEX(信誉提升汇总记录表!K:K,SMALL(IF(信誉提升汇总记录表!$A:$A=$C$2,ROW($B:$B),36500),ROW(G34)))&"" ->  | H37: =INDEX(信誉提升汇总记录表!M:M,SMALL(IF(信誉提升汇总记录表!$A:$A=$C$2,ROW($B:$B),36500),ROW(H34)))&"" -> 
A38: =IF(B38="","",INDEX(信誉提升汇总记录表!B:B,SMALL(IF(信誉提升汇总记录表!$A:$A=$C$2,ROW($B:$B),36500),ROW(A35)))) ->  | B38: =INDEX(信誉提升汇总记录表!A:A,SMALL(IF(信誉提升汇总记录表!$A:$A=$C$2,ROW($B:$B),36500),ROW(B35)))&"" ->  | C38: =INDEX(信誉提升汇总记录表!C:C,SMALL(IF(信誉提升汇总记录表!$A:$A=$C$2,ROW($B:$B),36500),ROW(C35)))&"" ->  | D38: =INDEX(信誉提升汇总记录表!D:D,SMALL(IF(信誉提升汇总记录表!$A:$A=$C$2,ROW($B:$B),36500),ROW(D35)))&"" ->  | E38: =IF(ISERROR(VALUE(INDEX(信誉提升汇总记录表!E:E,SMALL(IF(信誉提升汇总记录表!$A:$A=$C$2,ROW($B:$B),36500),ROW(E35)))&"")),"",VALUE(INDEX(信誉提升汇总记录表!E:E,SMALL(IF(信誉提升汇总记录表!$A:$A=$C$2,ROW($B:$B),36500),ROW(E35)))&"")) ->  | F38: =INDEX(信誉提升汇总记录表!J:J,SMALL(IF(信誉提升汇总记录表!$A:$A=$C$2,ROW($B:$B),36500),ROW(F35)))&"" ->  | G38: =INDEX(信誉提升汇总记录表!K:K,SMALL(IF(信誉提升汇总记录表!$A:$A=$C$2,ROW($B:$B),36500),ROW(G35)))&"" ->  | H38: =INDEX(信誉提升汇总记录表!M:M,SMALL(IF(信誉提升汇总记录表!$A:$A=$C$2,ROW($B:$B),36500),ROW(H35)))&"" -> 
A39: =IF(B39="","",INDEX(信誉提升汇总记录表!B:B,SMALL(IF(信誉提升汇总记录表!$A:$A=$C$2,ROW($B:$B),36500),ROW(A36)))) ->  | B39: =INDEX(信誉提升汇总记录表!A:A,SMALL(IF(信誉提升汇总记录表!$A:$A=$C$2,ROW($B:$B),36500),ROW(B36)))&"" ->  | C39: =INDEX(信誉提升汇总记录表!C:C,SMALL(IF(信誉提升汇总记录表!$A:$A=$C$2,ROW($B:$B),36500),ROW(C36)))&"" ->  | D39: =INDEX(信誉提升汇总记录表!D:D,SMALL(IF(信誉提升汇总记录表!$A:$A=$C$2,ROW($B:$B),36500),ROW(D36)))&"" ->  | E39: =IF(ISERROR(VALUE(INDEX(信誉提升汇总记录表!E:E,SMALL(IF(信誉提升汇总记录表!$A:$A=$C$2,ROW($B:$B),36500),ROW(E36)))&"")),"",VALUE(INDEX(信誉提升汇总记录表!E:E,SMALL(IF(信誉提升汇总记录表!$A:$A=$C$2,ROW($B:$B),36500),ROW(E36)))&"")) ->  | F39: =INDEX(信誉提升汇总记录表!J:J,SMALL(IF(信誉提升汇总记录表!$A:$A=$C$2,ROW($B:$B),36500),ROW(F36)))&"" ->  | G39: =INDEX(信誉提升汇总记录表!K:K,SMALL(IF(信誉提升汇总记录表!$A:$A=$C$2,ROW($B:$B),36500),ROW(G36)))&"" ->  | H39: =INDEX(信誉提升汇总记录表!M:M,SMALL(IF(信誉提升汇总记录表!$A:$A=$C$2,ROW($B:$B),36500),ROW(H36)))&"" -> 
A40: =IF(B40="","",INDEX(信誉提升汇总记录表!B:B,SMALL(IF(信誉提升汇总记录表!$A:$A=$C$2,ROW($B:$B),36500),ROW(A37)))) ->  | B40: =INDEX(信誉提升汇总记录表!A:A,SMALL(IF(信誉提升汇总记录表!$A:$A=$C$2,ROW($B:$B),36500),ROW(B37)))&"" ->  | C40: =INDEX(信誉提升汇总记录表!C:C,SMALL(IF(信誉提升汇总记录表!$A:$A=$C$2,ROW($B:$B),36500),ROW(C37)))&"" ->  | D40: =INDEX(信誉提升汇总记录表!D:D,SMALL(IF(信誉提升汇总记录表!$A:$A=$C$2,ROW($B:$B),36500),ROW(D37)))&"" ->  | E40: =IF(ISERROR(VALUE(INDEX(信誉提升汇总记录表!E:E,SMALL(IF(信誉提升汇总记录表!$A:$A=$C$2,ROW($B:$B),36500),ROW(E37)))&"")),"",VALUE(INDEX(信誉提升汇总记录表!E:E,SMALL(IF(信誉提升汇总记录表!$A:$A=$C$2,ROW($B:$B),36500),ROW(E37)))&"")) ->  | F40: =INDEX(信誉提升汇总记录表!J:J,SMALL(IF(信誉提升汇总记录表!$A:$A=$C$2,ROW($B:$B),36500),ROW(F37)))&"" ->  | G40: =INDEX(信誉提升汇总记录表!K:K,SMALL(IF(信誉提升汇总记录表!$A:$A=$C$2,ROW($B:$B),36500),ROW(G37)))&"" ->  | H40: =INDEX(信誉提升汇总记录表!M:M,SMALL(IF(信誉提升汇总记录表!$A:$A=$C$2,ROW($B:$B),36500),ROW(H37)))&"" -> 
A41: =IF(B41="","",INDEX(信誉提升汇总记录表!B:B,SMALL(IF(信誉提升汇总记录表!$A:$A=$C$2,ROW($B:$B),36500),ROW(A38)))) ->  | B41: =INDEX(信誉提升汇总记录表!A:A,SMALL(IF(信誉提升汇总记录表!$A:$A=$C$2,ROW($B:$B),36500),ROW(B38)))&"" ->  | C41: =INDEX(信誉提升汇总记录表!C:C,SMALL(IF(信誉提升汇总记录表!$A:$A=$C$2,ROW($B:$B),36500),ROW(C38)))&"" ->  | D41: =INDEX(信誉提升汇总记录表!D:D,SMALL(IF(信誉提升汇总记录表!$A:$A=$C$2,ROW($B:$B),36500),ROW(D38)))&"" ->  | E41: =IF(ISERROR(VALUE(INDEX(信誉提升汇总记录表!E:E,SMALL(IF(信誉提升汇总记录表!$A:$A=$C$2,ROW($B:$B),36500),ROW(E38)))&"")),"",VALUE(INDEX(信誉提升汇总记录表!E:E,SMALL(IF(信誉提升汇总记录表!$A:$A=$C$2,ROW($B:$B),36500),ROW(E38)))&"")) ->  | F41: =INDEX(信誉提升汇总记录表!J:J,SMALL(IF(信誉提升汇总记录表!$A:$A=$C$2,ROW($B:$B),36500),ROW(F38)))&"" ->  | G41: =INDEX(信誉提升汇总记录表!K:K,SMALL(IF(信誉提升汇总记录表!$A:$A=$C$2,ROW($B:$B),36500),ROW(G38)))&"" ->  | H41: =INDEX(信誉提升汇总记录表!M:M,SMALL(IF(信誉提升汇总记录表!$A:$A=$C$2,ROW($B:$B),36500),ROW(H38)))&"" -> 
A42: =IF(B42="","",INDEX(信誉提升汇总记录表!B:B,SMALL(IF(信誉提升汇总记录表!$A:$A=$C$2,ROW($B:$B),36500),ROW(A39)))) ->  | B42: =INDEX(信誉提升汇总记录表!A:A,SMALL(IF(信誉提升汇总记录表!$A:$A=$C$2,ROW($B:$B),36500),ROW(B39)))&"" ->  | C42: =INDEX(信誉提升汇总记录表!C:C,SMALL(IF(信誉提升汇总记录表!$A:$A=$C$2,ROW($B:$B),36500),ROW(C39)))&"" ->  | D42: =INDEX(信誉提升汇总记录表!D:D,SMALL(IF(信誉提升汇总记录表!$A:$A=$C$2,ROW($B:$B),36500),ROW(D39)))&"" ->  | E42: =IF(ISERROR(VALUE(INDEX(信誉提升汇总记录表!E:E,SMALL(IF(信誉提升汇总记录表!$A:$A=$C$2,ROW($B:$B),36500),ROW(E39)))&"")),"",VALUE(INDEX(信誉提升汇总记录表!E:E,SMALL(IF(信誉提升汇总记录表!$A:$A=$C$2,ROW($B:$B),36500),ROW(E39)))&"")) ->  | F42: =INDEX(信誉提升汇总记录表!J:J,SMALL(IF(信誉提升汇总记录表!$A:$A=$C$2,ROW($B:$B),36500),ROW(F39)))&"" ->  | G42: =INDEX(信誉提升汇总记录表!K:K,SMALL(IF(信誉提升汇总记录表!$A:$A=$C$2,ROW($B:$B),36500),ROW(G39)))&"" ->  | H42: =INDEX(信誉提升汇总记录表!M:M,SMALL(IF(信誉提升汇总记录表!$A:$A=$C$2,ROW($B:$B),36500),ROW(H39)))&"" -> 
A43: =IF(B43="","",INDEX(信誉提升汇总记录表!B:B,SMALL(IF(信誉提升汇总记录表!$A:$A=$C$2,ROW($B:$B),36500),ROW(A40)))) ->  | B43: =INDEX(信誉提升汇总记录表!A:A,SMALL(IF(信誉提升汇总记录表!$A:$A=$C$2,ROW($B:$B),36500),ROW(B40)))&"" ->  | C43: =INDEX(信誉提升汇总记录表!C:C,SMALL(IF(信誉提升汇总记录表!$A:$A=$C$2,ROW($B:$B),36500),ROW(C40)))&"" ->  | D43: =INDEX(信誉提升汇总记录表!D:D,SMALL(IF(信誉提升汇总记录表!$A:$A=$C$2,ROW($B:$B),36500),ROW(D40)))&"" ->  | E43: =IF(ISERROR(VALUE(INDEX(信誉提升汇总记录表!E:E,SMALL(IF(信誉提升汇总记录表!$A:$A=$C$2,ROW($B:$B),36500),ROW(E40)))&"")),"",VALUE(INDEX(信誉提升汇总记录表!E:E,SMALL(IF(信誉提升汇总记录表!$A:$A=$C$2,ROW($B:$B),36500),ROW(E40)))&"")) ->  | F43: =INDEX(信誉提升汇总记录表!J:J,SMALL(IF(信誉提升汇总记录表!$A:$A=$C$2,ROW($B:$B),36500),ROW(F40)))&"" ->  | G43: =INDEX(信誉提升汇总记录表!K:K,SMALL(IF(信誉提升汇总记录表!$A:$A=$C$2,ROW($B:$B),36500),ROW(G40)))&"" ->  | H43: =INDEX(信誉提升汇总记录表!M:M,SMALL(IF(信誉提升汇总记录表!$A:$A=$C$2,ROW($B:$B),36500),ROW(H40)))&"" -> 
A44: =IF(B44="","",INDEX(信誉提升汇总记录表!B:B,SMALL(IF(信誉提升汇总记录表!$A:$A=$C$2,ROW($B:$B),36500),ROW(A41)))) ->  | B44: =INDEX(信誉提升汇总记录表!A:A,SMALL(IF(信誉提升汇总记录表!$A:$A=$C$2,ROW($B:$B),36500),ROW(B41)))&"" ->  | C44: =INDEX(信誉提升汇总记录表!C:C,SMALL(IF(信誉提升汇总记录表!$A:$A=$C$2,ROW($B:$B),36500),ROW(C41)))&"" ->  | D44: =INDEX(信誉提升汇总记录表!D:D,SMALL(IF(信誉提升汇总记录表!$A:$A=$C$2,ROW($B:$B),36500),ROW(D41)))&"" ->  | E44: =IF(ISERROR(VALUE(INDEX(信誉提升汇总记录表!E:E,SMALL(IF(信誉提升汇总记录表!$A:$A=$C$2,ROW($B:$B),36500),ROW(E41)))&"")),"",VALUE(INDEX(信誉提升汇总记录表!E:E,SMALL(IF(信誉提升汇总记录表!$A:$A=$C$2,ROW($B:$B),36500),ROW(E41)))&"")) ->  | F44: =INDEX(信誉提升汇总记录表!J:J,SMALL(IF(信誉提升汇总记录表!$A:$A=$C$2,ROW($B:$B),36500),ROW(F41)))&"" ->  | G44: =INDEX(信誉提升汇总记录表!K:K,SMALL(IF(信誉提升汇总记录表!$A:$A=$C$2,ROW($B:$B),36500),ROW(G41)))&"" ->  | H44: =INDEX(信誉提升汇总记录表!M:M,SMALL(IF(信誉提升汇总记录表!$A:$A=$C$2,ROW($B:$B),36500),ROW(H41)))&"" -> 
A45: =IF(B45="","",INDEX(信誉提升汇总记录表!B:B,SMALL(IF(信誉提升汇总记录表!$A:$A=$C$2,ROW($B:$B),36500),ROW(A42)))) ->  | B45: =INDEX(信誉提升汇总记录表!A:A,SMALL(IF(信誉提升汇总记录表!$A:$A=$C$2,ROW($B:$B),36500),ROW(B42)))&"" ->  | C45: =INDEX(信誉提升汇总记录表!C:C,SMALL(IF(信誉提升汇总记录表!$A:$A=$C$2,ROW($B:$B),36500),ROW(C42)))&"" ->  | D45: =INDEX(信誉提升汇总记录表!D:D,SMALL(IF(信誉提升汇总记录表!$A:$A=$C$2,ROW($B:$B),36500),ROW(D42)))&"" ->  | E45: =IF(ISERROR(VALUE(INDEX(信誉提升汇总记录表!E:E,SMALL(IF(信誉提升汇总记录表!$A:$A=$C$2,ROW($B:$B),36500),ROW(E42)))&"")),"",VALUE(INDEX(信誉提升汇总记录表!E:E,SMALL(IF(信誉提升汇总记录表!$A:$A=$C$2,ROW($B:$B),36500),ROW(E42)))&"")) ->  | F45: =INDEX(信誉提升汇总记录表!J:J,SMALL(IF(信誉提升汇总记录表!$A:$A=$C$2,ROW($B:$B),36500),ROW(F42)))&"" ->  | G45: =INDEX(信誉提升汇总记录表!K:K,SMALL(IF(信誉提升汇总记录表!$A:$A=$C$2,ROW($B:$B),36500),ROW(G42)))&"" ->  | H45: =INDEX(信誉提升汇总记录表!M:M,SMALL(IF(信誉提升汇总记录表!$A:$A=$C$2,ROW($B:$B),36500),ROW(H42)))&"" -> 
A46: =IF(B46="","",INDEX(信誉提升汇总记录表!B:B,SMALL(IF(信誉提升汇总记录表!$A:$A=$C$2,ROW($B:$B),36500),ROW(A43)))) ->  | B46: =INDEX(信誉提升汇总记录表!A:A,SMALL(IF(信誉提升汇总记录表!$A:$A=$C$2,ROW($B:$B),36500),ROW(B43)))&"" ->  | C46: =INDEX(信誉提升汇总记录表!C:C,SMALL(IF(信誉提升汇总记录表!$A:$A=$C$2,ROW($B:$B),36500),ROW(C43)))&"" ->  | D46: =INDEX(信誉提升汇总记录表!D:D,SMALL(IF(信誉提升汇总记录表!$A:$A=$C$2,ROW($B:$B),36500),ROW(D43)))&"" ->  | E46: =IF(ISERROR(VALUE(INDEX(信誉提升汇总记录表!E:E,SMALL(IF(信誉提升汇总记录表!$A:$A=$C$2,ROW($B:$B),36500),ROW(E43)))&"")),"",VALUE(INDEX(信誉提升汇总记录表!E:E,SMALL(IF(信誉提升汇总记录表!$A:$A=$C$2,ROW($B:$B),36500),ROW(E43)))&"")) ->  | F46: =INDEX(信誉提升汇总记录表!J:J,SMALL(IF(信誉提升汇总记录表!$A:$A=$C$2,ROW($B:$B),36500),ROW(F43)))&"" ->  | G46: =INDEX(信誉提升汇总记录表!K:K,SMALL(IF(信誉提升汇总记录表!$A:$A=$C$2,ROW($B:$B),36500),ROW(G43)))&"" ->  | H46: =INDEX(信誉提升汇总记录表!M:M,SMALL(IF(信誉提升汇总记录表!$A:$A=$C$2,ROW($B:$B),36500),ROW(H43)))&"" -> 
A47: =IF(B47="","",INDEX(信誉提升汇总记录表!B:B,SMALL(IF(信誉提升汇总记录表!$A:$A=$C$2,ROW($B:$B),36500),ROW(A44)))) ->  | B47: =INDEX(信誉提升汇总记录表!A:A,SMALL(IF(信誉提升汇总记录表!$A:$A=$C$2,ROW($B:$B),36500),ROW(B44)))&"" ->  | C47: =INDEX(信誉提升汇总记录表!C:C,SMALL(IF(信誉提升汇总记录表!$A:$A=$C$2,ROW($B:$B),36500),ROW(C44)))&"" ->  | D47: =INDEX(信誉提升汇总记录表!D:D,SMALL(IF(信誉提升汇总记录表!$A:$A=$C$2,ROW($B:$B),36500),ROW(D44)))&"" ->  | E47: =IF(ISERROR(VALUE(INDEX(信誉提升汇总记录表!E:E,SMALL(IF(信誉提升汇总记录表!$A:$A=$C$2,ROW($B:$B),36500),ROW(E44)))&"")),"",VALUE(INDEX(信誉提升汇总记录表!E:E,SMALL(IF(信誉提升汇总记录表!$A:$A=$C$2,ROW($B:$B),36500),ROW(E44)))&"")) ->  | F47: =INDEX(信誉提升汇总记录表!J:J,SMALL(IF(信誉提升汇总记录表!$A:$A=$C$2,ROW($B:$B),36500),ROW(F44)))&"" ->  | G47: =INDEX(信誉提升汇总记录表!K:K,SMALL(IF(信誉提升汇总记录表!$A:$A=$C$2,ROW($B:$B),36500),ROW(G44)))&"" ->  | H47: =INDEX(信誉提升汇总记录表!M:M,SMALL(IF(信誉提升汇总记录表!$A:$A=$C$2,ROW($B:$B),36500),ROW(H44)))&"" -> 
A48: =IF(B48="","",INDEX(信誉提升汇总记录表!B:B,SMALL(IF(信誉提升汇总记录表!$A:$A=$C$2,ROW($B:$B),36500),ROW(A45)))) ->  | B48: =INDEX(信誉提升汇总记录表!A:A,SMALL(IF(信誉提升汇总记录表!$A:$A=$C$2,ROW($B:$B),36500),ROW(B45)))&"" ->  | C48: =INDEX(信誉提升汇总记录表!C:C,SMALL(IF(信誉提升汇总记录表!$A:$A=$C$2,ROW($B:$B),36500),ROW(C45)))&"" ->  | D48: =INDEX(信誉提升汇总记录表!D:D,SMALL(IF(信誉提升汇总记录表!$A:$A=$C$2,ROW($B:$B),36500),ROW(D45)))&"" ->  | E48: =IF(ISERROR(VALUE(INDEX(信誉提升汇总记录表!E:E,SMALL(IF(信誉提升汇总记录表!$A:$A=$C$2,ROW($B:$B),36500),ROW(E45)))&"")),"",VALUE(INDEX(信誉提升汇总记录表!E:E,SMALL(IF(信誉提升汇总记录表!$A:$A=$C$2,ROW($B:$B),36500),ROW(E45)))&"")) ->  | F48: =INDEX(信誉提升汇总记录表!J:J,SMALL(IF(信誉提升汇总记录表!$A:$A=$C$2,ROW($B:$B),36500),ROW(F45)))&"" ->  | G48: =INDEX(信誉提升汇总记录表!K:K,SMALL(IF(信誉提升汇总记录表!$A:$A=$C$2,ROW($B:$B),36500),ROW(G45)))&"" ->  | H48: =INDEX(信誉提升汇总记录表!M:M,SMALL(IF(信誉提升汇总记录表!$A:$A=$C$2,ROW($B:$B),36500),ROW(H45)))&"" -> 
A49: =IF(B49="","",INDEX(信誉提升汇总记录表!B:B,SMALL(IF(信誉提升汇总记录表!$A:$A=$C$2,ROW($B:$B),36500),ROW(A46)))) ->  | B49: =INDEX(信誉提升汇总记录表!A:A,SMALL(IF(信誉提升汇总记录表!$A:$A=$C$2,ROW($B:$B),36500),ROW(B46)))&"" ->  | C49: =INDEX(信誉提升汇总记录表!C:C,SMALL(IF(信誉提升汇总记录表!$A:$A=$C$2,ROW($B:$B),36500),ROW(C46)))&"" ->  | D49: =INDEX(信誉提升汇总记录表!D:D,SMALL(IF(信誉提升汇总记录表!$A:$A=$C$2,ROW($B:$B),36500),ROW(D46)))&"" ->  | E49: =IF(ISERROR(VALUE(INDEX(信誉提升汇总记录表!E:E,SMALL(IF(信誉提升汇总记录表!$A:$A=$C$2,ROW($B:$B),36500),ROW(E46)))&"")),"",VALUE(INDEX(信誉提升汇总记录表!E:E,SMALL(IF(信誉提升汇总记录表!$A:$A=$C$2,ROW($B:$B),36500),ROW(E46)))&"")) ->  | F49: =INDEX(信誉提升汇总记录表!J:J,SMALL(IF(信誉提升汇总记录表!$A:$A=$C$2,ROW($B:$B),36500),ROW(F46)))&"" ->  | G49: =INDEX(信誉提升汇总记录表!K:K,SMALL(IF(信誉提升汇总记录表!$A:$A=$C$2,ROW($B:$B),36500),ROW(G46)))&"" ->  | H49: =INDEX(信誉提升汇总记录表!M:M,SMALL(IF(信誉提升汇总记录表!$A:$A=$C$2,ROW($B:$B),36500),ROW(H46)))&"" -> 
A50: =IF(B50="","",INDEX(信誉提升汇总记录表!B:B,SMALL(IF(信誉提升汇总记录表!$A:$A=$C$2,ROW($B:$B),36500),ROW(A47)))) ->  | B50: =INDEX(信誉提升汇总记录表!A:A,SMALL(IF(信誉提升汇总记录表!$A:$A=$C$2,ROW($B:$B),36500),ROW(B47)))&"" ->  | C50: =INDEX(信誉提升汇总记录表!C:C,SMALL(IF(信誉提升汇总记录表!$A:$A=$C$2,ROW($B:$B),36500),ROW(C47)))&"" ->  | D50: =INDEX(信誉提升汇总记录表!D:D,SMALL(IF(信誉提升汇总记录表!$A:$A=$C$2,ROW($B:$B),36500),ROW(D47)))&"" ->  | E50: =IF(ISERROR(VALUE(INDEX(信誉提升汇总记录表!E:E,SMALL(IF(信誉提升汇总记录表!$A:$A=$C$2,ROW($B:$B),36500),ROW(E47)))&"")),"",VALUE(INDEX(信誉提升汇总记录表!E:E,SMALL(IF(信誉提升汇总记录表!$A:$A=$C$2,ROW($B:$B),36500),ROW(E47)))&"")) ->  | F50: =INDEX(信誉提升汇总记录表!J:J,SMALL(IF(信誉提升汇总记录表!$A:$A=$C$2,ROW($B:$B),36500),ROW(F47)))&"" ->  | G50: =INDEX(信誉提升汇总记录表!K:K,SMALL(IF(信誉提升汇总记录表!$A:$A=$C$2,ROW($B:$B),36500),ROW(G47)))&"" ->  | H50: =INDEX(信誉提升汇总记录表!M:M,SMALL(IF(信誉提升汇总记录表!$A:$A=$C$2,ROW($B:$B),36500),ROW(H47)))&"" -> 
A51: =IF(B51="","",INDEX(信誉提升汇总记录表!B:B,SMALL(IF(信誉提升汇总记录表!$A:$A=$C$2,ROW($B:$B),36500),ROW(A48)))) ->  | B51: =INDEX(信誉提升汇总记录表!A:A,SMALL(IF(信誉提升汇总记录表!$A:$A=$C$2,ROW($B:$B),36500),ROW(B48)))&"" ->  | C51: =INDEX(信誉提升汇总记录表!C:C,SMALL(IF(信誉提升汇总记录表!$A:$A=$C$2,ROW($B:$B),36500),ROW(C48)))&"" ->  | D51: =INDEX(信誉提升汇总记录表!D:D,SMALL(IF(信誉提升汇总记录表!$A:$A=$C$2,ROW($B:$B),36500),ROW(D48)))&"" ->  | E51: =IF(ISERROR(VALUE(INDEX(信誉提升汇总记录表!E:E,SMALL(IF(信誉提升汇总记录表!$A:$A=$C$2,ROW($B:$B),36500),ROW(E48)))&"")),"",VALUE(INDEX(信誉提升汇总记录表!E:E,SMALL(IF(信誉提升汇总记录表!$A:$A=$C$2,ROW($B:$B),36500),ROW(E48)))&"")) ->  | F51: =INDEX(信誉提升汇总记录表!J:J,SMALL(IF(信誉提升汇总记录表!$A:$A=$C$2,ROW($B:$B),36500),ROW(F48)))&"" ->  | G51: =INDEX(信誉提升汇总记录表!K:K,SMALL(IF(信誉提升汇总记录表!$A:$A=$C$2,ROW($B:$B),36500),ROW(G48)))&"" ->  | H51: =INDEX(信誉提升汇总记录表!M:M,SMALL(IF(信誉提升汇总记录表!$A:$A=$C$2,ROW($B:$B),36500),ROW(H48)))&"" -> 
A52: =IF(B52="","",INDEX(信誉提升汇总记录表!B:B,SMALL(IF(信誉提升汇总记录表!$A:$A=$C$2,ROW($B:$B),36500),ROW(A49)))) ->  | B52: =INDEX(信誉提升汇总记录表!A:A,SMALL(IF(信誉提升汇总记录表!$A:$A=$C$2,ROW($B:$B),36500),ROW(B49)))&"" ->  | C52: =INDEX(信誉提升汇总记录表!C:C,SMALL(IF(信誉提升汇总记录表!$A:$A=$C$2,ROW($B:$B),36500),ROW(C49)))&"" ->  | D52: =INDEX(信誉提升汇总记录表!D:D,SMALL(IF(信誉提升汇总记录表!$A:$A=$C$2,ROW($B:$B),36500),ROW(D49)))&"" ->  | E52: =IF(ISERROR(VALUE(INDEX(信誉提升汇总记录表!E:E,SMALL(IF(信誉提升汇总记录表!$A:$A=$C$2,ROW($B:$B),36500),ROW(E49)))&"")),"",VALUE(INDEX(信誉提升汇总记录表!E:E,SMALL(IF(信誉提升汇总记录表!$A:$A=$C$2,ROW($B:$B),36500),ROW(E49)))&"")) ->  | F52: =INDEX(信誉提升汇总记录表!J:J,SMALL(IF(信誉提升汇总记录表!$A:$A=$C$2,ROW($B:$B),36500),ROW(F49)))&"" ->  | G52: =INDEX(信誉提升汇总记录表!K:K,SMALL(IF(信誉提升汇总记录表!$A:$A=$C$2,ROW($B:$B),36500),ROW(G49)))&"" ->  | H52: =INDEX(信誉提升汇总记录表!M:M,SMALL(IF(信誉提升汇总记录表!$A:$A=$C$2,ROW($B:$B),36500),ROW(H49)))&"" -> 
A53: =IF(B53="","",INDEX(信誉提升汇总记录表!B:B,SMALL(IF(信誉提升汇总记录表!$A:$A=$C$2,ROW($B:$B),36500),ROW(A50)))) ->  | B53: =INDEX(信誉提升汇总记录表!A:A,SMALL(IF(信誉提升汇总记录表!$A:$A=$C$2,ROW($B:$B),36500),ROW(B50)))&"" ->  | C53: =INDEX(信誉提升汇总记录表!C:C,SMALL(IF(信誉提升汇总记录表!$A:$A=$C$2,ROW($B:$B),36500),ROW(C50)))&"" ->  | D53: =INDEX(信誉提升汇总记录表!D:D,SMALL(IF(信誉提升汇总记录表!$A:$A=$C$2,ROW($B:$B),36500),ROW(D50)))&"" ->  | E53: =IF(ISERROR(VALUE(INDEX(信誉提升汇总记录表!E:E,SMALL(IF(信誉提升汇总记录表!$A:$A=$C$2,ROW($B:$B),36500),ROW(E50)))&"")),"",VALUE(INDEX(信誉提升汇总记录表!E:E,SMALL(IF(信誉提升汇总记录表!$A:$A=$C$2,ROW($B:$B),36500),ROW(E50)))&"")) ->  | F53: =INDEX(信誉提升汇总记录表!J:J,SMALL(IF(信誉提升汇总记录表!$A:$A=$C$2,ROW($B:$B),36500),ROW(F50)))&"" ->  | G53: =INDEX(信誉提升汇总记录表!K:K,SMALL(IF(信誉提升汇总记录表!$A:$A=$C$2,ROW($B:$B),36500),ROW(G50)))&"" ->  | H53: =INDEX(信誉提升汇总记录表!M:M,SMALL(IF(信誉提升汇总记录表!$A:$A=$C$2,ROW($B:$B),36500),ROW(H50)))&"" -> 
A54: =IF(B54="","",INDEX(信誉提升汇总记录表!B:B,SMALL(IF(信誉提升汇总记录表!$A:$A=$C$2,ROW($B:$B),36500),ROW(A51)))) ->  | B54: =INDEX(信誉提升汇总记录表!A:A,SMALL(IF(信誉提升汇总记录表!$A:$A=$C$2,ROW($B:$B),36500),ROW(B51)))&"" ->  | C54: =INDEX(信誉提升汇总记录表!C:C,SMALL(IF(信誉提升汇总记录表!$A:$A=$C$2,ROW($B:$B),36500),ROW(C51)))&"" ->  | D54: =INDEX(信誉提升汇总记录表!D:D,SMALL(IF(信誉提升汇总记录表!$A:$A=$C$2,ROW($B:$B),36500),ROW(D51)))&"" ->  | E54: =IF(ISERROR(VALUE(INDEX(信誉提升汇总记录表!E:E,SMALL(IF(信誉提升汇总记录表!$A:$A=$C$2,ROW($B:$B),36500),ROW(E51)))&"")),"",VALUE(INDEX(信誉提升汇总记录表!E:E,SMALL(IF(信誉提升汇总记录表!$A:$A=$C$2,ROW($B:$B),36500),ROW(E51)))&"")) ->  | F54: =INDEX(信誉提升汇总记录表!J:J,SMALL(IF(信誉提升汇总记录表!$A:$A=$C$2,ROW($B:$B),36500),ROW(F51)))&"" ->  | G54: =INDEX(信誉提升汇总记录表!K:K,SMALL(IF(信誉提升汇总记录表!$A:$A=$C$2,ROW($B:$B),36500),ROW(G51)))&"" ->  | H54: =INDEX(信誉提升汇总记录表!M:M,SMALL(IF(信誉提升汇总记录表!$A:$A=$C$2,ROW($B:$B),36500),ROW(H51)))&"" -> 
A55: =IF(B55="","",INDEX(信誉提升汇总记录表!B:B,SMALL(IF(信誉提升汇总记录表!$A:$A=$C$2,ROW($B:$B),36500),ROW(A52)))) ->  | B55: =INDEX(信誉提升汇总记录表!A:A,SMALL(IF(信誉提升汇总记录表!$A:$A=$C$2,ROW($B:$B),36500),ROW(B52)))&"" ->  | C55: =INDEX(信誉提升汇总记录表!C:C,SMALL(IF(信誉提升汇总记录表!$A:$A=$C$2,ROW($B:$B),36500),ROW(C52)))&"" ->  | D55: =INDEX(信誉提升汇总记录表!D:D,SMALL(IF(信誉提升汇总记录表!$A:$A=$C$2,ROW($B:$B),36500),ROW(D52)))&"" ->  | E55: =IF(ISERROR(VALUE(INDEX(信誉提升汇总记录表!E:E,SMALL(IF(信誉提升汇总记录表!$A:$A=$C$2,ROW($B:$B),36500),ROW(E52)))&"")),"",VALUE(INDEX(信誉提升汇总记录表!E:E,SMALL(IF(信誉提升汇总记录表!$A:$A=$C$2,ROW($B:$B),36500),ROW(E52)))&"")) ->  | F55: =INDEX(信誉提升汇总记录表!J:J,SMALL(IF(信誉提升汇总记录表!$A:$A=$C$2,ROW($B:$B),36500),ROW(F52)))&"" ->  | G55: =INDEX(信誉提升汇总记录表!K:K,SMALL(IF(信誉提升汇总记录表!$A:$A=$C$2,ROW($B:$B),36500),ROW(G52)))&"" ->  | H55: =INDEX(信誉提升汇总记录表!M:M,SMALL(IF(信誉提升汇总记录表!$A:$A=$C$2,ROW($B:$B),36500),ROW(H52)))&"" -> 
A56: =IF(B56="","",INDEX(信誉提升汇总记录表!B:B,SMALL(IF(信誉提升汇总记录表!$A:$A=$C$2,ROW($B:$B),36500),ROW(A53)))) ->  | B56: =INDEX(信誉提升汇总记录表!A:A,SMALL(IF(信誉提升汇总记录表!$A:$A=$C$2,ROW($B:$B),36500),ROW(B53)))&"" ->  | C56: =INDEX(信誉提升汇总记录表!C:C,SMALL(IF(信誉提升汇总记录表!$A:$A=$C$2,ROW($B:$B),36500),ROW(C53)))&"" ->  | D56: =INDEX(信誉提升汇总记录表!D:D,SMALL(IF(信誉提升汇总记录表!$A:$A=$C$2,ROW($B:$B),36500),ROW(D53)))&"" ->  | E56: =IF(ISERROR(VALUE(INDEX(信誉提升汇总记录表!E:E,SMALL(IF(信誉提升汇总记录表!$A:$A=$C$2,ROW($B:$B),36500),ROW(E53)))&"")),"",VALUE(INDEX(信誉提升汇总记录表!E:E,SMALL(IF(信誉提升汇总记录表!$A:$A=$C$2,ROW($B:$B),36500),ROW(E53)))&"")) ->  | F56: =INDEX(信誉提升汇总记录表!J:J,SMALL(IF(信誉提升汇总记录表!$A:$A=$C$2,ROW($B:$B),36500),ROW(F53)))&"" ->  | G56: =INDEX(信誉提升汇总记录表!K:K,SMALL(IF(信誉提升汇总记录表!$A:$A=$C$2,ROW($B:$B),36500),ROW(G53)))&"" ->  | H56: =INDEX(信誉提升汇总记录表!M:M,SMALL(IF(信誉提升汇总记录表!$A:$A=$C$2,ROW($B:$B),36500),ROW(H53)))&"" -> 
A57: =IF(B57="","",INDEX(信誉提升汇总记录表!B:B,SMALL(IF(信誉提升汇总记录表!$A:$A=$C$2,ROW($B:$B),36500),ROW(A54)))) ->  | B57: =INDEX(信誉提升汇总记录表!A:A,SMALL(IF(信誉提升汇总记录表!$A:$A=$C$2,ROW($B:$B),36500),ROW(B54)))&"" ->  | C57: =INDEX(信誉提升汇总记录表!C:C,SMALL(IF(信誉提升汇总记录表!$A:$A=$C$2,ROW($B:$B),36500),ROW(C54)))&"" ->  | D57: =INDEX(信誉提升汇总记录表!D:D,SMALL(IF(信誉提升汇总记录表!$A:$A=$C$2,ROW($B:$B),36500),ROW(D54)))&"" ->  | E57: =IF(ISERROR(VALUE(INDEX(信誉提升汇总记录表!E:E,SMALL(IF(信誉提升汇总记录表!$A:$A=$C$2,ROW($B:$B),36500),ROW(E54)))&"")),"",VALUE(INDEX(信誉提升汇总记录表!E:E,SMALL(IF(信誉提升汇总记录表!$A:$A=$C$2,ROW($B:$B),36500),ROW(E54)))&"")) ->  | F57: =INDEX(信誉提升汇总记录表!J:J,SMALL(IF(信誉提升汇总记录表!$A:$A=$C$2,ROW($B:$B),36500),ROW(F54)))&"" ->  | G57: =INDEX(信誉提升汇总记录表!K:K,SMALL(IF(信誉提升汇总记录表!$A:$A=$C$2,ROW($B:$B),36500),ROW(G54)))&"" ->  | H57: =INDEX(信誉提升汇总记录表!M:M,SMALL(IF(信誉提升汇总记录表!$A:$A=$C$2,ROW($B:$B),36500),ROW(H54)))&"" -> 
A58: =IF(B58="","",INDEX(信誉提升汇总记录表!B:B,SMALL(IF(信誉提升汇总记录表!$A:$A=$C$2,ROW($B:$B),36500),ROW(A55)))) ->  | B58: =INDEX(信誉提升汇总记录表!A:A,SMALL(IF(信誉提升汇总记录表!$A:$A=$C$2,ROW($B:$B),36500),ROW(B55)))&"" ->  | C58: =INDEX(信誉提升汇总记录表!C:C,SMALL(IF(信誉提升汇总记录表!$A:$A=$C$2,ROW($B:$B),36500),ROW(C55)))&"" ->  | D58: =INDEX(信誉提升汇总记录表!D:D,SMALL(IF(信誉提升汇总记录表!$A:$A=$C$2,ROW($B:$B),36500),ROW(D55)))&"" ->  | E58: =IF(ISERROR(VALUE(INDEX(信誉提升汇总记录表!E:E,SMALL(IF(信誉提升汇总记录表!$A:$A=$C$2,ROW($B:$B),36500),ROW(E55)))&"")),"",VALUE(INDEX(信誉提升汇总记录表!E:E,SMALL(IF(信誉提升汇总记录表!$A:$A=$C$2,ROW($B:$B),36500),ROW(E55)))&"")) ->  | F58: =INDEX(信誉提升汇总记录表!J:J,SMALL(IF(信誉提升汇总记录表!$A:$A=$C$2,ROW($B:$B),36500),ROW(F55)))&"" ->  | G58: =INDEX(信誉提升汇总记录表!K:K,SMALL(IF(信誉提升汇总记录表!$A:$A=$C$2,ROW($B:$B),36500),ROW(G55)))&"" ->  | H58: =INDEX(信誉提升汇总记录表!M:M,SMALL(IF(信誉提升汇总记录表!$A:$A=$C$2,ROW($B:$B),36500),ROW(H55)))&"" -> 
A59: =IF(B59="","",INDEX(信誉提升汇总记录表!B:B,SMALL(IF(信誉提升汇总记录表!$A:$A=$C$2,ROW($B:$B),36500),ROW(A56)))) ->  | B59: =INDEX(信誉提升汇总记录表!A:A,SMALL(IF(信誉提升汇总记录表!$A:$A=$C$2,ROW($B:$B),36500),ROW(B56)))&"" ->  | C59: =INDEX(信誉提升汇总记录表!C:C,SMALL(IF(信誉提升汇总记录表!$A:$A=$C$2,ROW($B:$B),36500),ROW(C56)))&"" ->  | D59: =INDEX(信誉提升汇总记录表!D:D,SMALL(IF(信誉提升汇总记录表!$A:$A=$C$2,ROW($B:$B),36500),ROW(D56)))&"" ->  | E59: =IF(ISERROR(VALUE(INDEX(信誉提升汇总记录表!E:E,SMALL(IF(信誉提升汇总记录表!$A:$A=$C$2,ROW($B:$B),36500),ROW(E56)))&"")),"",VALUE(INDEX(信誉提升汇总记录表!E:E,SMALL(IF(信誉提升汇总记录表!$A:$A=$C$2,ROW($B:$B),36500),ROW(E56)))&"")) ->  | F59: =INDEX(信誉提升汇总记录表!J:J,SMALL(IF(信誉提升汇总记录表!$A:$A=$C$2,ROW($B:$B),36500),ROW(F56)))&"" ->  | G59: =INDEX(信誉提升汇总记录表!K:K,SMALL(IF(信誉提升汇总记录表!$A:$A=$C$2,ROW($B:$B),36500),ROW(G56)))&"" ->  | H59: =INDEX(信誉提升汇总记录表!M:M,SMALL(IF(信誉提升汇总记录表!$A:$A=$C$2,ROW($B:$B),36500),ROW(H56)))&"" -> 
A60: =IF(B60="","",INDEX(信誉提升汇总记录表!B:B,SMALL(IF(信誉提升汇总记录表!$A:$A=$C$2,ROW($B:$B),36500),ROW(A57)))) ->  | B60: =INDEX(信誉提升汇总记录表!A:A,SMALL(IF(信誉提升汇总记录表!$A:$A=$C$2,ROW($B:$B),36500),ROW(B57)))&"" ->  | C60: =INDEX(信誉提升汇总记录表!C:C,SMALL(IF(信誉提升汇总记录表!$A:$A=$C$2,ROW($B:$B),36500),ROW(C57)))&"" ->  | D60: =INDEX(信誉提升汇总记录表!D:D,SMALL(IF(信誉提升汇总记录表!$A:$A=$C$2,ROW($B:$B),36500),ROW(D57)))&"" ->  | E60: =IF(ISERROR(VALUE(INDEX(信誉提升汇总记录表!E:E,SMALL(IF(信誉提升汇总记录表!$A:$A=$C$2,ROW($B:$B),36500),ROW(E57)))&"")),"",VALUE(INDEX(信誉提升汇总记录表!E:E,SMALL(IF(信誉提升汇总记录表!$A:$A=$C$2,ROW($B:$B),36500),ROW(E57)))&"")) ->  | F60: =INDEX(信誉提升汇总记录表!J:J,SMALL(IF(信誉提升汇总记录表!$A:$A=$C$2,ROW($B:$B),36500),ROW(F57)))&"" ->  | G60: =INDEX(信誉提升汇总记录表!K:K,SMALL(IF(信誉提升汇总记录表!$A:$A=$C$2,ROW($B:$B),36500),ROW(G57)))&"" ->  | H60: =INDEX(信誉提升汇总记录表!M:M,SMALL(IF(信誉提升汇总记录表!$A:$A=$C$2,ROW($B:$B),36500),ROW(H57)))&"" -> 
A61: =IF(B61="","",INDEX(信誉提升汇总记录表!B:B,SMALL(IF(信誉提升汇总记录表!$A:$A=$C$2,ROW($B:$B),36500),ROW(A58)))) ->  | B61: =INDEX(信誉提升汇总记录表!A:A,SMALL(IF(信誉提升汇总记录表!$A:$A=$C$2,ROW($B:$B),36500),ROW(B58)))&"" ->  | C61: =INDEX(信誉提升汇总记录表!C:C,SMALL(IF(信誉提升汇总记录表!$A:$A=$C$2,ROW($B:$B),36500),ROW(C58)))&"" ->  | D61: =INDEX(信誉提升汇总记录表!D:D,SMALL(IF(信誉提升汇总记录表!$A:$A=$C$2,ROW($B:$B),36500),ROW(D58)))&"" ->  | E61: =IF(ISERROR(VALUE(INDEX(信誉提升汇总记录表!E:E,SMALL(IF(信誉提升汇总记录表!$A:$A=$C$2,ROW($B:$B),36500),ROW(E58)))&"")),"",VALUE(INDEX(信誉提升汇总记录表!E:E,SMALL(IF(信誉提升汇总记录表!$A:$A=$C$2,ROW($B:$B),36500),ROW(E58)))&"")) ->  | F61: =INDEX(信誉提升汇总记录表!J:J,SMALL(IF(信誉提升汇总记录表!$A:$A=$C$2,ROW($B:$B),36500),ROW(F58)))&"" ->  | G61: =INDEX(信誉提升汇总记录表!K:K,SMALL(IF(信誉提升汇总记录表!$A:$A=$C$2,ROW($B:$B),36500),ROW(G58)))&"" ->  | H61: =INDEX(信誉提升汇总记录表!M:M,SMALL(IF(信誉提升汇总记录表!$A:$A=$C$2,ROW($B:$B),36500),ROW(H58)))&"" -> 
A62: =IF(B62="","",INDEX(信誉提升汇总记录表!B:B,SMALL(IF(信誉提升汇总记录表!$A:$A=$C$2,ROW($B:$B),36500),ROW(A59)))) ->  | B62: =INDEX(信誉提升汇总记录表!A:A,SMALL(IF(信誉提升汇总记录表!$A:$A=$C$2,ROW($B:$B),36500),ROW(B59)))&"" ->  | C62: =INDEX(信誉提升汇总记录表!C:C,SMALL(IF(信誉提升汇总记录表!$A:$A=$C$2,ROW($B:$B),36500),ROW(C59)))&"" ->  | D62: =INDEX(信誉提升汇总记录表!D:D,SMALL(IF(信誉提升汇总记录表!$A:$A=$C$2,ROW($B:$B),36500),ROW(D59)))&"" ->  | E62: =IF(ISERROR(VALUE(INDEX(信誉提升汇总记录表!E:E,SMALL(IF(信誉提升汇总记录表!$A:$A=$C$2,ROW($B:$B),36500),ROW(E59)))&"")),"",VALUE(INDEX(信誉提升汇总记录表!E:E,SMALL(IF(信誉提升汇总记录表!$A:$A=$C$2,ROW($B:$B),36500),ROW(E59)))&"")) ->  | F62: =INDEX(信誉提升汇总记录表!J:J,SMALL(IF(信誉提升汇总记录表!$A:$A=$C$2,ROW($B:$B),36500),ROW(F59)))&"" ->  | G62: =INDEX(信誉提升汇总记录表!K:K,SMALL(IF(信誉提升汇总记录表!$A:$A=$C$2,ROW($B:$B),36500),ROW(G59)))&"" ->  | H62: =INDEX(信誉提升汇总记录表!M:M,SMALL(IF(信誉提升汇总记录表!$A:$A=$C$2,ROW($B:$B),36500),ROW(H59)))&"" -> 
A63: =IF(B63="","",INDEX(信誉提升汇总记录表!B:B,SMALL(IF(信誉提升汇总记录表!$A:$A=$C$2,ROW($B:$B),36500),ROW(A60)))) ->  | B63: =INDEX(信誉提升汇总记录表!A:A,SMALL(IF(信誉提升汇总记录表!$A:$A=$C$2,ROW($B:$B),36500),ROW(B60)))&"" ->  | C63: =INDEX(信誉提升汇总记录表!C:C,SMALL(IF(信誉提升汇总记录表!$A:$A=$C$2,ROW($B:$B),36500),ROW(C60)))&"" ->  | D63: =INDEX(信誉提升汇总记录表!D:D,SMALL(IF(信誉提升汇总记录表!$A:$A=$C$2,ROW($B:$B),36500),ROW(D60)))&"" ->  | E63: =IF(ISERROR(VALUE(INDEX(信誉提升汇总记录表!E:E,SMALL(IF(信誉提升汇总记录表!$A:$A=$C$2,ROW($B:$B),36500),ROW(E60)))&"")),"",VALUE(INDEX(信誉提升汇总记录表!E:E,SMALL(IF(信誉提升汇总记录表!$A:$A=$C$2,ROW($B:$B),36500),ROW(E60)))&"")) ->  | F63: =INDEX(信誉提升汇总记录表!J:J,SMALL(IF(信誉提升汇总记录表!$A:$A=$C$2,ROW($B:$B),36500),ROW(F60)))&"" ->  | G63: =INDEX(信誉提升汇总记录表!K:K,SMALL(IF(信誉提升汇总记录表!$A:$A=$C$2,ROW($B:$B),36500),ROW(G60)))&"" ->  | H63: =INDEX(信誉提升汇总记录表!M:M,SMALL(IF(信誉提升汇总记录表!$A:$A=$C$2,ROW($B:$B),36500),ROW(H60)))&"" -> 
A64: =IF(B64="","",INDEX(信誉提升汇总记录表!B:B,SMALL(IF(信誉提升汇总记录表!$A:$A=$C$2,ROW($B:$B),36500),ROW(A61)))) ->  | B64: =INDEX(信誉提升汇总记录表!A:A,SMALL(IF(信誉提升汇总记录表!$A:$A=$C$2,ROW($B:$B),36500),ROW(B61)))&"" ->  | C64: =INDEX(信誉提升汇总记录表!C:C,SMALL(IF(信誉提升汇总记录表!$A:$A=$C$2,ROW($B:$B),36500),ROW(C61)))&"" ->  | D64: =INDEX(信誉提升汇总记录表!D:D,SMALL(IF(信誉提升汇总记录表!$A:$A=$C$2,ROW($B:$B),36500),ROW(D61)))&"" ->  | E64: =IF(ISERROR(VALUE(INDEX(信誉提升汇总记录表!E:E,SMALL(IF(信誉提升汇总记录表!$A:$A=$C$2,ROW($B:$B),36500),ROW(E61)))&"")),"",VALUE(INDEX(信誉提升汇总记录表!E:E,SMALL(IF(信誉提升汇总记录表!$A:$A=$C$2,ROW($B:$B),36500),ROW(E61)))&"")) ->  | F64: =INDEX(信誉提升汇总记录表!J:J,SMALL(IF(信誉提升汇总记录表!$A:$A=$C$2,ROW($B:$B),36500),ROW(F61)))&"" ->  | G64: =INDEX(信誉提升汇总记录表!K:K,SMALL(IF(信誉提升汇总记录表!$A:$A=$C$2,ROW($B:$B),36500),ROW(G61)))&"" ->  | H64: =INDEX(信誉提升汇总记录表!M:M,SMALL(IF(信誉提升汇总记录表!$A:$A=$C$2,ROW($B:$B),36500),ROW(H61)))&"" -> 
A65: =IF(B65="","",INDEX(信誉提升汇总记录表!B:B,SMALL(IF(信誉提升汇总记录表!$A:$A=$C$2,ROW($B:$B),36500),ROW(A62)))) ->  | B65: =INDEX(信誉提升汇总记录表!A:A,SMALL(IF(信誉提升汇总记录表!$A:$A=$C$2,ROW($B:$B),36500),ROW(B62)))&"" ->  | C65: =INDEX(信誉提升汇总记录表!C:C,SMALL(IF(信誉提升汇总记录表!$A:$A=$C$2,ROW($B:$B),36500),ROW(C62)))&"" ->  | D65: =INDEX(信誉提升汇总记录表!D:D,SMALL(IF(信誉提升汇总记录表!$A:$A=$C$2,ROW($B:$B),36500),ROW(D62)))&"" ->  | E65: =IF(ISERROR(VALUE(INDEX(信誉提升汇总记录表!E:E,SMALL(IF(信誉提升汇总记录表!$A:$A=$C$2,ROW($B:$B),36500),ROW(E62)))&"")),"",VALUE(INDEX(信誉提升汇总记录表!E:E,SMALL(IF(信誉提升汇总记录表!$A:$A=$C$2,ROW($B:$B),36500),ROW(E62)))&"")) ->  | F65: =INDEX(信誉提升汇总记录表!J:J,SMALL(IF(信誉提升汇总记录表!$A:$A=$C$2,ROW($B:$B),36500),ROW(F62)))&"" ->  | G65: =INDEX(信誉提升汇总记录表!K:K,SMALL(IF(信誉提升汇总记录表!$A:$A=$C$2,ROW($B:$B),36500),ROW(G62)))&"" ->  | H65: =INDEX(信誉提升汇总记录表!M:M,SMALL(IF(信誉提升汇总记录表!$A:$A=$C$2,ROW($B:$B),36500),ROW(H62)))&"" -> 
A66: =IF(B66="","",INDEX(信誉提升汇总记录表!B:B,SMALL(IF(信誉提升汇总记录表!$A:$A=$C$2,ROW($B:$B),36500),ROW(A63)))) ->  | B66: =INDEX(信誉提升汇总记录表!A:A,SMALL(IF(信誉提升汇总记录表!$A:$A=$C$2,ROW($B:$B),36500),ROW(B63)))&"" ->  | C66: =INDEX(信誉提升汇总记录表!C:C,SMALL(IF(信誉提升汇总记录表!$A:$A=$C$2,ROW($B:$B),36500),ROW(C63)))&"" ->  | D66: =INDEX(信誉提升汇总记录表!D:D,SMALL(IF(信誉提升汇总记录表!$A:$A=$C$2,ROW($B:$B),36500),ROW(D63)))&"" ->  | E66: =IF(ISERROR(VALUE(INDEX(信誉提升汇总记录表!E:E,SMALL(IF(信誉提升汇总记录表!$A:$A=$C$2,ROW($B:$B),36500),ROW(E63)))&"")),"",VALUE(INDEX(信誉提升汇总记录表!E:E,SMALL(IF(信誉提升汇总记录表!$A:$A=$C$2,ROW($B:$B),36500),ROW(E63)))&"")) ->  | F66: =INDEX(信誉提升汇总记录表!J:J,SMALL(IF(信誉提升汇总记录表!$A:$A=$C$2,ROW($B:$B),36500),ROW(F63)))&"" ->  | G66: =INDEX(信誉提升汇总记录表!K:K,SMALL(IF(信誉提升汇总记录表!$A:$A=$C$2,ROW($B:$B),36500),ROW(G63)))&"" ->  | H66: =INDEX(信誉提升汇总记录表!M:M,SMALL(IF(信誉提升汇总记录表!$A:$A=$C$2,ROW($B:$B),36500),ROW(H63)))&"" -> 
A67: =IF(B67="","",INDEX(信誉提升汇总记录表!B:B,SMALL(IF(信誉提升汇总记录表!$A:$A=$C$2,ROW($B:$B),36500),ROW(A64)))) ->  | B67: =INDEX(信誉提升汇总记录表!A:A,SMALL(IF(信誉提升汇总记录表!$A:$A=$C$2,ROW($B:$B),36500),ROW(B64)))&"" ->  | C67: =INDEX(信誉提升汇总记录表!C:C,SMALL(IF(信誉提升汇总记录表!$A:$A=$C$2,ROW($B:$B),36500),ROW(C64)))&"" ->  | D67: =INDEX(信誉提升汇总记录表!D:D,SMALL(IF(信誉提升汇总记录表!$A:$A=$C$2,ROW($B:$B),36500),ROW(D64)))&"" ->  | E67: =IF(ISERROR(VALUE(INDEX(信誉提升汇总记录表!E:E,SMALL(IF(信誉提升汇总记录表!$A:$A=$C$2,ROW($B:$B),36500),ROW(E64)))&"")),"",VALUE(INDEX(信誉提升汇总记录表!E:E,SMALL(IF(信誉提升汇总记录表!$A:$A=$C$2,ROW($B:$B),36500),ROW(E64)))&"")) ->  | F67: =INDEX(信誉提升汇总记录表!J:J,SMALL(IF(信誉提升汇总记录表!$A:$A=$C$2,ROW($B:$B),36500),ROW(F64)))&"" ->  | G67: =INDEX(信誉提升汇总记录表!K:K,SMALL(IF(信誉提升汇总记录表!$A:$A=$C$2,ROW($B:$B),36500),ROW(G64)))&"" ->  | H67: =INDEX(信誉提升汇总记录表!M:M,SMALL(IF(信誉提升汇总记录表!$A:$A=$C$2,ROW($B:$B),36500),ROW(H64)))&"" -> 
A68: =IF(B68="","",INDEX(信誉提升汇总记录表!B:B,SMALL(IF(信誉提升汇总记录表!$A:$A=$C$2,ROW($B:$B),36500),ROW(A65)))) ->  | B68: =INDEX(信誉提升汇总记录表!A:A,SMALL(IF(信誉提升汇总记录表!$A:$A=$C$2,ROW($B:$B),36500),ROW(B65)))&"" ->  | C68: =INDEX(信誉提升汇总记录表!C:C,SMALL(IF(信誉提升汇总记录表!$A:$A=$C$2,ROW($B:$B),36500),ROW(C65)))&"" ->  | D68: =INDEX(信誉提升汇总记录表!D:D,SMALL(IF(信誉提升汇总记录表!$A:$A=$C$2,ROW($B:$B),36500),ROW(D65)))&"" ->  | E68: =IF(ISERROR(VALUE(INDEX(信誉提升汇总记录表!E:E,SMALL(IF(信誉提升汇总记录表!$A:$A=$C$2,ROW($B:$B),36500),ROW(E65)))&"")),"",VALUE(INDEX(信誉提升汇总记录表!E:E,SMALL(IF(信誉提升汇总记录表!$A:$A=$C$2,ROW($B:$B),36500),ROW(E65)))&"")) ->  | F68: =INDEX(信誉提升汇总记录表!J:J,SMALL(IF(信誉提升汇总记录表!$A:$A=$C$2,ROW($B:$B),36500),ROW(F65)))&"" ->  | G68: =INDEX(信誉提升汇总记录表!K:K,SMALL(IF(信誉提升汇总记录表!$A:$A=$C$2,ROW($B:$B),36500),ROW(G65)))&"" ->  | H68: =INDEX(信誉提升汇总记录表!M:M,SMALL(IF(信誉提升汇总记录表!$A:$A=$C$2,ROW($B:$B),36500),ROW(H65)))&"" -> 
A69: =IF(B69="","",INDEX(信誉提升汇总记录表!B:B,SMALL(IF(信誉提升汇总记录表!$A:$A=$C$2,ROW($B:$B),36500),ROW(A66)))) ->  | B69: =INDEX(信誉提升汇总记录表!A:A,SMALL(IF(信誉提升汇总记录表!$A:$A=$C$2,ROW($B:$B),36500),ROW(B66)))&"" ->  | C69: =INDEX(信誉提升汇总记录表!C:C,SMALL(IF(信誉提升汇总记录表!$A:$A=$C$2,ROW($B:$B),36500),ROW(C66)))&"" ->  | D69: =INDEX(信誉提升汇总记录表!D:D,SMALL(IF(信誉提升汇总记录表!$A:$A=$C$2,ROW($B:$B),36500),ROW(D66)))&"" ->  | E69: =IF(ISERROR(VALUE(INDEX(信誉提升汇总记录表!E:E,SMALL(IF(信誉提升汇总记录表!$A:$A=$C$2,ROW($B:$B),36500),ROW(E66)))&"")),"",VALUE(INDEX(信誉提升汇总记录表!E:E,SMALL(IF(信誉提升汇总记录表!$A:$A=$C$2,ROW($B:$B),36500),ROW(E66)))&"")) ->  | F69: =INDEX(信誉提升汇总记录表!J:J,SMALL(IF(信誉提升汇总记录表!$A:$A=$C$2,ROW($B:$B),36500),ROW(F66)))&"" ->  | G69: =INDEX(信誉提升汇总记录表!K:K,SMALL(IF(信誉提升汇总记录表!$A:$A=$C$2,ROW($B:$B),36500),ROW(G66)))&"" ->  | H69: =INDEX(信誉提升汇总记录表!M:M,SMALL(IF(信誉提升汇总记录表!$A:$A=$C$2,ROW($B:$B),36500),ROW(H66)))&"" -> 
A70: =IF(B70="","",INDEX(信誉提升汇总记录表!B:B,SMALL(IF(信誉提升汇总记录表!$A:$A=$C$2,ROW($B:$B),36500),ROW(A67)))) ->  | B70: =INDEX(信誉提升汇总记录表!A:A,SMALL(IF(信誉提升汇总记录表!$A:$A=$C$2,ROW($B:$B),36500),ROW(B67)))&"" ->  | C70: =INDEX(信誉提升汇总记录表!C:C,SMALL(IF(信誉提升汇总记录表!$A:$A=$C$2,ROW($B:$B),36500),ROW(C67)))&"" ->  | D70: =INDEX(信誉提升汇总记录表!D:D,SMALL(IF(信誉提升汇总记录表!$A:$A=$C$2,ROW($B:$B),36500),ROW(D67)))&"" ->  | E70: =IF(ISERROR(VALUE(INDEX(信誉提升汇总记录表!E:E,SMALL(IF(信誉提升汇总记录表!$A:$A=$C$2,ROW($B:$B),36500),ROW(E67)))&"")),"",VALUE(INDEX(信誉提升汇总记录表!E:E,SMALL(IF(信誉提升汇总记录表!$A:$A=$C$2,ROW($B:$B),36500),ROW(E67)))&"")) ->  | F70: =INDEX(信誉提升汇总记录表!J:J,SMALL(IF(信誉提升汇总记录表!$A:$A=$C$2,ROW($B:$B),36500),ROW(F67)))&"" ->  | G70: =INDEX(信誉提升汇总记录表!K:K,SMALL(IF(信誉提升汇总记录表!$A:$A=$C$2,ROW($B:$B),36500),ROW(G67)))&"" ->  | H70: =INDEX(信誉提升汇总记录表!M:M,SMALL(IF(信誉提升汇总记录表!$A:$A=$C$2,ROW($B:$B),36500),ROW(H67)))&"" -> 
A71: =IF(B71="","",INDEX(信誉提升汇总记录表!B:B,SMALL(IF(信誉提升汇总记录表!$A:$A=$C$2,ROW($B:$B),36500),ROW(A68)))) ->  | B71: =INDEX(信誉提升汇总记录表!A:A,SMALL(IF(信誉提升汇总记录表!$A:$A=$C$2,ROW($B:$B),36500),ROW(B68)))&"" ->  | C71: =INDEX(信誉提升汇总记录表!C:C,SMALL(IF(信誉提升汇总记录表!$A:$A=$C$2,ROW($B:$B),36500),ROW(C68)))&"" ->  | D71: =INDEX(信誉提升汇总记录表!D:D,SMALL(IF(信誉提升汇总记录表!$A:$A=$C$2,ROW($B:$B),36500),ROW(D68)))&"" ->  | E71: =IF(ISERROR(VALUE(INDEX(信誉提升汇总记录表!E:E,SMALL(IF(信誉提升汇总记录表!$A:$A=$C$2,ROW($B:$B),36500),ROW(E68)))&"")),"",VALUE(INDEX(信誉提升汇总记录表!E:E,SMALL(IF(信誉提升汇总记录表!$A:$A=$C$2,ROW($B:$B),36500),ROW(E68)))&"")) ->  | F71: =INDEX(信誉提升汇总记录表!J:J,SMALL(IF(信誉提升汇总记录表!$A:$A=$C$2,ROW($B:$B),36500),ROW(F68)))&"" ->  | G71: =INDEX(信誉提升汇总记录表!K:K,SMALL(IF(信誉提升汇总记录表!$A:$A=$C$2,ROW($B:$B),36500),ROW(G68)))&"" ->  | H71: =INDEX(信誉提升汇总记录表!M:M,SMALL(IF(信誉提升汇总记录表!$A:$A=$C$2,ROW($B:$B),36500),ROW(H68)))&"" -> 
A72: =IF(B72="","",INDEX(信誉提升汇总记录表!B:B,SMALL(IF(信誉提升汇总记录表!$A:$A=$C$2,ROW($B:$B),36500),ROW(A69)))) ->  | B72: =INDEX(信誉提升汇总记录表!A:A,SMALL(IF(信誉提升汇总记录表!$A:$A=$C$2,ROW($B:$B),36500),ROW(B69)))&"" ->  | C72: =INDEX(信誉提升汇总记录表!C:C,SMALL(IF(信誉提升汇总记录表!$A:$A=$C$2,ROW($B:$B),36500),ROW(C69)))&"" ->  | D72: =INDEX(信誉提升汇总记录表!D:D,SMALL(IF(信誉提升汇总记录表!$A:$A=$C$2,ROW($B:$B),36500),ROW(D69)))&"" ->  | E72: =IF(ISERROR(VALUE(INDEX(信誉提升汇总记录表!E:E,SMALL(IF(信誉提升汇总记录表!$A:$A=$C$2,ROW($B:$B),36500),ROW(E69)))&"")),"",VALUE(INDEX(信誉提升汇总记录表!E:E,SMALL(IF(信誉提升汇总记录表!$A:$A=$C$2,ROW($B:$B),36500),ROW(E69)))&"")) ->  | F72: =INDEX(信誉提升汇总记录表!J:J,SMALL(IF(信誉提升汇总记录表!$A:$A=$C$2,ROW($B:$B),36500),ROW(F69)))&"" ->  | G72: =INDEX(信誉提升汇总记录表!K:K,SMALL(IF(信誉提升汇总记录表!$A:$A=$C$2,ROW($B:$B),36500),ROW(G69)))&"" ->  | H72: =INDEX(信誉提升汇总记录表!M:M,SMALL(IF(信誉提升汇总记录表!$A:$A=$C$2,ROW($B:$B),36500),ROW(H69)))&"" -> 
A73: =IF(B73="","",INDEX(信誉提升汇总记录表!B:B,SMALL(IF(信誉提升汇总记录表!$A:$A=$C$2,ROW($B:$B),36500),ROW(A70)))) ->  | B73: =INDEX(信誉提升汇总记录表!A:A,SMALL(IF(信誉提升汇总记录表!$A:$A=$C$2,ROW($B:$B),36500),ROW(B70)))&"" ->  | C73: =INDEX(信誉提升汇总记录表!C:C,SMALL(IF(信誉提升汇总记录表!$A:$A=$C$2,ROW($B:$B),36500),ROW(C70)))&"" ->  | D73: =INDEX(信誉提升汇总记录表!D:D,SMALL(IF(信誉提升汇总记录表!$A:$A=$C$2,ROW($B:$B),36500),ROW(D70)))&"" ->  | E73: =IF(ISERROR(VALUE(INDEX(信誉提升汇总记录表!E:E,SMALL(IF(信誉提升汇总记录表!$A:$A=$C$2,ROW($B:$B),36500),ROW(E70)))&"")),"",VALUE(INDEX(信誉提升汇总记录表!E:E,SMALL(IF(信誉提升汇总记录表!$A:$A=$C$2,ROW($B:$B),36500),ROW(E70)))&"")) ->  | F73: =INDEX(信誉提升汇总记录表!J:J,SMALL(IF(信誉提升汇总记录表!$A:$A=$C$2,ROW($B:$B),36500),ROW(F70)))&"" ->  | G73: =INDEX(信誉提升汇总记录表!K:K,SMALL(IF(信誉提升汇总记录表!$A:$A=$C$2,ROW($B:$B),36500),ROW(G70)))&"" ->  | H73: =INDEX(信誉提升汇总记录表!M:M,SMALL(IF(信誉提升汇总记录表!$A:$A=$C$2,ROW($B:$B),36500),ROW(H70)))&"" -> 
A74: =IF(B74="","",INDEX(信誉提升汇总记录表!B:B,SMALL(IF(信誉提升汇总记录表!$A:$A=$C$2,ROW($B:$B),36500),ROW(A71)))) ->  | B74: =INDEX(信誉提升汇总记录表!A:A,SMALL(IF(信誉提升汇总记录表!$A:$A=$C$2,ROW($B:$B),36500),ROW(B71)))&"" ->  | C74: =INDEX(信誉提升汇总记录表!C:C,SMALL(IF(信誉提升汇总记录表!$A:$A=$C$2,ROW($B:$B),36500),ROW(C71)))&"" ->  | D74: =INDEX(信誉提升汇总记录表!D:D,SMALL(IF(信誉提升汇总记录表!$A:$A=$C$2,ROW($B:$B),36500),ROW(D71)))&"" ->  | E74: =IF(ISERROR(VALUE(INDEX(信誉提升汇总记录表!E:E,SMALL(IF(信誉提升汇总记录表!$A:$A=$C$2,ROW($B:$B),36500),ROW(E71)))&"")),"",VALUE(INDEX(信誉提升汇总记录表!E:E,SMALL(IF(信誉提升汇总记录表!$A:$A=$C$2,ROW($B:$B),36500),ROW(E71)))&"")) ->  | F74: =INDEX(信誉提升汇总记录表!J:J,SMALL(IF(信誉提升汇总记录表!$A:$A=$C$2,ROW($B:$B),36500),ROW(F71)))&"" ->  | G74: =INDEX(信誉提升汇总记录表!K:K,SMALL(IF(信誉提升汇总记录表!$A:$A=$C$2,ROW($B:$B),36500),ROW(G71)))&"" ->  | H74: =INDEX(信誉提升汇总记录表!M:M,SMALL(IF(信誉提升汇总记录表!$A:$A=$C$2,ROW($B:$B),36500),ROW(H71)))&"" -> 
A75: =IF(B75="","",INDEX(信誉提升汇总记录表!B:B,SMALL(IF(信誉提升汇总记录表!$A:$A=$C$2,ROW($B:$B),36500),ROW(A72)))) ->  | B75: =INDEX(信誉提升汇总记录表!A:A,SMALL(IF(信誉提升汇总记录表!$A:$A=$C$2,ROW($B:$B),36500),ROW(B72)))&"" ->  | C75: =INDEX(信誉提升汇总记录表!C:C,SMALL(IF(信誉提升汇总记录表!$A:$A=$C$2,ROW($B:$B),36500),ROW(C72)))&"" ->  | D75: =INDEX(信誉提升汇总记录表!D:D,SMALL(IF(信誉提升汇总记录表!$A:$A=$C$2,ROW($B:$B),36500),ROW(D72)))&"" ->  | E75: =IF(ISERROR(VALUE(INDEX(信誉提升汇总记录表!E:E,SMALL(IF(信誉提升汇总记录表!$A:$A=$C$2,ROW($B:$B),36500),ROW(E72)))&"")),"",VALUE(INDEX(信誉提升汇总记录表!E:E,SMALL(IF(信誉提升汇总记录表!$A:$A=$C$2,ROW($B:$B),36500),ROW(E72)))&"")) ->  | F75: =INDEX(信誉提升汇总记录表!J:J,SMALL(IF(信誉提升汇总记录表!$A:$A=$C$2,ROW($B:$B),36500),ROW(F72)))&"" ->  | G75: =INDEX(信誉提升汇总记录表!K:K,SMALL(IF(信誉提升汇总记录表!$A:$A=$C$2,ROW($B:$B),36500),ROW(G72)))&"" ->  | H75: =INDEX(信誉提升汇总记录表!M:M,SMALL(IF(信誉提升汇总记录表!$A:$A=$C$2,ROW($B:$B),36500),ROW(H72)))&"" -> 
A76: =IF(B76="","",INDEX(信誉提升汇总记录表!B:B,SMALL(IF(信誉提升汇总记录表!$A:$A=$C$2,ROW($B:$B),36500),ROW(A73)))) ->  | B76: =INDEX(信誉提升汇总记录表!A:A,SMALL(IF(信誉提升汇总记录表!$A:$A=$C$2,ROW($B:$B),36500),ROW(B73)))&"" ->  | C76: =INDEX(信誉提升汇总记录表!C:C,SMALL(IF(信誉提升汇总记录表!$A:$A=$C$2,ROW($B:$B),36500),ROW(C73)))&"" ->  | D76: =INDEX(信誉提升汇总记录表!D:D,SMALL(IF(信誉提升汇总记录表!$A:$A=$C$2,ROW($B:$B),36500),ROW(D73)))&"" ->  | E76: =IF(ISERROR(VALUE(INDEX(信誉提升汇总记录表!E:E,SMALL(IF(信誉提升汇总记录表!$A:$A=$C$2,ROW($B:$B),36500),ROW(E73)))&"")),"",VALUE(INDEX(信誉提升汇总记录表!E:E,SMALL(IF(信誉提升汇总记录表!$A:$A=$C$2,ROW($B:$B),36500),ROW(E73)))&"")) ->  | F76: =INDEX(信誉提升汇总记录表!J:J,SMALL(IF(信誉提升汇总记录表!$A:$A=$C$2,ROW($B:$B),36500),ROW(F73)))&"" ->  | G76: =INDEX(信誉提升汇总记录表!K:K,SMALL(IF(信誉提升汇总记录表!$A:$A=$C$2,ROW($B:$B),36500),ROW(G73)))&"" ->  | H76: =INDEX(信誉提升汇总记录表!M:M,SMALL(IF(信誉提升汇总记录表!$A:$A=$C$2,ROW($B:$B),36500),ROW(H73)))&"" -> 
A77: =IF(B77="","",INDEX(信誉提升汇总记录表!B:B,SMALL(IF(信誉提升汇总记录表!$A:$A=$C$2,ROW($B:$B),36500),ROW(A74)))) ->  | B77: =INDEX(信誉提升汇总记录表!A:A,SMALL(IF(信誉提升汇总记录表!$A:$A=$C$2,ROW($B:$B),36500),ROW(B74)))&"" ->  | C77: =INDEX(信誉提升汇总记录表!C:C,SMALL(IF(信誉提升汇总记录表!$A:$A=$C$2,ROW($B:$B),36500),ROW(C74)))&"" ->  | D77: =INDEX(信誉提升汇总记录表!D:D,SMALL(IF(信誉提升汇总记录表!$A:$A=$C$2,ROW($B:$B),36500),ROW(D74)))&"" ->  | E77: =IF(ISERROR(VALUE(INDEX(信誉提升汇总记录表!E:E,SMALL(IF(信誉提升汇总记录表!$A:$A=$C$2,ROW($B:$B),36500),ROW(E74)))&"")),"",VALUE(INDEX(信誉提升汇总记录表!E:E,SMALL(IF(信誉提升汇总记录表!$A:$A=$C$2,ROW($B:$B),36500),ROW(E74)))&"")) ->  | F77: =INDEX(信誉提升汇总记录表!J:J,SMALL(IF(信誉提升汇总记录表!$A:$A=$C$2,ROW($B:$B),36500),ROW(F74)))&"" ->  | G77: =INDEX(信誉提升汇总记录表!K:K,SMALL(IF(信誉提升汇总记录表!$A:$A=$C$2,ROW($B:$B),36500),ROW(G74)))&"" ->  | H77: =INDEX(信誉提升汇总记录表!M:M,SMALL(IF(信誉提升汇总记录表!$A:$A=$C$2,ROW($B:$B),36500),ROW(H74)))&"" -> 
A78: =IF(B78="","",INDEX(信誉提升汇总记录表!B:B,SMALL(IF(信誉提升汇总记录表!$A:$A=$C$2,ROW($B:$B),36500),ROW(A75)))) ->  | B78: =INDEX(信誉提升汇总记录表!A:A,SMALL(IF(信誉提升汇总记录表!$A:$A=$C$2,ROW($B:$B),36500),ROW(B75)))&"" ->  | C78: =INDEX(信誉提升汇总记录表!C:C,SMALL(IF(信誉提升汇总记录表!$A:$A=$C$2,ROW($B:$B),36500),ROW(C75)))&"" ->  | D78: =INDEX(信誉提升汇总记录表!D:D,SMALL(IF(信誉提升汇总记录表!$A:$A=$C$2,ROW($B:$B),36500),ROW(D75)))&"" ->  | E78: =IF(ISERROR(VALUE(INDEX(信誉提升汇总记录表!E:E,SMALL(IF(信誉提升汇总记录表!$A:$A=$C$2,ROW($B:$B),36500),ROW(E75)))&"")),"",VALUE(INDEX(信誉提升汇总记录表!E:E,SMALL(IF(信誉提升汇总记录表!$A:$A=$C$2,ROW($B:$B),36500),ROW(E75)))&"")) ->  | F78: =INDEX(信誉提升汇总记录表!J:J,SMALL(IF(信誉提升汇总记录表!$A:$A=$C$2,ROW($B:$B),36500),ROW(F75)))&"" ->  | G78: =INDEX(信誉提升汇总记录表!K:K,SMALL(IF(信誉提升汇总记录表!$A:$A=$C$2,ROW($B:$B),36500),ROW(G75)))&"" ->  | H78: =INDEX(信誉提升汇总记录表!M:M,SMALL(IF(信誉提升汇总记录表!$A:$A=$C$2,ROW($B:$B),36500),ROW(H75)))&"" -> 
A79: =IF(B79="","",INDEX(信誉提升汇总记录表!B:B,SMALL(IF(信誉提升汇总记录表!$A:$A=$C$2,ROW($B:$B),36500),ROW(A76)))) ->  | B79: =INDEX(信誉提升汇总记录表!A:A,SMALL(IF(信誉提升汇总记录表!$A:$A=$C$2,ROW($B:$B),36500),ROW(B76)))&"" ->  | C79: =INDEX(信誉提升汇总记录表!C:C,SMALL(IF(信誉提升汇总记录表!$A:$A=$C$2,ROW($B:$B),36500),ROW(C76)))&"" ->  | D79: =INDEX(信誉提升汇总记录表!D:D,SMALL(IF(信誉提升汇总记录表!$A:$A=$C$2,ROW($B:$B),36500),ROW(D76)))&"" ->  | E79: =IF(ISERROR(VALUE(INDEX(信誉提升汇总记录表!E:E,SMALL(IF(信誉提升汇总记录表!$A:$A=$C$2,ROW($B:$B),36500),ROW(E76)))&"")),"",VALUE(INDEX(信誉提升汇总记录表!E:E,SMALL(IF(信誉提升汇总记录表!$A:$A=$C$2,ROW($B:$B),36500),ROW(E76)))&"")) ->  | F79: =INDEX(信誉提升汇总记录表!J:J,SMALL(IF(信誉提升汇总记录表!$A:$A=$C$2,ROW($B:$B),36500),ROW(F76)))&"" ->  | G79: =INDEX(信誉提升汇总记录表!K:K,SMALL(IF(信誉提升汇总记录表!$A:$A=$C$2,ROW($B:$B),36500),ROW(G76)))&"" ->  | H79: =INDEX(信誉提升汇总记录表!M:M,SMALL(IF(信誉提升汇总记录表!$A:$A=$C$2,ROW($B:$B),36500),ROW(H76)))&"" -> 
A80: =IF(B80="","",INDEX(信誉提升汇总记录表!B:B,SMALL(IF(信誉提升汇总记录表!$A:$A=$C$2,ROW($B:$B),36500),ROW(A77)))) ->  | B80: =INDEX(信誉提升汇总记录表!A:A,SMALL(IF(信誉提升汇总记录表!$A:$A=$C$2,ROW($B:$B),36500),ROW(B77)))&"" ->  | C80: =INDEX(信誉提升汇总记录表!C:C,SMALL(IF(信誉提升汇总记录表!$A:$A=$C$2,ROW($B:$B),36500),ROW(C77)))&"" ->  | D80: =INDEX(信誉提升汇总记录表!D:D,SMALL(IF(信誉提升汇总记录表!$A:$A=$C$2,ROW($B:$B),36500),ROW(D77)))&"" ->  | E80: =IF(ISERROR(VALUE(INDEX(信誉提升汇总记录表!E:E,SMALL(IF(信誉提升汇总记录表!$A:$A=$C$2,ROW($B:$B),36500),ROW(E77)))&"")),"",VALUE(INDEX(信誉提升汇总记录表!E:E,SMALL(IF(信誉提升汇总记录表!$A:$A=$C$2,ROW($B:$B),36500),ROW(E77)))&"")) ->  | F80: =INDEX(信誉提升汇总记录表!J:J,SMALL(IF(信誉提升汇总记录表!$A:$A=$C$2,ROW($B:$B),36500),ROW(F77)))&"" ->  | G80: =INDEX(信誉提升汇总记录表!K:K,SMALL(IF(信誉提升汇总记录表!$A:$A=$C$2,ROW($B:$B),36500),ROW(G77)))&"" ->  | H80: =INDEX(信誉提升汇总记录表!M:M,SMALL(IF(信誉提升汇总记录表!$A:$A=$C$2,ROW($B:$B),36500),ROW(H77)))&"" -> 
A81: =IF(B81="","",INDEX(信誉提升汇总记录表!B:B,SMALL(IF(信誉提升汇总记录表!$A:$A=$C$2,ROW($B:$B),36500),ROW(A78)))) ->  | B81: =INDEX(信誉提升汇总记录表!A:A,SMALL(IF(信誉提升汇总记录表!$A:$A=$C$2,ROW($B:$B),36500),ROW(B78)))&"" ->  | C81: =INDEX(信誉提升汇总记录表!C:C,SMALL(IF(信誉提升汇总记录表!$A:$A=$C$2,ROW($B:$B),36500),ROW(C78)))&"" ->  | D81: =INDEX(信誉提升汇总记录表!D:D,SMALL(IF(信誉提升汇总记录表!$A:$A=$C$2,ROW($B:$B),36500),ROW(D78)))&"" ->  | E81: =IF(ISERROR(VALUE(INDEX(信誉提升汇总记录表!E:E,SMALL(IF(信誉提升汇总记录表!$A:$A=$C$2,ROW($B:$B),36500),ROW(E78)))&"")),"",VALUE(INDEX(信誉提升汇总记录表!E:E,SMALL(IF(信誉提升汇总记录表!$A:$A=$C$2,ROW($B:$B),36500),ROW(E78)))&"")) ->  | F81: =INDEX(信誉提升汇总记录表!J:J,SMALL(IF(信誉提升汇总记录表!$A:$A=$C$2,ROW($B:$B),36500),ROW(F78)))&"" ->  | G81: =INDEX(信誉提升汇总记录表!K:K,SMALL(IF(信誉提升汇总记录表!$A:$A=$C$2,ROW($B:$B),36500),ROW(G78)))&"" ->  | H81: =INDEX(信誉提升汇总记录表!M:M,SMALL(IF(信誉提升汇总记录表!$A:$A=$C$2,ROW($B:$B),36500),ROW(H78)))&"" -> 
A82: =IF(B82="","",INDEX(信誉提升汇总记录表!B:B,SMALL(IF(信誉提升汇总记录表!$A:$A=$C$2,ROW($B:$B),36500),ROW(A79)))) ->  | B82: =INDEX(信誉提升汇总记录表!A:A,SMALL(IF(信誉提升汇总记录表!$A:$A=$C$2,ROW($B:$B),36500),ROW(B79)))&"" ->  | C82: =INDEX(信誉提升汇总记录表!C:C,SMALL(IF(信誉提升汇总记录表!$A:$A=$C$2,ROW($B:$B),36500),ROW(C79)))&"" ->  | D82: =INDEX(信誉提升汇总记录表!D:D,SMALL(IF(信誉提升汇总记录表!$A:$A=$C$2,ROW($B:$B),36500),ROW(D79)))&"" ->  | E82: =IF(ISERROR(VALUE(INDEX(信誉提升汇总记录表!E:E,SMALL(IF(信誉提升汇总记录表!$A:$A=$C$2,ROW($B:$B),36500),ROW(E79)))&"")),"",VALUE(INDEX(信誉提升汇总记录表!E:E,SMALL(IF(信誉提升汇总记录表!$A:$A=$C$2,ROW($B:$B),36500),ROW(E79)))&"")) ->  | F82: =INDEX(信誉提升汇总记录表!J:J,SMALL(IF(信誉提升汇总记录表!$A:$A=$C$2,ROW($B:$B),36500),ROW(F79)))&"" ->  | G82: =INDEX(信誉提升汇总记录表!K:K,SMALL(IF(信誉提升汇总记录表!$A:$A=$C$2,ROW($B:$B),36500),ROW(G79)))&"" ->  | H82: =INDEX(信誉提升汇总记录表!M:M,SMALL(IF(信誉提升汇总记录表!$A:$A=$C$2,ROW($B:$B),36500),ROW(H79)))&"" -> 
A83: =IF(B83="","",INDEX(信誉提升汇总记录表!B:B,SMALL(IF(信誉提升汇总记录表!$A:$A=$C$2,ROW($B:$B),36500),ROW(A80)))) ->  | B83: =INDEX(信誉提升汇总记录表!A:A,SMALL(IF(信誉提升汇总记录表!$A:$A=$C$2,ROW($B:$B),36500),ROW(B80)))&"" ->  | C83: =INDEX(信誉提升汇总记录表!C:C,SMALL(IF(信誉提升汇总记录表!$A:$A=$C$2,ROW($B:$B),36500),ROW(C80)))&"" ->  | D83: =INDEX(信誉提升汇总记录表!D:D,SMALL(IF(信誉提升汇总记录表!$A:$A=$C$2,ROW($B:$B),36500),ROW(D80)))&"" ->  | E83: =IF(ISERROR(VALUE(INDEX(信誉提升汇总记录表!E:E,SMALL(IF(信誉提升汇总记录表!$A:$A=$C$2,ROW($B:$B),36500),ROW(E80)))&"")),"",VALUE(INDEX(信誉提升汇总记录表!E:E,SMALL(IF(信誉提升汇总记录表!$A:$A=$C$2,ROW($B:$B),36500),ROW(E80)))&"")) ->  | F83: =INDEX(信誉提升汇总记录表!J:J,SMALL(IF(信誉提升汇总记录表!$A:$A=$C$2,ROW($B:$B),36500),ROW(F80)))&"" ->  | G83: =INDEX(信誉提升汇总记录表!K:K,SMALL(IF(信誉提升汇总记录表!$A:$A=$C$2,ROW($B:$B),36500),ROW(G80)))&"" ->  | H83: =INDEX(信誉提升汇总记录表!M:M,SMALL(IF(信誉提升汇总记录表!$A:$A=$C$2,ROW($B:$B),36500),ROW(H80)))&"" -> 
A84: =IF(B84="","",INDEX(信誉提升汇总记录表!B:B,SMALL(IF(信誉提升汇总记录表!$A:$A=$C$2,ROW($B:$B),36500),ROW(A81)))) ->  | B84: =INDEX(信誉提升汇总记录表!A:A,SMALL(IF(信誉提升汇总记录表!$A:$A=$C$2,ROW($B:$B),36500),ROW(B81)))&"" ->  | C84: =INDEX(信誉提升汇总记录表!C:C,SMALL(IF(信誉提升汇总记录表!$A:$A=$C$2,ROW($B:$B),36500),ROW(C81)))&"" ->  | D84: =INDEX(信誉提升汇总记录表!D:D,SMALL(IF(信誉提升汇总记录表!$A:$A=$C$2,ROW($B:$B),36500),ROW(D81)))&"" ->  | E84: =IF(ISERROR(VALUE(INDEX(信誉提升汇总记录表!E:E,SMALL(IF(信誉提升汇总记录表!$A:$A=$C$2,ROW($B:$B),36500),ROW(E81)))&"")),"",VALUE(INDEX(信誉提升汇总记录表!E:E,SMALL(IF(信誉提升汇总记录表!$A:$A=$C$2,ROW($B:$B),36500),ROW(E81)))&"")) ->  | F84: =INDEX(信誉提升汇总记录表!J:J,SMALL(IF(信誉提升汇总记录表!$A:$A=$C$2,ROW($B:$B),36500),ROW(F81)))&"" ->  | G84: =INDEX(信誉提升汇总记录表!K:K,SMALL(IF(信誉提升汇总记录表!$A:$A=$C$2,ROW($B:$B),36500),ROW(G81)))&"" ->  | H84: =INDEX(信誉提升汇总记录表!M:M,SMALL(IF(信誉提升汇总记录表!$A:$A=$C$2,ROW($B:$B),36500),ROW(H81)))&"" -> 
A85: =IF(B85="","",INDEX(信誉提升汇总记录表!B:B,SMALL(IF(信誉提升汇总记录表!$A:$A=$C$2,ROW($B:$B),36500),ROW(A82)))) ->  | B85: =INDEX(信誉提升汇总记录表!A:A,SMALL(IF(信誉提升汇总记录表!$A:$A=$C$2,ROW($B:$B),36500),ROW(B82)))&"" ->  | C85: =INDEX(信誉提升汇总记录表!C:C,SMALL(IF(信誉提升汇总记录表!$A:$A=$C$2,ROW($B:$B),36500),ROW(C82)))&"" ->  | D85: =INDEX(信誉提升汇总记录表!D:D,SMALL(IF(信誉提升汇总记录表!$A:$A=$C$2,ROW($B:$B),36500),ROW(D82)))&"" ->  | E85: =IF(ISERROR(VALUE(INDEX(信誉提升汇总记录表!E:E,SMALL(IF(信誉提升汇总记录表!$A:$A=$C$2,ROW($B:$B),36500),ROW(E82)))&"")),"",VALUE(INDEX(信誉提升汇总记录表!E:E,SMALL(IF(信誉提升汇总记录表!$A:$A=$C$2,ROW($B:$B),36500),ROW(E82)))&"")) ->  | F85: =INDEX(信誉提升汇总记录表!J:J,SMALL(IF(信誉提升汇总记录表!$A:$A=$C$2,ROW($B:$B),36500),ROW(F82)))&"" ->  | G85: =INDEX(信誉提升汇总记录表!K:K,SMALL(IF(信誉提升汇总记录表!$A:$A=$C$2,ROW($B:$B),36500),ROW(G82)))&"" ->  | H85: =INDEX(信誉提升汇总记录表!M:M,SMALL(IF(信誉提升汇总记录表!$A:$A=$C$2,ROW($B:$B),36500),ROW(H82)))&"" -> 
A86: =IF(B86="","",INDEX(信誉提升汇总记录表!B:B,SMALL(IF(信誉提升汇总记录表!$A:$A=$C$2,ROW($B:$B),36500),ROW(A83)))) ->  | B86: =INDEX(信誉提升汇总记录表!A:A,SMALL(IF(信誉提升汇总记录表!$A:$A=$C$2,ROW($B:$B),36500),ROW(B83)))&"" ->  | C86: =INDEX(信誉提升汇总记录表!C:C,SMALL(IF(信誉提升汇总记录表!$A:$A=$C$2,ROW($B:$B),36500),ROW(C83)))&"" ->  | D86: =INDEX(信誉提升汇总记录表!D:D,SMALL(IF(信誉提升汇总记录表!$A:$A=$C$2,ROW($B:$B),36500),ROW(D83)))&"" ->  | E86: =IF(ISERROR(VALUE(INDEX(信誉提升汇总记录表!E:E,SMALL(IF(信誉提升汇总记录表!$A:$A=$C$2,ROW($B:$B),36500),ROW(E83)))&"")),"",VALUE(INDEX(信誉提升汇总记录表!E:E,SMALL(IF(信誉提升汇总记录表!$A:$A=$C$2,ROW($B:$B),36500),ROW(E83)))&"")) ->  | F86: =INDEX(信誉提升汇总记录表!J:J,SMALL(IF(信誉提升汇总记录表!$A:$A=$C$2,ROW($B:$B),36500),ROW(F83)))&"" ->  | G86: =INDEX(信誉提升汇总记录表!K:K,SMALL(IF(信誉提升汇总记录表!$A:$A=$C$2,ROW($B:$B),36500),ROW(G83)))&"" ->  | H86: =INDEX(信誉提升汇总记录表!M:M,SMALL(IF(信誉提升汇总记录表!$A:$A=$C$2,ROW($B:$B),36500),ROW(H83)))&"" -> 
A87: =IF(B87="","",INDEX(信誉提升汇总记录表!B:B,SMALL(IF(信誉提升汇总记录表!$A:$A=$C$2,ROW($B:$B),36500),ROW(A84)))) ->  | B87: =INDEX(信誉提升汇总记录表!A:A,SMALL(IF(信誉提升汇总记录表!$A:$A=$C$2,ROW($B:$B),36500),ROW(B84)))&"" ->  | C87: =INDEX(信誉提升汇总记录表!C:C,SMALL(IF(信誉提升汇总记录表!$A:$A=$C$2,ROW($B:$B),36500),ROW(C84)))&"" ->  | D87: =INDEX(信誉提升汇总记录表!D:D,SMALL(IF(信誉提升汇总记录表!$A:$A=$C$2,ROW($B:$B),36500),ROW(D84)))&"" ->  | E87: =IF(ISERROR(VALUE(INDEX(信誉提升汇总记录表!E:E,SMALL(IF(信誉提升汇总记录表!$A:$A=$C$2,ROW($B:$B),36500),ROW(E84)))&"")),"",VALUE(INDEX(信誉提升汇总记录表!E:E,SMALL(IF(信誉提升汇总记录表!$A:$A=$C$2,ROW($B:$B),36500),ROW(E84)))&"")) ->  | F87: =INDEX(信誉提升汇总记录表!J:J,SMALL(IF(信誉提升汇总记录表!$A:$A=$C$2,ROW($B:$B),36500),ROW(F84)))&"" ->  | G87: =INDEX(信誉提升汇总记录表!K:K,SMALL(IF(信誉提升汇总记录表!$A:$A=$C$2,ROW($B:$B),36500),ROW(G84)))&"" ->  | H87: =INDEX(信誉提升汇总记录表!M:M,SMALL(IF(信誉提升汇总记录表!$A:$A=$C$2,ROW($B:$B),36500),ROW(H84)))&"" -> 
A88: =IF(B88="","",INDEX(信誉提升汇总记录表!B:B,SMALL(IF(信誉提升汇总记录表!$A:$A=$C$2,ROW($B:$B),36500),ROW(A85)))) ->  | B88: =INDEX(信誉提升汇总记录表!A:A,SMALL(IF(信誉提升汇总记录表!$A:$A=$C$2,ROW($B:$B),36500),ROW(B85)))&"" ->  | C88: =INDEX(信誉提升汇总记录表!C:C,SMALL(IF(信誉提升汇总记录表!$A:$A=$C$2,ROW($B:$B),36500),ROW(C85)))&"" ->  | D88: =INDEX(信誉提升汇总记录表!D:D,SMALL(IF(信誉提升汇总记录表!$A:$A=$C$2,ROW($B:$B),36500),ROW(D85)))&"" ->  | E88: =IF(ISERROR(VALUE(INDEX(信誉提升汇总记录表!E:E,SMALL(IF(信誉提升汇总记录表!$A:$A=$C$2,ROW($B:$B),36500),ROW(E85)))&"")),"",VALUE(INDEX(信誉提升汇总记录表!E:E,SMALL(IF(信誉提升汇总记录表!$A:$A=$C$2,ROW($B:$B),36500),ROW(E85)))&"")) ->  | F88: =INDEX(信誉提升汇总记录表!J:J,SMALL(IF(信誉提升汇总记录表!$A:$A=$C$2,ROW($B:$B),36500),ROW(F85)))&"" ->  | G88: =INDEX(信誉提升汇总记录表!K:K,SMALL(IF(信誉提升汇总记录表!$A:$A=$C$2,ROW($B:$B),36500),ROW(G85)))&"" ->  | H88: =INDEX(信誉提升汇总记录表!M:M,SMALL(IF(信誉提升汇总记录表!$A:$A=$C$2,ROW($B:$B),36500),ROW(H85)))&"" -> 
A89: =IF(B89="","",INDEX(信誉提升汇总记录表!B:B,SMALL(IF(信誉提升汇总记录表!$A:$A=$C$2,ROW($B:$B),36500),ROW(A86)))) ->  | B89: =INDEX(信誉提升汇总记录表!A:A,SMALL(IF(信誉提升汇总记录表!$A:$A=$C$2,ROW($B:$B),36500),ROW(B86)))&"" ->  | C89: =INDEX(信誉提升汇总记录表!C:C,SMALL(IF(信誉提升汇总记录表!$A:$A=$C$2,ROW($B:$B),36500),ROW(C86)))&"" ->  | D89: =INDEX(信誉提升汇总记录表!D:D,SMALL(IF(信誉提升汇总记录表!$A:$A=$C$2,ROW($B:$B),36500),ROW(D86)))&"" ->  | E89: =IF(ISERROR(VALUE(INDEX(信誉提升汇总记录表!E:E,SMALL(IF(信誉提升汇总记录表!$A:$A=$C$2,ROW($B:$B),36500),ROW(E86)))&"")),"",VALUE(INDEX(信誉提升汇总记录表!E:E,SMALL(IF(信誉提升汇总记录表!$A:$A=$C$2,ROW($B:$B),36500),ROW(E86)))&"")) ->  | F89: =INDEX(信誉提升汇总记录表!J:J,SMALL(IF(信誉提升汇总记录表!$A:$A=$C$2,ROW($B:$B),36500),ROW(F86)))&"" ->  | G89: =INDEX(信誉提升汇总记录表!K:K,SMALL(IF(信誉提升汇总记录表!$A:$A=$C$2,ROW($B:$B),36500),ROW(G86)))&"" ->  | H89: =INDEX(信誉提升汇总记录表!M:M,SMALL(IF(信誉提升汇总记录表!$A:$A=$C$2,ROW($B:$B),36500),ROW(H86)))&"" -> 
A90: =IF(B90="","",INDEX(信誉提升汇总记录表!B:B,SMALL(IF(信誉提升汇总记录表!$A:$A=$C$2,ROW($B:$B),36500),ROW(A87)))) ->  | B90: =INDEX(信誉提升汇总记录表!A:A,SMALL(IF(信誉提升汇总记录表!$A:$A=$C$2,ROW($B:$B),36500),ROW(B87)))&"" ->  | C90: =INDEX(信誉提升汇总记录表!C:C,SMALL(IF(信誉提升汇总记录表!$A:$A=$C$2,ROW($B:$B),36500),ROW(C87)))&"" ->  | D90: =INDEX(信誉提升汇总记录表!D:D,SMALL(IF(信誉提升汇总记录表!$A:$A=$C$2,ROW($B:$B),36500),ROW(D87)))&"" ->  | E90: =IF(ISERROR(VALUE(INDEX(信誉提升汇总记录表!E:E,SMALL(IF(信誉提升汇总记录表!$A:$A=$C$2,ROW($B:$B),36500),ROW(E87)))&"")),"",VALUE(INDEX(信誉提升汇总记录表!E:E,SMALL(IF(信誉提升汇总记录表!$A:$A=$C$2,ROW($B:$B),36500),ROW(E87)))&"")) ->  | F90: =INDEX(信誉提升汇总记录表!J:J,SMALL(IF(信誉提升汇总记录表!$A:$A=$C$2,ROW($B:$B),36500),ROW(F87)))&"" ->  | G90: =INDEX(信誉提升汇总记录表!K:K,SMALL(IF(信誉提升汇总记录表!$A:$A=$C$2,ROW($B:$B),36500),ROW(G87)))&"" ->  | H90: =INDEX(信誉提升汇总记录表!M:M,SMALL(IF(信誉提升汇总记录表!$A:$A=$C$2,ROW($B:$B),36500),ROW(H87)))&"" -> 
A91: =IF(B91="","",INDEX(信誉提升汇总记录表!B:B,SMALL(IF(信誉提升汇总记录表!$A:$A=$C$2,ROW($B:$B),36500),ROW(A88)))) ->  | B91: =INDEX(信誉提升汇总记录表!A:A,SMALL(IF(信誉提升汇总记录表!$A:$A=$C$2,ROW($B:$B),36500),ROW(B88)))&"" ->  | C91: =INDEX(信誉提升汇总记录表!C:C,SMALL(IF(信誉提升汇总记录表!$A:$A=$C$2,ROW($B:$B),36500),ROW(C88)))&"" ->  | D91: =INDEX(信誉提升汇总记录表!D:D,SMALL(IF(信誉提升汇总记录表!$A:$A=$C$2,ROW($B:$B),36500),ROW(D88)))&"" ->  | E91: =IF(ISERROR(VALUE(INDEX(信誉提升汇总记录表!E:E,SMALL(IF(信誉提升汇总记录表!$A:$A=$C$2,ROW($B:$B),36500),ROW(E88)))&"")),"",VALUE(INDEX(信誉提升汇总记录表!E:E,SMALL(IF(信誉提升汇总记录表!$A:$A=$C$2,ROW($B:$B),36500),ROW(E88)))&"")) ->  | F91: =INDEX(信誉提升汇总记录表!J:J,SMALL(IF(信誉提升汇总记录表!$A:$A=$C$2,ROW($B:$B),36500),ROW(F88)))&"" ->  | G91: =INDEX(信誉提升汇总记录表!K:K,SMALL(IF(信誉提升汇总记录表!$A:$A=$C$2,ROW($B:$B),36500),ROW(G88)))&"" ->  | H91: =INDEX(信誉提升汇总记录表!M:M,SMALL(IF(信誉提升汇总记录表!$A:$A=$C$2,ROW($B:$B),36500),ROW(H88)))&"" -> 
A92: =IF(B92="","",INDEX(信誉提升汇总记录表!B:B,SMALL(IF(信誉提升汇总记录表!$A:$A=$C$2,ROW($B:$B),36500),ROW(A89)))) ->  | B92: =INDEX(信誉提升汇总记录表!A:A,SMALL(IF(信誉提升汇总记录表!$A:$A=$C$2,ROW($B:$B),36500),ROW(B89)))&"" ->  | C92: =INDEX(信誉提升汇总记录表!C:C,SMALL(IF(信誉提升汇总记录表!$A:$A=$C$2,ROW($B:$B),36500),ROW(C89)))&"" ->  | D92: =INDEX(信誉提升汇总记录表!D:D,SMALL(IF(信誉提升汇总记录表!$A:$A=$C$2,ROW($B:$B),36500),ROW(D89)))&"" ->  | E92: =IF(ISERROR(VALUE(INDEX(信誉提升汇总记录表!E:E,SMALL(IF(信誉提升汇总记录表!$A:$A=$C$2,ROW($B:$B),36500),ROW(E89)))&"")),"",VALUE(INDEX(信誉提升汇总记录表!E:E,SMALL(IF(信誉提升汇总记录表!$A:$A=$C$2,ROW($B:$B),36500),ROW(E89)))&"")) ->  | F92: =INDEX(信誉提升汇总记录表!J:J,SMALL(IF(信誉提升汇总记录表!$A:$A=$C$2,ROW($B:$B),36500),ROW(F89)))&"" ->  | G92: =INDEX(信誉提升汇总记录表!K:K,SMALL(IF(信誉提升汇总记录表!$A:$A=$C$2,ROW($B:$B),36500),ROW(G89)))&"" ->  | H92: =INDEX(信誉提升汇总记录表!M:M,SMALL(IF(信誉提升汇总记录表!$A:$A=$C$2,ROW($B:$B),36500),ROW(H89)))&"" -> 
A93: =IF(B93="","",INDEX(信誉提升汇总记录表!B:B,SMALL(IF(信誉提升汇总记录表!$A:$A=$C$2,ROW($B:$B),36500),ROW(A90)))) ->  | B93: =INDEX(信誉提升汇总记录表!A:A,SMALL(IF(信誉提升汇总记录表!$A:$A=$C$2,ROW($B:$B),36500),ROW(B90)))&"" ->  | C93: =INDEX(信誉提升汇总记录表!C:C,SMALL(IF(信誉提升汇总记录表!$A:$A=$C$2,ROW($B:$B),36500),ROW(C90)))&"" ->  | D93: =INDEX(信誉提升汇总记录表!D:D,SMALL(IF(信誉提升汇总记录表!$A:$A=$C$2,ROW($B:$B),36500),ROW(D90)))&"" ->  | E93: =IF(ISERROR(VALUE(INDEX(信誉提升汇总记录表!E:E,SMALL(IF(信誉提升汇总记录表!$A:$A=$C$2,ROW($B:$B),36500),ROW(E90)))&"")),"",VALUE(INDEX(信誉提升汇总记录表!E:E,SMALL(IF(信誉提升汇总记录表!$A:$A=$C$2,ROW($B:$B),36500),ROW(E90)))&"")) ->  | F93: =INDEX(信誉提升汇总记录表!J:J,SMALL(IF(信誉提升汇总记录表!$A:$A=$C$2,ROW($B:$B),36500),ROW(F90)))&"" ->  | G93: =INDEX(信誉提升汇总记录表!K:K,SMALL(IF(信誉提升汇总记录表!$A:$A=$C$2,ROW($B:$B),36500),ROW(G90)))&"" ->  | H93: =INDEX(信誉提升汇总记录表!M:M,SMALL(IF(信誉提升汇总记录表!$A:$A=$C$2,ROW($B:$B),36500),ROW(H90)))&"" -> 
A94: =IF(B94="","",INDEX(信誉提升汇总记录表!B:B,SMALL(IF(信誉提升汇总记录表!$A:$A=$C$2,ROW($B:$B),36500),ROW(A91)))) ->  | B94: =INDEX(信誉提升汇总记录表!A:A,SMALL(IF(信誉提升汇总记录表!$A:$A=$C$2,ROW($B:$B),36500),ROW(B91)))&"" ->  | C94: =INDEX(信誉提升汇总记录表!C:C,SMALL(IF(信誉提升汇总记录表!$A:$A=$C$2,ROW($B:$B),36500),ROW(C91)))&"" ->  | D94: =INDEX(信誉提升汇总记录表!D:D,SMALL(IF(信誉提升汇总记录表!$A:$A=$C$2,ROW($B:$B),36500),ROW(D91)))&"" ->  | E94: =IF(ISERROR(VALUE(INDEX(信誉提升汇总记录表!E:E,SMALL(IF(信誉提升汇总记录表!$A:$A=$C$2,ROW($B:$B),36500),ROW(E91)))&"")),"",VALUE(INDEX(信誉提升汇总记录表!E:E,SMALL(IF(信誉提升汇总记录表!$A:$A=$C$2,ROW($B:$B),36500),ROW(E91)))&"")) ->  | F94: =INDEX(信誉提升汇总记录表!J:J,SMALL(IF(信誉提升汇总记录表!$A:$A=$C$2,ROW($B:$B),36500),ROW(F91)))&"" ->  | G94: =INDEX(信誉提升汇总记录表!K:K,SMALL(IF(信誉提升汇总记录表!$A:$A=$C$2,ROW($B:$B),36500),ROW(G91)))&"" ->  | H94: =INDEX(信誉提升汇总记录表!M:M,SMALL(IF(信誉提升汇总记录表!$A:$A=$C$2,ROW($B:$B),36500),ROW(H91)))&"" -> 
A95: =IF(B95="","",INDEX(信誉提升汇总记录表!B:B,SMALL(IF(信誉提升汇总记录表!$A:$A=$C$2,ROW($B:$B),36500),ROW(A92)))) ->  | B95: =INDEX(信誉提升汇总记录表!A:A,SMALL(IF(信誉提升汇总记录表!$A:$A=$C$2,ROW($B:$B),36500),ROW(B92)))&"" ->  | C95: =INDEX(信誉提升汇总记录表!C:C,SMALL(IF(信誉提升汇总记录表!$A:$A=$C$2,ROW($B:$B),36500),ROW(C92)))&"" ->  | D95: =INDEX(信誉提升汇总记录表!D:D,SMALL(IF(信誉提升汇总记录表!$A:$A=$C$2,ROW($B:$B),36500),ROW(D92)))&"" ->  | E95: =IF(ISERROR(VALUE(INDEX(信誉提升汇总记录表!E:E,SMALL(IF(信誉提升汇总记录表!$A:$A=$C$2,ROW($B:$B),36500),ROW(E92)))&"")),"",VALUE(INDEX(信誉提升汇总记录表!E:E,SMALL(IF(信誉提升汇总记录表!$A:$A=$C$2,ROW($B:$B),36500),ROW(E92)))&"")) ->  | F95: =INDEX(信誉提升汇总记录表!J:J,SMALL(IF(信誉提升汇总记录表!$A:$A=$C$2,ROW($B:$B),36500),ROW(F92)))&"" ->  | G95: =INDEX(信誉提升汇总记录表!K:K,SMALL(IF(信誉提升汇总记录表!$A:$A=$C$2,ROW($B:$B),36500),ROW(G92)))&"" ->  | H95: =INDEX(信誉提升汇总记录表!M:M,SMALL(IF(信誉提升汇总记录表!$A:$A=$C$2,ROW($B:$B),36500),ROW(H92)))&"" -> 
A96: =IF(B96="","",INDEX(信誉提升汇总记录表!B:B,SMALL(IF(信誉提升汇总记录表!$A:$A=$C$2,ROW($B:$B),36500),ROW(A93)))) ->  | B96: =INDEX(信誉提升汇总记录表!A:A,SMALL(IF(信誉提升汇总记录表!$A:$A=$C$2,ROW($B:$B),36500),ROW(B93)))&"" ->  | C96: =INDEX(信誉提升汇总记录表!C:C,SMALL(IF(信誉提升汇总记录表!$A:$A=$C$2,ROW($B:$B),36500),ROW(C93)))&"" ->  | D96: =INDEX(信誉提升汇总记录表!D:D,SMALL(IF(信誉提升汇总记录表!$A:$A=$C$2,ROW($B:$B),36500),ROW(D93)))&"" ->  | E96: =IF(ISERROR(VALUE(INDEX(信誉提升汇总记录表!E:E,SMALL(IF(信誉提升汇总记录表!$A:$A=$C$2,ROW($B:$B),36500),ROW(E93)))&"")),"",VALUE(INDEX(信誉提升汇总记录表!E:E,SMALL(IF(信誉提升汇总记录表!$A:$A=$C$2,ROW($B:$B),36500),ROW(E93)))&"")) ->  | F96: =INDEX(信誉提升汇总记录表!J:J,SMALL(IF(信誉提升汇总记录表!$A:$A=$C$2,ROW($B:$B),36500),ROW(F93)))&"" ->  | G96: =INDEX(信誉提升汇总记录表!K:K,SMALL(IF(信誉提升汇总记录表!$A:$A=$C$2,ROW($B:$B),36500),ROW(G93)))&"" ->  | H96: =INDEX(信誉提升汇总记录表!M:M,SMALL(IF(信誉提升汇总记录表!$A:$A=$C$2,ROW($B:$B),36500),ROW(H93)))&"" -> 
A97: =IF(B97="","",INDEX(信誉提升汇总记录表!B:B,SMALL(IF(信誉提升汇总记录表!$A:$A=$C$2,ROW($B:$B),36500),ROW(A94)))) ->  | B97: =INDEX(信誉提升汇总记录表!A:A,SMALL(IF(信誉提升汇总记录表!$A:$A=$C$2,ROW($B:$B),36500),ROW(B94)))&"" ->  | C97: =INDEX(信誉提升汇总记录表!C:C,SMALL(IF(信誉提升汇总记录表!$A:$A=$C$2,ROW($B:$B),36500),ROW(C94)))&"" ->  | D97: =INDEX(信誉提升汇总记录表!D:D,SMALL(IF(信誉提升汇总记录表!$A:$A=$C$2,ROW($B:$B),36500),ROW(D94)))&"" ->  | E97: =IF(ISERROR(VALUE(INDEX(信誉提升汇总记录表!E:E,SMALL(IF(信誉提升汇总记录表!$A:$A=$C$2,ROW($B:$B),36500),ROW(E94)))&"")),"",VALUE(INDEX(信誉提升汇总记录表!E:E,SMALL(IF(信誉提升汇总记录表!$A:$A=$C$2,ROW($B:$B),36500),ROW(E94)))&"")) ->  | F97: =INDEX(信誉提升汇总记录表!J:J,SMALL(IF(信誉提升汇总记录表!$A:$A=$C$2,ROW($B:$B),36500),ROW(F94)))&"" ->  | G97: =INDEX(信誉提升汇总记录表!K:K,SMALL(IF(信誉提升汇总记录表!$A:$A=$C$2,ROW($B:$B),36500),ROW(G94)))&"" ->  | H97: =INDEX(信誉提升汇总记录表!M:M,SMALL(IF(信誉提升汇总记录表!$A:$A=$C$2,ROW($B:$B),36500),ROW(H94)))&"" -> 
A98: =IF(B98="","",INDEX(信誉提升汇总记录表!B:B,SMALL(IF(信誉提升汇总记录表!$A:$A=$C$2,ROW($B:$B),36500),ROW(A95)))) ->  | B98: =INDEX(信誉提升汇总记录表!A:A,SMALL(IF(信誉提升汇总记录表!$A:$A=$C$2,ROW($B:$B),36500),ROW(B95)))&"" ->  | C98: =INDEX(信誉提升汇总记录表!C:C,SMALL(IF(信誉提升汇总记录表!$A:$A=$C$2,ROW($B:$B),36500),ROW(C95)))&"" ->  | D98: =INDEX(信誉提升汇总记录表!D:D,SMALL(IF(信誉提升汇总记录表!$A:$A=$C$2,ROW($B:$B),36500),ROW(D95)))&"" ->  | E98: =IF(ISERROR(VALUE(INDEX(信誉提升汇总记录表!E:E,SMALL(IF(信誉提升汇总记录表!$A:$A=$C$2,ROW($B:$B),36500),ROW(E95)))&"")),"",VALUE(INDEX(信誉提升汇总记录表!E:E,SMALL(IF(信誉提升汇总记录表!$A:$A=$C$2,ROW($B:$B),36500),ROW(E95)))&"")) ->  | F98: =INDEX(信誉提升汇总记录表!J:J,SMALL(IF(信誉提升汇总记录表!$A:$A=$C$2,ROW($B:$B),36500),ROW(F95)))&"" ->  | G98: =INDEX(信誉提升汇总记录表!K:K,SMALL(IF(信誉提升汇总记录表!$A:$A=$C$2,ROW($B:$B),36500),ROW(G95)))&"" ->  | H98: =INDEX(信誉提升汇总记录表!M:M,SMALL(IF(信誉提升汇总记录表!$A:$A=$C$2,ROW($B:$B),36500),ROW(H95)))&"" -> 
A99: =IF(B99="","",INDEX(信誉提升汇总记录表!B:B,SMALL(IF(信誉提升汇总记录表!$A:$A=$C$2,ROW($B:$B),36500),ROW(A96)))) ->  | B99: =INDEX(信誉提升汇总记录表!A:A,SMALL(IF(信誉提升汇总记录表!$A:$A=$C$2,ROW($B:$B),36500),ROW(B96)))&"" ->  | C99: =INDEX(信誉提升汇总记录表!C:C,SMALL(IF(信誉提升汇总记录表!$A:$A=$C$2,ROW($B:$B),36500),ROW(C96)))&"" ->  | D99: =INDEX(信誉提升汇总记录表!D:D,SMALL(IF(信誉提升汇总记录表!$A:$A=$C$2,ROW($B:$B),36500),ROW(D96)))&"" ->  | E99: =IF(ISERROR(VALUE(INDEX(信誉提升汇总记录表!E:E,SMALL(IF(信誉提升汇总记录表!$A:$A=$C$2,ROW($B:$B),36500),ROW(E96)))&"")),"",VALUE(INDEX(信誉提升汇总记录表!E:E,SMALL(IF(信誉提升汇总记录表!$A:$A=$C$2,ROW($B:$B),36500),ROW(E96)))&"")) ->  | F99: =INDEX(信誉提升汇总记录表!J:J,SMALL(IF(信誉提升汇总记录表!$A:$A=$C$2,ROW($B:$B),36500),ROW(F96)))&"" ->  | G99: =INDEX(信誉提升汇总记录表!K:K,SMALL(IF(信誉提升汇总记录表!$A:$A=$C$2,ROW($B:$B),36500),ROW(G96)))&"" ->  | H99: =INDEX(信誉提升汇总记录表!M:M,SMALL(IF(信誉提升汇总记录表!$A:$A=$C$2,ROW($B:$B),36500),ROW(H96)))&"" -> 
A100: =IF(B100="","",INDEX(信誉提升汇总记录表!B:B,SMALL(IF(信誉提升汇总记录表!$A:$A=$C$2,ROW($B:$B),36500),ROW(A97)))) ->  | B100: =INDEX(信誉提升汇总记录表!A:A,SMALL(IF(信誉提升汇总记录表!$A:$A=$C$2,ROW($B:$B),36500),ROW(B97)))&"" ->  | C100: =INDEX(信誉提升汇总记录表!C:C,SMALL(IF(信誉提升汇总记录表!$A:$A=$C$2,ROW($B:$B),36500),ROW(C97)))&"" ->  | D100: =INDEX(信誉提升汇总记录表!D:D,SMALL(IF(信誉提升汇总记录表!$A:$A=$C$2,ROW($B:$B),36500),ROW(D97)))&"" ->  | E100: =IF(ISERROR(VALUE(INDEX(信誉提升汇总记录表!E:E,SMALL(IF(信誉提升汇总记录表!$A:$A=$C$2,ROW($B:$B),36500),ROW(E97)))&"")),"",VALUE(INDEX(信誉提升汇总记录表!E:E,SMALL(IF(信誉提升汇总记录表!$A:$A=$C$2,ROW($B:$B),36500),ROW(E97)))&"")) ->  | F100: =INDEX(信誉提升汇总记录表!J:J,SMALL(IF(信誉提升汇总记录表!$A:$A=$C$2,ROW($B:$B),36500),ROW(F97)))&"" ->  | G100: =INDEX(信誉提升汇总记录表!K:K,SMALL(IF(信誉提升汇总记录表!$A:$A=$C$2,ROW($B:$B),36500),ROW(G97)))&"" ->  | H100: =INDEX(信誉提升汇总记录表!M:M,SMALL(IF(信誉提升汇总记录表!$A:$A=$C$2,ROW($B:$B),36500),ROW(H97)))&"" -> 
A101: =IF(B101="","",INDEX(信誉提升汇总记录表!B:B,SMALL(IF(信誉提升汇总记录表!$A:$A=$C$2,ROW($B:$B),36500),ROW(A98)))) ->  | B101: =INDEX(信誉提升汇总记录表!A:A,SMALL(IF(信誉提升汇总记录表!$A:$A=$C$2,ROW($B:$B),36500),ROW(B98)))&"" ->  | C101: =INDEX(信誉提升汇总记录表!C:C,SMALL(IF(信誉提升汇总记录表!$A:$A=$C$2,ROW($B:$B),36500),ROW(C98)))&"" ->  | D101: =INDEX(信誉提升汇总记录表!D:D,SMALL(IF(信誉提升汇总记录表!$A:$A=$C$2,ROW($B:$B),36500),ROW(D98)))&"" ->  | E101: =IF(ISERROR(VALUE(INDEX(信誉提升汇总记录表!E:E,SMALL(IF(信誉提升汇总记录表!$A:$A=$C$2,ROW($B:$B),36500),ROW(E98)))&"")),"",VALUE(INDEX(信誉提升汇总记录表!E:E,SMALL(IF(信誉提升汇总记录表!$A:$A=$C$2,ROW($B:$B),36500),ROW(E98)))&"")) ->  | F101: =INDEX(信誉提升汇总记录表!J:J,SMALL(IF(信誉提升汇总记录表!$A:$A=$C$2,ROW($B:$B),36500),ROW(F98)))&"" ->  | G101: =INDEX(信誉提升汇总记录表!K:K,SMALL(IF(信誉提升汇总记录表!$A:$A=$C$2,ROW($B:$B),36500),ROW(G98)))&"" ->  | H101: =INDEX(信誉提升汇总记录表!M:M,SMALL(IF(信誉提升汇总记录表!$A:$A=$C$2,ROW($B:$B),36500),ROW(H98)))&"" -> 
A102: =IF(B102="","",INDEX(信誉提升汇总记录表!B:B,SMALL(IF(信誉提升汇总记录表!$A:$A=$C$2,ROW($B:$B),36500),ROW(A99)))) ->  | B102: =INDEX(信誉提升汇总记录表!A:A,SMALL(IF(信誉提升汇总记录表!$A:$A=$C$2,ROW($B:$B),36500),ROW(B99)))&"" ->  | C102: =INDEX(信誉提升汇总记录表!C:C,SMALL(IF(信誉提升汇总记录表!$A:$A=$C$2,ROW($B:$B),36500),ROW(C99)))&"" ->  | D102: =INDEX(信誉提升汇总记录表!D:D,SMALL(IF(信誉提升汇总记录表!$A:$A=$C$2,ROW($B:$B),36500),ROW(D99)))&"" ->  | E102: =IF(ISERROR(VALUE(INDEX(信誉提升汇总记录表!E:E,SMALL(IF(信誉提升汇总记录表!$A:$A=$C$2,ROW($B:$B),36500),ROW(E99)))&"")),"",VALUE(INDEX(信誉提升汇总记录表!E:E,SMALL(IF(信誉提升汇总记录表!$A:$A=$C$2,ROW($B:$B),36500),ROW(E99)))&"")) ->  | F102: =INDEX(信誉提升汇总记录表!J:J,SMALL(IF(信誉提升汇总记录表!$A:$A=$C$2,ROW($B:$B),36500),ROW(F99)))&"" ->  | G102: =INDEX(信誉提升汇总记录表!K:K,SMALL(IF(信誉提升汇总记录表!$A:$A=$C$2,ROW($B:$B),36500),ROW(G99)))&"" ->  | H102: =INDEX(信誉提升汇总记录表!M:M,SMALL(IF(信誉提升汇总记录表!$A:$A=$C$2,ROW($B:$B),36500),ROW(H99)))&"" -> 
A103: =IF(B103="","",INDEX(信誉提升汇总记录表!B:B,SMALL(IF(信誉提升汇总记录表!$A:$A=$C$2,ROW($B:$B),36500),ROW(A100)))) ->  | B103: =INDEX(信誉提升汇总记录表!A:A,SMALL(IF(信誉提升汇总记录表!$A:$A=$C$2,ROW($B:$B),36500),ROW(B100)))&"" ->  | C103: =INDEX(信誉提升汇总记录表!C:C,SMALL(IF(信誉提升汇总记录表!$A:$A=$C$2,ROW($B:$B),36500),ROW(C100)))&"" ->  | D103: =INDEX(信誉提升汇总记录表!D:D,SMALL(IF(信誉提升汇总记录表!$A:$A=$C$2,ROW($B:$B),36500),ROW(D100)))&"" ->  | E103: =IF(ISERROR(VALUE(INDEX(信誉提升汇总记录表!E:E,SMALL(IF(信誉提升汇总记录表!$A:$A=$C$2,ROW($B:$B),36500),ROW(E100)))&"")),"",VALUE(INDEX(信誉提升汇总记录表!E:E,SMALL(IF(信誉提升汇总记录表!$A:$A=$C$2,ROW($B:$B),36500),ROW(E100)))&"")) ->  | F103: =INDEX(信誉提升汇总记录表!J:J,SMALL(IF(信誉提升汇总记录表!$A:$A=$C$2,ROW($B:$B),36500),ROW(F100)))&"" ->  | G103: =INDEX(信誉提升汇总记录表!K:K,SMALL(IF(信誉提升汇总记录表!$A:$A=$C$2,ROW($B:$B),36500),ROW(G100)))&"" ->  | H103: =INDEX(信誉提升汇总记录表!M:M,SMALL(IF(信誉提升汇总记录表!$A:$A=$C$2,ROW($B:$B),36500),ROW(H100)))&"" -> 
A104: =IF(B104="","",INDEX(信誉提升汇总记录表!B:B,SMALL(IF(信誉提升汇总记录表!$A:$A=$C$2,ROW($B:$B),36500),ROW(A101)))) ->  | B104: =INDEX(信誉提升汇总记录表!A:A,SMALL(IF(信誉提升汇总记录表!$A:$A=$C$2,ROW($B:$B),36500),ROW(B101)))&"" ->  | C104: =INDEX(信誉提升汇总记录表!C:C,SMALL(IF(信誉提升汇总记录表!$A:$A=$C$2,ROW($B:$B),36500),ROW(C101)))&"" ->  | D104: =INDEX(信誉提升汇总记录表!D:D,SMALL(IF(信誉提升汇总记录表!$A:$A=$C$2,ROW($B:$B),36500),ROW(D101)))&"" ->  | E104: =IF(ISERROR(VALUE(INDEX(信誉提升汇总记录表!E:E,SMALL(IF(信誉提升汇总记录表!$A:$A=$C$2,ROW($B:$B),36500),ROW(E101)))&"")),"",VALUE(INDEX(信誉提升汇总记录表!E:E,SMALL(IF(信誉提升汇总记录表!$A:$A=$C$2,ROW($B:$B),36500),ROW(E101)))&"")) ->  | F104: =INDEX(信誉提升汇总记录表!J:J,SMALL(IF(信誉提升汇总记录表!$A:$A=$C$2,ROW($B:$B),36500),ROW(F101)))&"" ->  | G104: =INDEX(信誉提升汇总记录表!K:K,SMALL(IF(信誉提升汇总记录表!$A:$A=$C$2,ROW($B:$B),36500),ROW(G101)))&"" ->  | H104: =INDEX(信誉提升汇总记录表!M:M,SMALL(IF(信誉提升汇总记录表!$A:$A=$C$2,ROW($B:$B),36500),ROW(H101)))&"" -> 
A105: =IF(B105="","",INDEX(信誉提升汇总记录表!B:B,SMALL(IF(信誉提升汇总记录表!$A:$A=$C$2,ROW($B:$B),36500),ROW(A102)))) ->  | B105: =INDEX(信誉提升汇总记录表!A:A,SMALL(IF(信誉提升汇总记录表!$A:$A=$C$2,ROW($B:$B),36500),ROW(B102)))&"" ->  | C105: =INDEX(信誉提升汇总记录表!C:C,SMALL(IF(信誉提升汇总记录表!$A:$A=$C$2,ROW($B:$B),36500),ROW(C102)))&"" ->  | D105: =INDEX(信誉提升汇总记录表!D:D,SMALL(IF(信誉提升汇总记录表!$A:$A=$C$2,ROW($B:$B),36500),ROW(D102)))&"" ->  | E105: =IF(ISERROR(VALUE(INDEX(信誉提升汇总记录表!E:E,SMALL(IF(信誉提升汇总记录表!$A:$A=$C$2,ROW($B:$B),36500),ROW(E102)))&"")),"",VALUE(INDEX(信誉提升汇总记录表!E:E,SMALL(IF(信誉提升汇总记录表!$A:$A=$C$2,ROW($B:$B),36500),ROW(E102)))&"")) ->  | F105: =INDEX(信誉提升汇总记录表!J:J,SMALL(IF(信誉提升汇总记录表!$A:$A=$C$2,ROW($B:$B),36500),ROW(F102)))&"" ->  | G105: =INDEX(信誉提升汇总记录表!K:K,SMALL(IF(信誉提升汇总记录表!$A:$A=$C$2,ROW($B:$B),36500),ROW(G102)))&"" ->  | H105: =INDEX(信誉提升汇总记录表!M:M,SMALL(IF(信誉提升汇总记录表!$A:$A=$C$2,ROW($B:$B),36500),ROW(H102)))&"" -> 
A106: =IF(B106="","",INDEX(信誉提升汇总记录表!B:B,SMALL(IF(信誉提升汇总记录表!$A:$A=$C$2,ROW($B:$B),36500),ROW(A103)))) ->  | B106: =INDEX(信誉提升汇总记录表!A:A,SMALL(IF(信誉提升汇总记录表!$A:$A=$C$2,ROW($B:$B),36500),ROW(B103)))&"" ->  | C106: =INDEX(信誉提升汇总记录表!C:C,SMALL(IF(信誉提升汇总记录表!$A:$A=$C$2,ROW($B:$B),36500),ROW(C103)))&"" ->  | D106: =INDEX(信誉提升汇总记录表!D:D,SMALL(IF(信誉提升汇总记录表!$A:$A=$C$2,ROW($B:$B),36500),ROW(D103)))&"" ->  | E106: =IF(ISERROR(VALUE(INDEX(信誉提升汇总记录表!E:E,SMALL(IF(信誉提升汇总记录表!$A:$A=$C$2,ROW($B:$B),36500),ROW(E103)))&"")),"",VALUE(INDEX(信誉提升汇总记录表!E:E,SMALL(IF(信誉提升汇总记录表!$A:$A=$C$2,ROW($B:$B),36500),ROW(E103)))&"")) ->  | F106: =INDEX(信誉提升汇总记录表!J:J,SMALL(IF(信誉提升汇总记录表!$A:$A=$C$2,ROW($B:$B),36500),ROW(F103)))&"" ->  | G106: =INDEX(信誉提升汇总记录表!K:K,SMALL(IF(信誉提升汇总记录表!$A:$A=$C$2,ROW($B:$B),36500),ROW(G103)))&"" ->  | H106: =INDEX(信誉提升汇总记录表!M:M,SMALL(IF(信誉提升汇总记录表!$A:$A=$C$2,ROW($B:$B),36500),ROW(H103)))&"" -> 
A107: =IF(B107="","",INDEX(信誉提升汇总记录表!B:B,SMALL(IF(信誉提升汇总记录表!$A:$A=$C$2,ROW($B:$B),36500),ROW(A104)))) ->  | B107: =INDEX(信誉提升汇总记录表!A:A,SMALL(IF(信誉提升汇总记录表!$A:$A=$C$2,ROW($B:$B),36500),ROW(B104)))&"" ->  | C107: =INDEX(信誉提升汇总记录表!C:C,SMALL(IF(信誉提升汇总记录表!$A:$A=$C$2,ROW($B:$B),36500),ROW(C104)))&"" ->  | D107: =INDEX(信誉提升汇总记录表!D:D,SMALL(IF(信誉提升汇总记录表!$A:$A=$C$2,ROW($B:$B),36500),ROW(D104)))&"" ->  | E107: =IF(ISERROR(VALUE(INDEX(信誉提升汇总记录表!E:E,SMALL(IF(信誉提升汇总记录表!$A:$A=$C$2,ROW($B:$B),36500),ROW(E104)))&"")),"",VALUE(INDEX(信誉提升汇总记录表!E:E,SMALL(IF(信誉提升汇总记录表!$A:$A=$C$2,ROW($B:$B),36500),ROW(E104)))&"")) ->  | F107: =INDEX(信誉提升汇总记录表!J:J,SMALL(IF(信誉提升汇总记录表!$A:$A=$C$2,ROW($B:$B),36500),ROW(F104)))&"" ->  | G107: =INDEX(信誉提升汇总记录表!K:K,SMALL(IF(信誉提升汇总记录表!$A:$A=$C$2,ROW($B:$B),36500),ROW(G104)))&"" ->  | H107: =INDEX(信誉提升汇总记录表!M:M,SMALL(IF(信誉提升汇总记录表!$A:$A=$C$2,ROW($B:$B),36500),ROW(H104)))&"" -> 
A108: =IF(B108="","",INDEX(信誉提升汇总记录表!B:B,SMALL(IF(信誉提升汇总记录表!$A:$A=$C$2,ROW($B:$B),36500),ROW(A105)))) ->  | B108: =INDEX(信誉提升汇总记录表!A:A,SMALL(IF(信誉提升汇总记录表!$A:$A=$C$2,ROW($B:$B),36500),ROW(B105)))&"" ->  | C108: =INDEX(信誉提升汇总记录表!C:C,SMALL(IF(信誉提升汇总记录表!$A:$A=$C$2,ROW($B:$B),36500),ROW(C105)))&"" ->  | D108: =INDEX(信誉提升汇总记录表!D:D,SMALL(IF(信誉提升汇总记录表!$A:$A=$C$2,ROW($B:$B),36500),ROW(D105)))&"" ->  | E108: =IF(ISERROR(VALUE(INDEX(信誉提升汇总记录表!E:E,SMALL(IF(信誉提升汇总记录表!$A:$A=$C$2,ROW($B:$B),36500),ROW(E105)))&"")),"",VALUE(INDEX(信誉提升汇总记录表!E:E,SMALL(IF(信誉提升汇总记录表!$A:$A=$C$2,ROW($B:$B),36500),ROW(E105)))&"")) ->  | F108: =INDEX(信誉提升汇总记录表!J:J,SMALL(IF(信誉提升汇总记录表!$A:$A=$C$2,ROW($B:$B),36500),ROW(F105)))&"" ->  | G108: =INDEX(信誉提升汇总记录表!K:K,SMALL(IF(信誉提升汇总记录表!$A:$A=$C$2,ROW($B:$B),36500),ROW(G105)))&"" ->  | H108: =INDEX(信誉提升汇总记录表!M:M,SMALL(IF(信誉提升汇总记录表!$A:$A=$C$2,ROW($B:$B),36500),ROW(H105)))&"" -> 
A109: =IF(B109="","",INDEX(信誉提升汇总记录表!B:B,SMALL(IF(信誉提升汇总记录表!$A:$A=$C$2,ROW($B:$B),36500),ROW(A106)))) ->  | B109: =INDEX(信誉提升汇总记录表!A:A,SMALL(IF(信誉提升汇总记录表!$A:$A=$C$2,ROW($B:$B),36500),ROW(B106)))&"" ->  | C109: =INDEX(信誉提升汇总记录表!C:C,SMALL(IF(信誉提升汇总记录表!$A:$A=$C$2,ROW($B:$B),36500),ROW(C106)))&"" ->  | D109: =INDEX(信誉提升汇总记录表!D:D,SMALL(IF(信誉提升汇总记录表!$A:$A=$C$2,ROW($B:$B),36500),ROW(D106)))&"" ->  | E109: =IF(ISERROR(VALUE(INDEX(信誉提升汇总记录表!E:E,SMALL(IF(信誉提升汇总记录表!$A:$A=$C$2,ROW($B:$B),36500),ROW(E106)))&"")),"",VALUE(INDEX(信誉提升汇总记录表!E:E,SMALL(IF(信誉提升汇总记录表!$A:$A=$C$2,ROW($B:$B),36500),ROW(E106)))&"")) ->  | F109: =INDEX(信誉提升汇总记录表!J:J,SMALL(IF(信誉提升汇总记录表!$A:$A=$C$2,ROW($B:$B),36500),ROW(F106)))&"" ->  | G109: =INDEX(信誉提升汇总记录表!K:K,SMALL(IF(信誉提升汇总记录表!$A:$A=$C$2,ROW($B:$B),36500),ROW(G106)))&"" ->  | H109: =INDEX(信誉提升汇总记录表!M:M,SMALL(IF(信誉提升汇总记录表!$A:$A=$C$2,ROW($B:$B),36500),ROW(H106)))&"" -> 
A110: =IF(B110="","",INDEX(信誉提升汇总记录表!B:B,SMALL(IF(信誉提升汇总记录表!$A:$A=$C$2,ROW($B:$B),36500),ROW(A107)))) ->  | B110: =INDEX(信誉提升汇总记录表!A:A,SMALL(IF(信誉提升汇总记录表!$A:$A=$C$2,ROW($B:$B),36500),ROW(B107)))&"" ->  | C110: =INDEX(信誉提升汇总记录表!C:C,SMALL(IF(信誉提升汇总记录表!$A:$A=$C$2,ROW($B:$B),36500),ROW(C107)))&"" ->  | D110: =INDEX(信誉提升汇总记录表!D:D,SMALL(IF(信誉提升汇总记录表!$A:$A=$C$2,ROW($B:$B),36500),ROW(D107)))&"" ->  | E110: =IF(ISERROR(VALUE(INDEX(信誉提升汇总记录表!E:E,SMALL(IF(信誉提升汇总记录表!$A:$A=$C$2,ROW($B:$B),36500),ROW(E107)))&"")),"",VALUE(INDEX(信誉提升汇总记录表!E:E,SMALL(IF(信誉提升汇总记录表!$A:$A=$C$2,ROW($B:$B),36500),ROW(E107)))&"")) ->  | F110: =INDEX(信誉提升汇总记录表!J:J,SMALL(IF(信誉提升汇总记录表!$A:$A=$C$2,ROW($B:$B),36500),ROW(F107)))&"" ->  | G110: =INDEX(信誉提升汇总记录表!K:K,SMALL(IF(信誉提升汇总记录表!$A:$A=$C$2,ROW($B:$B),36500),ROW(G107)))&"" ->  | H110: =INDEX(信誉提升汇总记录表!M:M,SMALL(IF(信誉提升汇总记录表!$A:$A=$C$2,ROW($B:$B),36500),ROW(H107)))&"" -> 
A111: =IF(B111="","",INDEX(信誉提升汇总记录表!B:B,SMALL(IF(信誉提升汇总记录表!$A:$A=$C$2,ROW($B:$B),36500),ROW(A108)))) ->  | B111: =INDEX(信誉提升汇总记录表!A:A,SMALL(IF(信誉提升汇总记录表!$A:$A=$C$2,ROW($B:$B),36500),ROW(B108)))&"" ->  | C111: =INDEX(信誉提升汇总记录表!C:C,SMALL(IF(信誉提升汇总记录表!$A:$A=$C$2,ROW($B:$B),36500),ROW(C108)))&"" ->  | D111: =INDEX(信誉提升汇总记录表!D:D,SMALL(IF(信誉提升汇总记录表!$A:$A=$C$2,ROW($B:$B),36500),ROW(D108)))&"" ->  | E111: =IF(ISERROR(VALUE(INDEX(信誉提升汇总记录表!E:E,SMALL(IF(信誉提升汇总记录表!$A:$A=$C$2,ROW($B:$B),36500),ROW(E108)))&"")),"",VALUE(INDEX(信誉提升汇总记录表!E:E,SMALL(IF(信誉提升汇总记录表!$A:$A=$C$2,ROW($B:$B),36500),ROW(E108)))&"")) ->  | F111: =INDEX(信誉提升汇总记录表!J:J,SMALL(IF(信誉提升汇总记录表!$A:$A=$C$2,ROW($B:$B),36500),ROW(F108)))&"" ->  | G111: =INDEX(信誉提升汇总记录表!K:K,SMALL(IF(信誉提升汇总记录表!$A:$A=$C$2,ROW($B:$B),36500),ROW(G108)))&"" ->  | H111: =INDEX(信誉提升汇总记录表!M:M,SMALL(IF(信誉提升汇总记录表!$A:$A=$C$2,ROW($B:$B),36500),ROW(H108)))&"" -> 
A112: =IF(B112="","",INDEX(信誉提升汇总记录表!B:B,SMALL(IF(信誉提升汇总记录表!$A:$A=$C$2,ROW($B:$B),36500),ROW(A109)))) ->  | B112: =INDEX(信誉提升汇总记录表!A:A,SMALL(IF(信誉提升汇总记录表!$A:$A=$C$2,ROW($B:$B),36500),ROW(B109)))&"" ->  | C112: =INDEX(信誉提升汇总记录表!C:C,SMALL(IF(信誉提升汇总记录表!$A:$A=$C$2,ROW($B:$B),36500),ROW(C109)))&"" ->  | D112: =INDEX(信誉提升汇总记录表!D:D,SMALL(IF(信誉提升汇总记录表!$A:$A=$C$2,ROW($B:$B),36500),ROW(D109)))&"" ->  | E112: =IF(ISERROR(VALUE(INDEX(信誉提升汇总记录表!E:E,SMALL(IF(信誉提升汇总记录表!$A:$A=$C$2,ROW($B:$B),36500),ROW(E109)))&"")),"",VALUE(INDEX(信誉提升汇总记录表!E:E,SMALL(IF(信誉提升汇总记录表!$A:$A=$C$2,ROW($B:$B),36500),ROW(E109)))&"")) ->  | F112: =INDEX(信誉提升汇总记录表!J:J,SMALL(IF(信誉提升汇总记录表!$A:$A=$C$2,ROW($B:$B),36500),ROW(F109)))&"" ->  | G112: =INDEX(信誉提升汇总记录表!K:K,SMALL(IF(信誉提升汇总记录表!$A:$A=$C$2,ROW($B:$B),36500),ROW(G109)))&"" ->  | H112: =INDEX(信誉提升汇总记录表!M:M,SMALL(IF(信誉提升汇总记录表!$A:$A=$C$2,ROW($B:$B),36500),ROW(H109)))&"" -> 
A113: =IF(B113="","",INDEX(信誉提升汇总记录表!B:B,SMALL(IF(信誉提升汇总记录表!$A:$A=$C$2,ROW($B:$B),36500),ROW(A110)))) ->  | B113: =INDEX(信誉提升汇总记录表!A:A,SMALL(IF(信誉提升汇总记录表!$A:$A=$C$2,ROW($B:$B),36500),ROW(B110)))&"" ->  | C113: =INDEX(信誉提升汇总记录表!C:C,SMALL(IF(信誉提升汇总记录表!$A:$A=$C$2,ROW($B:$B),36500),ROW(C110)))&"" ->  | D113: =INDEX(信誉提升汇总记录表!D:D,SMALL(IF(信誉提升汇总记录表!$A:$A=$C$2,ROW($B:$B),36500),ROW(D110)))&"" ->  | E113: =IF(ISERROR(VALUE(INDEX(信誉提升汇总记录表!E:E,SMALL(IF(信誉提升汇总记录表!$A:$A=$C$2,ROW($B:$B),36500),ROW(E110)))&"")),"",VALUE(INDEX(信誉提升汇总记录表!E:E,SMALL(IF(信誉提升汇总记录表!$A:$A=$C$2,ROW($B:$B),36500),ROW(E110)))&"")) ->  | F113: =INDEX(信誉提升汇总记录表!J:J,SMALL(IF(信誉提升汇总记录表!$A:$A=$C$2,ROW($B:$B),36500),ROW(F110)))&"" ->  | G113: =INDEX(信誉提升汇总记录表!K:K,SMALL(IF(信誉提升汇总记录表!$A:$A=$C$2,ROW($B:$B),36500),ROW(G110)))&"" ->  | H113: =INDEX(信誉提升汇总记录表!M:M,SMALL(IF(信誉提升汇总记录表!$A:$A=$C$2,ROW($B:$B),36500),ROW(H110)))&"" -> 
A114: =IF(B114="","",INDEX(信誉提升汇总记录表!B:B,SMALL(IF(信誉提升汇总记录表!$A:$A=$C$2,ROW($B:$B),36500),ROW(A111)))) ->  | B114: =INDEX(信誉提升汇总记录表!A:A,SMALL(IF(信誉提升汇总记录表!$A:$A=$C$2,ROW($B:$B),36500),ROW(B111)))&"" ->  | C114: =INDEX(信誉提升汇总记录表!C:C,SMALL(IF(信誉提升汇总记录表!$A:$A=$C$2,ROW($B:$B),36500),ROW(C111)))&"" ->  | D114: =INDEX(信誉提升汇总记录表!D:D,SMALL(IF(信誉提升汇总记录表!$A:$A=$C$2,ROW($B:$B),36500),ROW(D111)))&"" ->  | E114: =IF(ISERROR(VALUE(INDEX(信誉提升汇总记录表!E:E,SMALL(IF(信誉提升汇总记录表!$A:$A=$C$2,ROW($B:$B),36500),ROW(E111)))&"")),"",VALUE(INDEX(信誉提升汇总记录表!E:E,SMALL(IF(信誉提升汇总记录表!$A:$A=$C$2,ROW($B:$B),36500),ROW(E111)))&"")) ->  | F114: =INDEX(信誉提升汇总记录表!J:J,SMALL(IF(信誉提升汇总记录表!$A:$A=$C$2,ROW($B:$B),36500),ROW(F111)))&"" ->  | G114: =INDEX(信誉提升汇总记录表!K:K,SMALL(IF(信誉提升汇总记录表!$A:$A=$C$2,ROW($B:$B),36500),ROW(G111)))&"" ->  | H114: =INDEX(信誉提升汇总记录表!M:M,SMALL(IF(信誉提升汇总记录表!$A:$A=$C$2,ROW($B:$B),36500),ROW(H111)))&"" -> 
A115: =IF(B115="","",INDEX(信誉提升汇总记录表!B:B,SMALL(IF(信誉提升汇总记录表!$A:$A=$C$2,ROW($B:$B),36500),ROW(A112)))) ->  | B115: =INDEX(信誉提升汇总记录表!A:A,SMALL(IF(信誉提升汇总记录表!$A:$A=$C$2,ROW($B:$B),36500),ROW(B112)))&"" ->  | C115: =INDEX(信誉提升汇总记录表!C:C,SMALL(IF(信誉提升汇总记录表!$A:$A=$C$2,ROW($B:$B),36500),ROW(C112)))&"" ->  | D115: =INDEX(信誉提升汇总记录表!D:D,SMALL(IF(信誉提升汇总记录表!$A:$A=$C$2,ROW($B:$B),36500),ROW(D112)))&"" ->  | E115: =IF(ISERROR(VALUE(INDEX(信誉提升汇总记录表!E:E,SMALL(IF(信誉提升汇总记录表!$A:$A=$C$2,ROW($B:$B),36500),ROW(E112)))&"")),"",VALUE(INDEX(信誉提升汇总记录表!E:E,SMALL(IF(信誉提升汇总记录表!$A:$A=$C$2,ROW($B:$B),36500),ROW(E112)))&"")) ->  | F115: =INDEX(信誉提升汇总记录表!J:J,SMALL(IF(信誉提升汇总记录表!$A:$A=$C$2,ROW($B:$B),36500),ROW(F112)))&"" ->  | G115: =INDEX(信誉提升汇总记录表!K:K,SMALL(IF(信誉提升汇总记录表!$A:$A=$C$2,ROW($B:$B),36500),ROW(G112)))&"" ->  | H115: =INDEX(信誉提升汇总记录表!M:M,SMALL(IF(信誉提升汇总记录表!$A:$A=$C$2,ROW($B:$B),36500),ROW(H112)))&"" -> 
A116: =IF(B116="","",INDEX(信誉提升汇总记录表!B:B,SMALL(IF(信誉提升汇总记录表!$A:$A=$C$2,ROW($B:$B),36500),ROW(A113)))) ->  | B116: =INDEX(信誉提升汇总记录表!A:A,SMALL(IF(信誉提升汇总记录表!$A:$A=$C$2,ROW($B:$B),36500),ROW(B113)))&"" ->  | C116: =INDEX(信誉提升汇总记录表!C:C,SMALL(IF(信誉提升汇总记录表!$A:$A=$C$2,ROW($B:$B),36500),ROW(C113)))&"" ->  | D116: =INDEX(信誉提升汇总记录表!D:D,SMALL(IF(信誉提升汇总记录表!$A:$A=$C$2,ROW($B:$B),36500),ROW(D113)))&"" ->  | E116: =IF(ISERROR(VALUE(INDEX(信誉提升汇总记录表!E:E,SMALL(IF(信誉提升汇总记录表!$A:$A=$C$2,ROW($B:$B),36500),ROW(E113)))&"")),"",VALUE(INDEX(信誉提升汇总记录表!E:E,SMALL(IF(信誉提升汇总记录表!$A:$A=$C$2,ROW($B:$B),36500),ROW(E113)))&"")) ->  | F116: =INDEX(信誉提升汇总记录表!J:J,SMALL(IF(信誉提升汇总记录表!$A:$A=$C$2,ROW($B:$B),36500),ROW(F113)))&"" ->  | G116: =INDEX(信誉提升汇总记录表!K:K,SMALL(IF(信誉提升汇总记录表!$A:$A=$C$2,ROW($B:$B),36500),ROW(G113)))&"" ->  | H116: =INDEX(信誉提升汇总记录表!M:M,SMALL(IF(信誉提升汇总记录表!$A:$A=$C$2,ROW($B:$B),36500),ROW(H113)))&"" -> 
A117: =IF(B117="","",INDEX(信誉提升汇总记录表!B:B,SMALL(IF(信誉提升汇总记录表!$A:$A=$C$2,ROW($B:$B),36500),ROW(A114)))) ->  | B117: =INDEX(信誉提升汇总记录表!A:A,SMALL(IF(信誉提升汇总记录表!$A:$A=$C$2,ROW($B:$B),36500),ROW(B114)))&"" ->  | C117: =INDEX(信誉提升汇总记录表!C:C,SMALL(IF(信誉提升汇总记录表!$A:$A=$C$2,ROW($B:$B),36500),ROW(C114)))&"" ->  | D117: =INDEX(信誉提升汇总记录表!D:D,SMALL(IF(信誉提升汇总记录表!$A:$A=$C$2,ROW($B:$B),36500),ROW(D114)))&"" ->  | E117: =IF(ISERROR(VALUE(INDEX(信誉提升汇总记录表!E:E,SMALL(IF(信誉提升汇总记录表!$A:$A=$C$2,ROW($B:$B),36500),ROW(E114)))&"")),"",VALUE(INDEX(信誉提升汇总记录表!E:E,SMALL(IF(信誉提升汇总记录表!$A:$A=$C$2,ROW($B:$B),36500),ROW(E114)))&"")) ->  | F117: =INDEX(信誉提升汇总记录表!J:J,SMALL(IF(信誉提升汇总记录表!$A:$A=$C$2,ROW($B:$B),36500),ROW(F114)))&"" ->  | G117: =INDEX(信誉提升汇总记录表!K:K,SMALL(IF(信誉提升汇总记录表!$A:$A=$C$2,ROW($B:$B),36500),ROW(G114)))&"" ->  | H117: =INDEX(信誉提升汇总记录表!M:M,SMALL(IF(信誉提升汇总记录表!$A:$A=$C$2,ROW($B:$B),36500),ROW(H114)))&"" -> 
A118: =IF(B118="","",INDEX(信誉提升汇总记录表!B:B,SMALL(IF(信誉提升汇总记录表!$A:$A=$C$2,ROW($B:$B),36500),ROW(A115)))) ->  | B118: =INDEX(信誉提升汇总记录表!A:A,SMALL(IF(信誉提升汇总记录表!$A:$A=$C$2,ROW($B:$B),36500),ROW(B115)))&"" ->  | C118: =INDEX(信誉提升汇总记录表!C:C,SMALL(IF(信誉提升汇总记录表!$A:$A=$C$2,ROW($B:$B),36500),ROW(C115)))&"" ->  | D118: =INDEX(信誉提升汇总记录表!D:D,SMALL(IF(信誉提升汇总记录表!$A:$A=$C$2,ROW($B:$B),36500),ROW(D115)))&"" ->  | E118: =IF(ISERROR(VALUE(INDEX(信誉提升汇总记录表!E:E,SMALL(IF(信誉提升汇总记录表!$A:$A=$C$2,ROW($B:$B),36500),ROW(E115)))&"")),"",VALUE(INDEX(信誉提升汇总记录表!E:E,SMALL(IF(信誉提升汇总记录表!$A:$A=$C$2,ROW($B:$B),36500),ROW(E115)))&"")) ->  | F118: =INDEX(信誉提升汇总记录表!J:J,SMALL(IF(信誉提升汇总记录表!$A:$A=$C$2,ROW($B:$B),36500),ROW(F115)))&"" ->  | G118: =INDEX(信誉提升汇总记录表!K:K,SMALL(IF(信誉提升汇总记录表!$A:$A=$C$2,ROW($B:$B),36500),ROW(G115)))&"" ->  | H118: =INDEX(信誉提升汇总记录表!M:M,SMALL(IF(信誉提升汇总记录表!$A:$A=$C$2,ROW($B:$B),36500),ROW(H115)))&"" -> 
A119: =IF(B119="","",INDEX(信誉提升汇总记录表!B:B,SMALL(IF(信誉提升汇总记录表!$A:$A=$C$2,ROW($B:$B),36500),ROW(A116)))) ->  | B119: =INDEX(信誉提升汇总记录表!A:A,SMALL(IF(信誉提升汇总记录表!$A:$A=$C$2,ROW($B:$B),36500),ROW(B116)))&"" ->  | C119: =INDEX(信誉提升汇总记录表!C:C,SMALL(IF(信誉提升汇总记录表!$A:$A=$C$2,ROW($B:$B),36500),ROW(C116)))&"" ->  | D119: =INDEX(信誉提升汇总记录表!D:D,SMALL(IF(信誉提升汇总记录表!$A:$A=$C$2,ROW($B:$B),36500),ROW(D116)))&"" ->  | E119: =IF(ISERROR(VALUE(INDEX(信誉提升汇总记录表!E:E,SMALL(IF(信誉提升汇总记录表!$A:$A=$C$2,ROW($B:$B),36500),ROW(E116)))&"")),"",VALUE(INDEX(信誉提升汇总记录表!E:E,SMALL(IF(信誉提升汇总记录表!$A:$A=$C$2,ROW($B:$B),36500),ROW(E116)))&"")) ->  | F119: =INDEX(信誉提升汇总记录表!J:J,SMALL(IF(信誉提升汇总记录表!$A:$A=$C$2,ROW($B:$B),36500),ROW(F116)))&"" ->  | G119: =INDEX(信誉提升汇总记录表!K:K,SMALL(IF(信誉提升汇总记录表!$A:$A=$C$2,ROW($B:$B),36500),ROW(G116)))&"" ->  | H119: =INDEX(信誉提升汇总记录表!M:M,SMALL(IF(信誉提升汇总记录表!$A:$A=$C$2,ROW($B:$B),36500),ROW(H116)))&"" -> 
A120: =IF(B120="","",INDEX(信誉提升汇总记录表!B:B,SMALL(IF(信誉提升汇总记录表!$A:$A=$C$2,ROW($B:$B),36500),ROW(A117)))) ->  | B120: =INDEX(信誉提升汇总记录表!A:A,SMALL(IF(信誉提升汇总记录表!$A:$A=$C$2,ROW($B:$B),36500),ROW(B117)))&"" ->  | C120: =INDEX(信誉提升汇总记录表!C:C,SMALL(IF(信誉提升汇总记录表!$A:$A=$C$2,ROW($B:$B),36500),ROW(C117)))&"" ->  | D120: =INDEX(信誉提升汇总记录表!D:D,SMALL(IF(信誉提升汇总记录表!$A:$A=$C$2,ROW($B:$B),36500),ROW(D117)))&"" ->  | E120: =IF(ISERROR(VALUE(INDEX(信誉提升汇总记录表!E:E,SMALL(IF(信誉提升汇总记录表!$A:$A=$C$2,ROW($B:$B),36500),ROW(E117)))&"")),"",VALUE(INDEX(信誉提升汇总记录表!E:E,SMALL(IF(信誉提升汇总记录表!$A:$A=$C$2,ROW($B:$B),36500),ROW(E117)))&"")) ->  | F120: =INDEX(信誉提升汇总记录表!J:J,SMALL(IF(信誉提升汇总记录表!$A:$A=$C$2,ROW($B:$B),36500),ROW(F117)))&"" ->  | G120: =INDEX(信誉提升汇总记录表!K:K,SMALL(IF(信誉提升汇总记录表!$A:$A=$C$2,ROW($B:$B),36500),ROW(G117)))&"" ->  | H120: =INDEX(信誉提升汇总记录表!M:M,SMALL(IF(信誉提升汇总记录表!$A:$A=$C$2,ROW($B:$B),36500),ROW(H117)))&"" -> 
A121: =IF(B121="","",INDEX(信誉提升汇总记录表!B:B,SMALL(IF(信誉提升汇总记录表!$A:$A=$C$2,ROW($B:$B),36500),ROW(A118)))) ->  | B121: =INDEX(信誉提升汇总记录表!A:A,SMALL(IF(信誉提升汇总记录表!$A:$A=$C$2,ROW($B:$B),36500),ROW(B118)))&"" ->  | C121: =INDEX(信誉提升汇总记录表!C:C,SMALL(IF(信誉提升汇总记录表!$A:$A=$C$2,ROW($B:$B),36500),ROW(C118)))&"" ->  | D121: =INDEX(信誉提升汇总记录表!D:D,SMALL(IF(信誉提升汇总记录表!$A:$A=$C$2,ROW($B:$B),36500),ROW(D118)))&"" ->  | E121: =IF(ISERROR(VALUE(INDEX(信誉提升汇总记录表!E:E,SMALL(IF(信誉提升汇总记录表!$A:$A=$C$2,ROW($B:$B),36500),ROW(E118)))&"")),"",VALUE(INDEX(信誉提升汇总记录表!E:E,SMALL(IF(信誉提升汇总记录表!$A:$A=$C$2,ROW($B:$B),36500),ROW(E118)))&"")) ->  | F121: =INDEX(信誉提升汇总记录表!J:J,SMALL(IF(信誉提升汇总记录表!$A:$A=$C$2,ROW($B:$B),36500),ROW(F118)))&"" ->  | G121: =INDEX(信誉提升汇总记录表!K:K,SMALL(IF(信誉提升汇总记录表!$A:$A=$C$2,ROW($B:$B),36500),ROW(G118)))&"" ->  | H121: =INDEX(信誉提升汇总记录表!M:M,SMALL(IF(信誉提升汇总记录表!$A:$A=$C$2,ROW($B:$B),36500),ROW(H118)))&"" -> 
A122: =IF(B122="","",INDEX(信誉提升汇总记录表!B:B,SMALL(IF(信誉提升汇总记录表!$A:$A=$C$2,ROW($B:$B),36500),ROW(A119)))) ->  | B122: =INDEX(信誉提升汇总记录表!A:A,SMALL(IF(信誉提升汇总记录表!$A:$A=$C$2,ROW($B:$B),36500),ROW(B119)))&"" ->  | C122: =INDEX(信誉提升汇总记录表!C:C,SMALL(IF(信誉提升汇总记录表!$A:$A=$C$2,ROW($B:$B),36500),ROW(C119)))&"" ->  | D122: =INDEX(信誉提升汇总记录表!D:D,SMALL(IF(信誉提升汇总记录表!$A:$A=$C$2,ROW($B:$B),36500),ROW(D119)))&"" ->  | E122: =IF(ISERROR(VALUE(INDEX(信誉提升汇总记录表!E:E,SMALL(IF(信誉提升汇总记录表!$A:$A=$C$2,ROW($B:$B),36500),ROW(E119)))&"")),"",VALUE(INDEX(信誉提升汇总记录表!E:E,SMALL(IF(信誉提升汇总记录表!$A:$A=$C$2,ROW($B:$B),36500),ROW(E119)))&"")) ->  | F122: =INDEX(信誉提升汇总记录表!J:J,SMALL(IF(信誉提升汇总记录表!$A:$A=$C$2,ROW($B:$B),36500),ROW(F119)))&"" ->  | G122: =INDEX(信誉提升汇总记录表!K:K,SMALL(IF(信誉提升汇总记录表!$A:$A=$C$2,ROW($B:$B),36500),ROW(G119)))&"" ->  | H122: =INDEX(信誉提升汇总记录表!M:M,SMALL(IF(信誉提升汇总记录表!$A:$A=$C$2,ROW($B:$B),36500),ROW(H119)))&"" -> 
A123: =IF(B123="","",INDEX(信誉提升汇总记录表!B:B,SMALL(IF(信誉提升汇总记录表!$A:$A=$C$2,ROW($B:$B),36500),ROW(A120)))) ->  | B123: =INDEX(信誉提升汇总记录表!A:A,SMALL(IF(信誉提升汇总记录表!$A:$A=$C$2,ROW($B:$B),36500),ROW(B120)))&"" ->  | C123: =INDEX(信誉提升汇总记录表!C:C,SMALL(IF(信誉提升汇总记录表!$A:$A=$C$2,ROW($B:$B),36500),ROW(C120)))&"" ->  | D123: =INDEX(信誉提升汇总记录表!D:D,SMALL(IF(信誉提升汇总记录表!$A:$A=$C$2,ROW($B:$B),36500),ROW(D120)))&"" ->  | E123: =IF(ISERROR(VALUE(INDEX(信誉提升汇总记录表!E:E,SMALL(IF(信誉提升汇总记录表!$A:$A=$C$2,ROW($B:$B),36500),ROW(E120)))&"")),"",VALUE(INDEX(信誉提升汇总记录表!E:E,SMALL(IF(信誉提升汇总记录表!$A:$A=$C$2,ROW($B:$B),36500),ROW(E120)))&"")) ->  | F123: =INDEX(信誉提升汇总记录表!J:J,SMALL(IF(信誉提升汇总记录表!$A:$A=$C$2,ROW($B:$B),36500),ROW(F120)))&"" ->  | G123: =INDEX(信誉提升汇总记录表!K:K,SMALL(IF(信誉提升汇总记录表!$A:$A=$C$2,ROW($B:$B),36500),ROW(G120)))&"" ->  | H123: =INDEX(信誉提升汇总记录表!M:M,SMALL(IF(信誉提升汇总记录表!$A:$A=$C$2,ROW($B:$B),36500),ROW(H120)))&"" -> 
A124: =IF(B124="","",INDEX(信誉提升汇总记录表!B:B,SMALL(IF(信誉提升汇总记录表!$A:$A=$C$2,ROW($B:$B),36500),ROW(A121)))) ->  | B124: =INDEX(信誉提升汇总记录表!A:A,SMALL(IF(信誉提升汇总记录表!$A:$A=$C$2,ROW($B:$B),36500),ROW(B121)))&"" ->  | C124: =INDEX(信誉提升汇总记录表!C:C,SMALL(IF(信誉提升汇总记录表!$A:$A=$C$2,ROW($B:$B),36500),ROW(C121)))&"" ->  | D124: =INDEX(信誉提升汇总记录表!D:D,SMALL(IF(信誉提升汇总记录表!$A:$A=$C$2,ROW($B:$B),36500),ROW(D121)))&"" ->  | E124: =IF(ISERROR(VALUE(INDEX(信誉提升汇总记录表!E:E,SMALL(IF(信誉提升汇总记录表!$A:$A=$C$2,ROW($B:$B),36500),ROW(E121)))&"")),"",VALUE(INDEX(信誉提升汇总记录表!E:E,SMALL(IF(信誉提升汇总记录表!$A:$A=$C$2,ROW($B:$B),36500),ROW(E121)))&"")) ->  | F124: =INDEX(信誉提升汇总记录表!J:J,SMALL(IF(信誉提升汇总记录表!$A:$A=$C$2,ROW($B:$B),36500),ROW(F121)))&"" ->  | G124: =INDEX(信誉提升汇总记录表!K:K,SMALL(IF(信誉提升汇总记录表!$A:$A=$C$2,ROW($B:$B),36500),ROW(G121)))&"" ->  | H124: =INDEX(信誉提升汇总记录表!M:M,SMALL(IF(信誉提升汇总记录表!$A:$A=$C$2,ROW($B:$B),36500),ROW(H121)))&"" -> 
A125: =IF(B125="","",INDEX(信誉提升汇总记录表!B:B,SMALL(IF(信誉提升汇总记录表!$A:$A=$C$2,ROW($B:$B),36500),ROW(A122)))) ->  | B125: =INDEX(信誉提升汇总记录表!A:A,SMALL(IF(信誉提升汇总记录表!$A:$A=$C$2,ROW($B:$B),36500),ROW(B122)))&"" ->  | C125: =INDEX(信誉提升汇总记录表!C:C,SMALL(IF(信誉提升汇总记录表!$A:$A=$C$2,ROW($B:$B),36500),ROW(C122)))&"" ->  | D125: =INDEX(信誉提升汇总记录表!D:D,SMALL(IF(信誉提升汇总记录表!$A:$A=$C$2,ROW($B:$B),36500),ROW(D122)))&"" ->  | E125: =IF(ISERROR(VALUE(INDEX(信誉提升汇总记录表!E:E,SMALL(IF(信誉提升汇总记录表!$A:$A=$C$2,ROW($B:$B),36500),ROW(E122)))&"")),"",VALUE(INDEX(信誉提升汇总记录表!E:E,SMALL(IF(信誉提升汇总记录表!$A:$A=$C$2,ROW($B:$B),36500),ROW(E122)))&"")) ->  | F125: =INDEX(信誉提升汇总记录表!J:J,SMALL(IF(信誉提升汇总记录表!$A:$A=$C$2,ROW($B:$B),36500),ROW(F122)))&"" ->  | G125: =INDEX(信誉提升汇总记录表!K:K,SMALL(IF(信誉提升汇总记录表!$A:$A=$C$2,ROW($B:$B),36500),ROW(G122)))&"" ->  | H125: =INDEX(信誉提升汇总记录表!M:M,SMALL(IF(信誉提升汇总记录表!$A:$A=$C$2,ROW($B:$B),36500),ROW(H122)))&"" -> 
A126: =IF(B126="","",INDEX(信誉提升汇总记录表!B:B,SMALL(IF(信誉提升汇总记录表!$A:$A=$C$2,ROW($B:$B),36500),ROW(A123)))) ->  | B126: =INDEX(信誉提升汇总记录表!A:A,SMALL(IF(信誉提升汇总记录表!$A:$A=$C$2,ROW($B:$B),36500),ROW(B123)))&"" ->  | C126: =INDEX(信誉提升汇总记录表!C:C,SMALL(IF(信誉提升汇总记录表!$A:$A=$C$2,ROW($B:$B),36500),ROW(C123)))&"" ->  | D126: =INDEX(信誉提升汇总记录表!D:D,SMALL(IF(信誉提升汇总记录表!$A:$A=$C$2,ROW($B:$B),36500),ROW(D123)))&"" ->  | E126: =IF(ISERROR(VALUE(INDEX(信誉提升汇总记录表!E:E,SMALL(IF(信誉提升汇总记录表!$A:$A=$C$2,ROW($B:$B),36500),ROW(E123)))&"")),"",VALUE(INDEX(信誉提升汇总记录表!E:E,SMALL(IF(信誉提升汇总记录表!$A:$A=$C$2,ROW($B:$B),36500),ROW(E123)))&"")) ->  | F126: =INDEX(信誉提升汇总记录表!J:J,SMALL(IF(信誉提升汇总记录表!$A:$A=$C$2,ROW($B:$B),36500),ROW(F123)))&"" ->  | G126: =INDEX(信誉提升汇总记录表!K:K,SMALL(IF(信誉提升汇总记录表!$A:$A=$C$2,ROW($B:$B),36500),ROW(G123)))&"" ->  | H126: =INDEX(信誉提升汇总记录表!M:M,SMALL(IF(信誉提升汇总记录表!$A:$A=$C$2,ROW($B:$B),36500),ROW(H123)))&"" -> 
A127: =IF(B127="","",INDEX(信誉提升汇总记录表!B:B,SMALL(IF(信誉提升汇总记录表!$A:$A=$C$2,ROW($B:$B),36500),ROW(A124)))) ->  | B127: =INDEX(信誉提升汇总记录表!A:A,SMALL(IF(信誉提升汇总记录表!$A:$A=$C$2,ROW($B:$B),36500),ROW(B124)))&"" ->  | C127: =INDEX(信誉提升汇总记录表!C:C,SMALL(IF(信誉提升汇总记录表!$A:$A=$C$2,ROW($B:$B),36500),ROW(C124)))&"" ->  | D127: =INDEX(信誉提升汇总记录表!D:D,SMALL(IF(信誉提升汇总记录表!$A:$A=$C$2,ROW($B:$B),36500),ROW(D124)))&"" ->  | E127: =IF(ISERROR(VALUE(INDEX(信誉提升汇总记录表!E:E,SMALL(IF(信誉提升汇总记录表!$A:$A=$C$2,ROW($B:$B),36500),ROW(E124)))&"")),"",VALUE(INDEX(信誉提升汇总记录表!E:E,SMALL(IF(信誉提升汇总记录表!$A:$A=$C$2,ROW($B:$B),36500),ROW(E124)))&"")) ->  | F127: =INDEX(信誉提升汇总记录表!J:J,SMALL(IF(信誉提升汇总记录表!$A:$A=$C$2,ROW($B:$B),36500),ROW(F124)))&"" ->  | G127: =INDEX(信誉提升汇总记录表!K:K,SMALL(IF(信誉提升汇总记录表!$A:$A=$C$2,ROW($B:$B),36500),ROW(G124)))&"" ->  | H127: =INDEX(信誉提升汇总记录表!M:M,SMALL(IF(信誉提升汇总记录表!$A:$A=$C$2,ROW($B:$B),36500),ROW(H124)))&"" -> 
A128: =IF(B128="","",INDEX(信誉提升汇总记录表!B:B,SMALL(IF(信誉提升汇总记录表!$A:$A=$C$2,ROW($B:$B),36500),ROW(A125)))) ->  | B128: =INDEX(信誉提升汇总记录表!A:A,SMALL(IF(信誉提升汇总记录表!$A:$A=$C$2,ROW($B:$B),36500),ROW(B125)))&"" ->  | C128: =INDEX(信誉提升汇总记录表!C:C,SMALL(IF(信誉提升汇总记录表!$A:$A=$C$2,ROW($B:$B),36500),ROW(C125)))&"" ->  | D128: =INDEX(信誉提升汇总记录表!D:D,SMALL(IF(信誉提升汇总记录表!$A:$A=$C$2,ROW($B:$B),36500),ROW(D125)))&"" ->  | E128: =IF(ISERROR(VALUE(INDEX(信誉提升汇总记录表!E:E,SMALL(IF(信誉提升汇总记录表!$A:$A=$C$2,ROW($B:$B),36500),ROW(E125)))&"")),"",VALUE(INDEX(信誉提升汇总记录表!E:E,SMALL(IF(信誉提升汇总记录表!$A:$A=$C$2,ROW($B:$B),36500),ROW(E125)))&"")) ->  | F128: =INDEX(信誉提升汇总记录表!J:J,SMALL(IF(信誉提升汇总记录表!$A:$A=$C$2,ROW($B:$B),36500),ROW(F125)))&"" ->  | G128: =INDEX(信誉提升汇总记录表!K:K,SMALL(IF(信誉提升汇总记录表!$A:$A=$C$2,ROW($B:$B),36500),ROW(G125)))&"" ->  | H128: =INDEX(信誉提升汇总记录表!M:M,SMALL(IF(信誉提升汇总记录表!$A:$A=$C$2,ROW($B:$B),36500),ROW(H125)))&"" -> 
A129: =IF(B129="","",INDEX(信誉提升汇总记录表!B:B,SMALL(IF(信誉提升汇总记录表!$A:$A=$C$2,ROW($B:$B),36500),ROW(A126)))) ->  | B129: =INDEX(信誉提升汇总记录表!A:A,SMALL(IF(信誉提升汇总记录表!$A:$A=$C$2,ROW($B:$B),36500),ROW(B126)))&"" ->  | C129: =INDEX(信誉提升汇总记录表!C:C,SMALL(IF(信誉提升汇总记录表!$A:$A=$C$2,ROW($B:$B),36500),ROW(C126)))&"" ->  | D129: =INDEX(信誉提升汇总记录表!D:D,SMALL(IF(信誉提升汇总记录表!$A:$A=$C$2,ROW($B:$B),36500),ROW(D126)))&"" ->  | E129: =IF(ISERROR(VALUE(INDEX(信誉提升汇总记录表!E:E,SMALL(IF(信誉提升汇总记录表!$A:$A=$C$2,ROW($B:$B),36500),ROW(E126)))&"")),"",VALUE(INDEX(信誉提升汇总记录表!E:E,SMALL(IF(信誉提升汇总记录表!$A:$A=$C$2,ROW($B:$B),36500),ROW(E126)))&"")) ->  | F129: =INDEX(信誉提升汇总记录表!J:J,SMALL(IF(信誉提升汇总记录表!$A:$A=$C$2,ROW($B:$B),36500),ROW(F126)))&"" ->  | G129: =INDEX(信誉提升汇总记录表!K:K,SMALL(IF(信誉提升汇总记录表!$A:$A=$C$2,ROW($B:$B),36500),ROW(G126)))&"" ->  | H129: =INDEX(信誉提升汇总记录表!M:M,SMALL(IF(信誉提升汇总记录表!$A:$A=$C$2,ROW($B:$B),36500),ROW(H126)))&"" -> 
A130: =IF(B130="","",INDEX(信誉提升汇总记录表!B:B,SMALL(IF(信誉提升汇总记录表!$A:$A=$C$2,ROW($B:$B),36500),ROW(A127)))) ->  | B130: =INDEX(信誉提升汇总记录表!A:A,SMALL(IF(信誉提升汇总记录表!$A:$A=$C$2,ROW($B:$B),36500),ROW(B127)))&"" ->  | C130: =INDEX(信誉提升汇总记录表!C:C,SMALL(IF(信誉提升汇总记录表!$A:$A=$C$2,ROW($B:$B),36500),ROW(C127)))&"" ->  | D130: =INDEX(信誉提升汇总记录表!D:D,SMALL(IF(信誉提升汇总记录表!$A:$A=$C$2,ROW($B:$B),36500),ROW(D127)))&"" ->  | E130: =IF(ISERROR(VALUE(INDEX(信誉提升汇总记录表!E:E,SMALL(IF(信誉提升汇总记录表!$A:$A=$C$2,ROW($B:$B),36500),ROW(E127)))&"")),"",VALUE(INDEX(信誉提升汇总记录表!E:E,SMALL(IF(信誉提升汇总记录表!$A:$A=$C$2,ROW($B:$B),36500),ROW(E127)))&"")) ->  | F130: =INDEX(信誉提升汇总记录表!J:J,SMALL(IF(信誉提升汇总记录表!$A:$A=$C$2,ROW($B:$B),36500),ROW(F127)))&"" ->  | G130: =INDEX(信誉提升汇总记录表!K:K,SMALL(IF(信誉提升汇总记录表!$A:$A=$C$2,ROW($B:$B),36500),ROW(G127)))&"" ->  | H130: =INDEX(信誉提升汇总记录表!M:M,SMALL(IF(信誉提升汇总记录表!$A:$A=$C$2,ROW($B:$B),36500),ROW(H127)))&"" -> 
A131: =IF(B131="","",INDEX(信誉提升汇总记录表!B:B,SMALL(IF(信誉提升汇总记录表!$A:$A=$C$2,ROW($B:$B),36500),ROW(A128)))) ->  | B131: =INDEX(信誉提升汇总记录表!A:A,SMALL(IF(信誉提升汇总记录表!$A:$A=$C$2,ROW($B:$B),36500),ROW(B128)))&"" ->  | C131: =INDEX(信誉提升汇总记录表!C:C,SMALL(IF(信誉提升汇总记录表!$A:$A=$C$2,ROW($B:$B),36500),ROW(C128)))&"" ->  | D131: =INDEX(信誉提升汇总记录表!D:D,SMALL(IF(信誉提升汇总记录表!$A:$A=$C$2,ROW($B:$B),36500),ROW(D128)))&"" ->  | E131: =IF(ISERROR(VALUE(INDEX(信誉提升汇总记录表!E:E,SMALL(IF(信誉提升汇总记录表!$A:$A=$C$2,ROW($B:$B),36500),ROW(E128)))&"")),"",VALUE(INDEX(信誉提升汇总记录表!E:E,SMALL(IF(信誉提升汇总记录表!$A:$A=$C$2,ROW($B:$B),36500),ROW(E128)))&"")) ->  | F131: =INDEX(信誉提升汇总记录表!J:J,SMALL(IF(信誉提升汇总记录表!$A:$A=$C$2,ROW($B:$B),36500),ROW(F128)))&"" ->  | G131: =INDEX(信誉提升汇总记录表!K:K,SMALL(IF(信誉提升汇总记录表!$A:$A=$C$2,ROW($B:$B),36500),ROW(G128)))&"" ->  | H131: =INDEX(信誉提升汇总记录表!M:M,SMALL(IF(信誉提升汇总记录表!$A:$A=$C$2,ROW($B:$B),36500),ROW(H128)))&"" -> 
A132: =IF(B132="","",INDEX(信誉提升汇总记录表!B:B,SMALL(IF(信誉提升汇总记录表!$A:$A=$C$2,ROW($B:$B),36500),ROW(A129)))) ->  | B132: =INDEX(信誉提升汇总记录表!A:A,SMALL(IF(信誉提升汇总记录表!$A:$A=$C$2,ROW($B:$B),36500),ROW(B129)))&"" ->  | C132: =INDEX(信誉提升汇总记录表!C:C,SMALL(IF(信誉提升汇总记录表!$A:$A=$C$2,ROW($B:$B),36500),ROW(C129)))&"" ->  | D132: =INDEX(信誉提升汇总记录表!D:D,SMALL(IF(信誉提升汇总记录表!$A:$A=$C$2,ROW($B:$B),36500),ROW(D129)))&"" ->  | E132: =IF(ISERROR(VALUE(INDEX(信誉提升汇总记录表!E:E,SMALL(IF(信誉提升汇总记录表!$A:$A=$C$2,ROW($B:$B),36500),ROW(E129)))&"")),"",VALUE(INDEX(信誉提升汇总记录表!E:E,SMALL(IF(信誉提升汇总记录表!$A:$A=$C$2,ROW($B:$B),36500),ROW(E129)))&"")) ->  | F132: =INDEX(信誉提升汇总记录表!J:J,SMALL(IF(信誉提升汇总记录表!$A:$A=$C$2,ROW($B:$B),36500),ROW(F129)))&"" ->  | G132: =INDEX(信誉提升汇总记录表!K:K,SMALL(IF(信誉提升汇总记录表!$A:$A=$C$2,ROW($B:$B),36500),ROW(G129)))&"" ->  | H132: =INDEX(信誉提升汇总记录表!M:M,SMALL(IF(信誉提升汇总记录表!$A:$A=$C$2,ROW($B:$B),36500),ROW(H129)))&"" -> 
A133: =IF(B133="","",INDEX(信誉提升汇总记录表!B:B,SMALL(IF(信誉提升汇总记录表!$A:$A=$C$2,ROW($B:$B),36500),ROW(A130)))) ->  | B133: =INDEX(信誉提升汇总记录表!A:A,SMALL(IF(信誉提升汇总记录表!$A:$A=$C$2,ROW($B:$B),36500),ROW(B130)))&"" ->  | C133: =INDEX(信誉提升汇总记录表!C:C,SMALL(IF(信誉提升汇总记录表!$A:$A=$C$2,ROW($B:$B),36500),ROW(C130)))&"" ->  | D133: =INDEX(信誉提升汇总记录表!D:D,SMALL(IF(信誉提升汇总记录表!$A:$A=$C$2,ROW($B:$B),36500),ROW(D130)))&"" ->  | E133: =IF(ISERROR(VALUE(INDEX(信誉提升汇总记录表!E:E,SMALL(IF(信誉提升汇总记录表!$A:$A=$C$2,ROW($B:$B),36500),ROW(E130)))&"")),"",VALUE(INDEX(信誉提升汇总记录表!E:E,SMALL(IF(信誉提升汇总记录表!$A:$A=$C$2,ROW($B:$B),36500),ROW(E130)))&"")) ->  | F133: =INDEX(信誉提升汇总记录表!J:J,SMALL(IF(信誉提升汇总记录表!$A:$A=$C$2,ROW($B:$B),36500),ROW(F130)))&"" ->  | G133: =INDEX(信誉提升汇总记录表!K:K,SMALL(IF(信誉提升汇总记录表!$A:$A=$C$2,ROW($B:$B),36500),ROW(G130)))&"" ->  | H133: =INDEX(信誉提升汇总记录表!M:M,SMALL(IF(信誉提升汇总记录表!$A:$A=$C$2,ROW($B:$B),36500),ROW(H130)))&"" -> 
A134: =IF(B134="","",INDEX(信誉提升汇总记录表!B:B,SMALL(IF(信誉提升汇总记录表!$A:$A=$C$2,ROW($B:$B),36500),ROW(A131)))) ->  | B134: =INDEX(信誉提升汇总记录表!A:A,SMALL(IF(信誉提升汇总记录表!$A:$A=$C$2,ROW($B:$B),36500),ROW(B131)))&"" ->  | C134: =INDEX(信誉提升汇总记录表!C:C,SMALL(IF(信誉提升汇总记录表!$A:$A=$C$2,ROW($B:$B),36500),ROW(C131)))&"" ->  | D134: =INDEX(信誉提升汇总记录表!D:D,SMALL(IF(信誉提升汇总记录表!$A:$A=$C$2,ROW($B:$B),36500),ROW(D131)))&"" ->  | E134: =IF(ISERROR(VALUE(INDEX(信誉提升汇总记录表!E:E,SMALL(IF(信誉提升汇总记录表!$A:$A=$C$2,ROW($B:$B),36500),ROW(E131)))&"")),"",VALUE(INDEX(信誉提升汇总记录表!E:E,SMALL(IF(信誉提升汇总记录表!$A:$A=$C$2,ROW($B:$B),36500),ROW(E131)))&"")) ->  | F134: =INDEX(信誉提升汇总记录表!J:J,SMALL(IF(信誉提升汇总记录表!$A:$A=$C$2,ROW($B:$B),36500),ROW(F131)))&"" ->  | G134: =INDEX(信誉提升汇总记录表!K:K,SMALL(IF(信誉提升汇总记录表!$A:$A=$C$2,ROW($B:$B),36500),ROW(G131)))&"" ->  | H134: =INDEX(信誉提升汇总记录表!M:M,SMALL(IF(信誉提升汇总记录表!$A:$A=$C$2,ROW($B:$B),36500),ROW(H131)))&"" -> 
A135: =IF(B135="","",INDEX(信誉提升汇总记录表!B:B,SMALL(IF(信誉提升汇总记录表!$A:$A=$C$2,ROW($B:$B),36500),ROW(A132)))) ->  | B135: =INDEX(信誉提升汇总记录表!A:A,SMALL(IF(信誉提升汇总记录表!$A:$A=$C$2,ROW($B:$B),36500),ROW(B132)))&"" ->  | C135: =INDEX(信誉提升汇总记录表!C:C,SMALL(IF(信誉提升汇总记录表!$A:$A=$C$2,ROW($B:$B),36500),ROW(C132)))&"" ->  | D135: =INDEX(信誉提升汇总记录表!D:D,SMALL(IF(信誉提升汇总记录表!$A:$A=$C$2,ROW($B:$B),36500),ROW(D132)))&"" ->  | E135: =IF(ISERROR(VALUE(INDEX(信誉提升汇总记录表!E:E,SMALL(IF(信誉提升汇总记录表!$A:$A=$C$2,ROW($B:$B),36500),ROW(E132)))&"")),"",VALUE(INDEX(信誉提升汇总记录表!E:E,SMALL(IF(信誉提升汇总记录表!$A:$A=$C$2,ROW($B:$B),36500),ROW(E132)))&"")) ->  | F135: =INDEX(信誉提升汇总记录表!J:J,SMALL(IF(信誉提升汇总记录表!$A:$A=$C$2,ROW($B:$B),36500),ROW(F132)))&"" ->  | G135: =INDEX(信誉提升汇总记录表!K:K,SMALL(IF(信誉提升汇总记录表!$A:$A=$C$2,ROW($B:$B),36500),ROW(G132)))&"" ->  | H135: =INDEX(信誉提升汇总记录表!M:M,SMALL(IF(信誉提升汇总记录表!$A:$A=$C$2,ROW($B:$B),36500),ROW(H132)))&"" -> 
A136: =IF(B136="","",INDEX(信誉提升汇总记录表!B:B,SMALL(IF(信誉提升汇总记录表!$A:$A=$C$2,ROW($B:$B),36500),ROW(A133)))) ->  | B136: =INDEX(信誉提升汇总记录表!A:A,SMALL(IF(信誉提升汇总记录表!$A:$A=$C$2,ROW($B:$B),36500),ROW(B133)))&"" ->  | C136: =INDEX(信誉提升汇总记录表!C:C,SMALL(IF(信誉提升汇总记录表!$A:$A=$C$2,ROW($B:$B),36500),ROW(C133)))&"" ->  | D136: =INDEX(信誉提升汇总记录表!D:D,SMALL(IF(信誉提升汇总记录表!$A:$A=$C$2,ROW($B:$B),36500),ROW(D133)))&"" ->  | E136: =IF(ISERROR(VALUE(INDEX(信誉提升汇总记录表!E:E,SMALL(IF(信誉提升汇总记录表!$A:$A=$C$2,ROW($B:$B),36500),ROW(E133)))&"")),"",VALUE(INDEX(信誉提升汇总记录表!E:E,SMALL(IF(信誉提升汇总记录表!$A:$A=$C$2,ROW($B:$B),36500),ROW(E133)))&"")) ->  | F136: =INDEX(信誉提升汇总记录表!J:J,SMALL(IF(信誉提升汇总记录表!$A:$A=$C$2,ROW($B:$B),36500),ROW(F133)))&"" ->  | G136: =INDEX(信誉提升汇总记录表!K:K,SMALL(IF(信誉提升汇总记录表!$A:$A=$C$2,ROW($B:$B),36500),ROW(G133)))&"" ->  | H136: =INDEX(信誉提升汇总记录表!M:M,SMALL(IF(信誉提升汇总记录表!$A:$A=$C$2,ROW($B:$B),36500),ROW(H133)))&"" -> 
A137: =IF(B137="","",INDEX(信誉提升汇总记录表!B:B,SMALL(IF(信誉提升汇总记录表!$A:$A=$C$2,ROW($B:$B),36500),ROW(A134)))) ->  | B137: =INDEX(信誉提升汇总记录表!A:A,SMALL(IF(信誉提升汇总记录表!$A:$A=$C$2,ROW($B:$B),36500),ROW(B134)))&"" ->  | C137: =INDEX(信誉提升汇总记录表!C:C,SMALL(IF(信誉提升汇总记录表!$A:$A=$C$2,ROW($B:$B),36500),ROW(C134)))&"" ->  | D137: =INDEX(信誉提升汇总记录表!D:D,SMALL(IF(信誉提升汇总记录表!$A:$A=$C$2,ROW($B:$B),36500),ROW(D134)))&"" ->  | E137: =IF(ISERROR(VALUE(INDEX(信誉提升汇总记录表!E:E,SMALL(IF(信誉提升汇总记录表!$A:$A=$C$2,ROW($B:$B),36500),ROW(E134)))&"")),"",VALUE(INDEX(信誉提升汇总记录表!E:E,SMALL(IF(信誉提升汇总记录表!$A:$A=$C$2,ROW($B:$B),36500),ROW(E134)))&"")) ->  | F137: =INDEX(信誉提升汇总记录表!J:J,SMALL(IF(信誉提升汇总记录表!$A:$A=$C$2,ROW($B:$B),36500),ROW(F134)))&"" ->  | G137: =INDEX(信誉提升汇总记录表!K:K,SMALL(IF(信誉提升汇总记录表!$A:$A=$C$2,ROW($B:$B),36500),ROW(G134)))&"" ->  | H137: =INDEX(信誉提升汇总记录表!M:M,SMALL(IF(信誉提升汇总记录表!$A:$A=$C$2,ROW($B:$B),36500),ROW(H134)))&"" -> 
A138: =IF(B138="","",INDEX(信誉提升汇总记录表!B:B,SMALL(IF(信誉提升汇总记录表!$A:$A=$C$2,ROW($B:$B),36500),ROW(A135)))) ->  | B138: =INDEX(信誉提升汇总记录表!A:A,SMALL(IF(信誉提升汇总记录表!$A:$A=$C$2,ROW($B:$B),36500),ROW(B135)))&"" ->  | C138: =INDEX(信誉提升汇总记录表!C:C,SMALL(IF(信誉提升汇总记录表!$A:$A=$C$2,ROW($B:$B),36500),ROW(C135)))&"" ->  | D138: =INDEX(信誉提升汇总记录表!D:D,SMALL(IF(信誉提升汇总记录表!$A:$A=$C$2,ROW($B:$B),36500),ROW(D135)))&"" ->  | E138: =IF(ISERROR(VALUE(INDEX(信誉提升汇总记录表!E:E,SMALL(IF(信誉提升汇总记录表!$A:$A=$C$2,ROW($B:$B),36500),ROW(E135)))&"")),"",VALUE(INDEX(信誉提升汇总记录表!E:E,SMALL(IF(信誉提升汇总记录表!$A:$A=$C$2,ROW($B:$B),36500),ROW(E135)))&"")) ->  | F138: =INDEX(信誉提升汇总记录表!J:J,SMALL(IF(信誉提升汇总记录表!$A:$A=$C$2,ROW($B:$B),36500),ROW(F135)))&"" ->  | G138: =INDEX(信誉提升汇总记录表!K:K,SMALL(IF(信誉提升汇总记录表!$A:$A=$C$2,ROW($B:$B),36500),ROW(G135)))&"" ->  | H138: =INDEX(信誉提升汇总记录表!M:M,SMALL(IF(信誉提升汇总记录表!$A:$A=$C$2,ROW($B:$B),36500),ROW(H135)))&"" -> 
A139: =IF(B139="","",INDEX(信誉提升汇总记录表!B:B,SMALL(IF(信誉提升汇总记录表!$A:$A=$C$2,ROW($B:$B),36500),ROW(A136)))) ->  | B139: =INDEX(信誉提升汇总记录表!A:A,SMALL(IF(信誉提升汇总记录表!$A:$A=$C$2,ROW($B:$B),36500),ROW(B136)))&"" ->  | C139: =INDEX(信誉提升汇总记录表!C:C,SMALL(IF(信誉提升汇总记录表!$A:$A=$C$2,ROW($B:$B),36500),ROW(C136)))&"" ->  | D139: =INDEX(信誉提升汇总记录表!D:D,SMALL(IF(信誉提升汇总记录表!$A:$A=$C$2,ROW($B:$B),36500),ROW(D136)))&"" ->  | E139: =IF(ISERROR(VALUE(INDEX(信誉提升汇总记录表!E:E,SMALL(IF(信誉提升汇总记录表!$A:$A=$C$2,ROW($B:$B),36500),ROW(E136)))&"")),"",VALUE(INDEX(信誉提升汇总记录表!E:E,SMALL(IF(信誉提升汇总记录表!$A:$A=$C$2,ROW($B:$B),36500),ROW(E136)))&"")) ->  | F139: =INDEX(信誉提升汇总记录表!J:J,SMALL(IF(信誉提升汇总记录表!$A:$A=$C$2,ROW($B:$B),36500),ROW(F136)))&"" ->  | G139: =INDEX(信誉提升汇总记录表!K:K,SMALL(IF(信誉提升汇总记录表!$A:$A=$C$2,ROW($B:$B),36500),ROW(G136)))&"" ->  | H139: =INDEX(信誉提升汇总记录表!M:M,SMALL(IF(信誉提升汇总记录表!$A:$A=$C$2,ROW($B:$B),36500),ROW(H136)))&"" -> 
A140: =IF(B140="","",INDEX(信誉提升汇总记录表!B:B,SMALL(IF(信誉提升汇总记录表!$A:$A=$C$2,ROW($B:$B),36500),ROW(A137)))) ->  | B140: =INDEX(信誉提升汇总记录表!A:A,SMALL(IF(信誉提升汇总记录表!$A:$A=$C$2,ROW($B:$B),36500),ROW(B137)))&"" ->  | C140: =INDEX(信誉提升汇总记录表!C:C,SMALL(IF(信誉提升汇总记录表!$A:$A=$C$2,ROW($B:$B),36500),ROW(C137)))&"" ->  | D140: =INDEX(信誉提升汇总记录表!D:D,SMALL(IF(信誉提升汇总记录表!$A:$A=$C$2,ROW($B:$B),36500),ROW(D137)))&"" ->  | E140: =IF(ISERROR(VALUE(INDEX(信誉提升汇总记录表!E:E,SMALL(IF(信誉提升汇总记录表!$A:$A=$C$2,ROW($B:$B),36500),ROW(E137)))&"")),"",VALUE(INDEX(信誉提升汇总记录表!E:E,SMALL(IF(信誉提升汇总记录表!$A:$A=$C$2,ROW($B:$B),36500),ROW(E137)))&"")) ->  | F140: =INDEX(信誉提升汇总记录表!J:J,SMALL(IF(信誉提升汇总记录表!$A:$A=$C$2,ROW($B:$B),36500),ROW(F137)))&"" ->  | G140: =INDEX(信誉提升汇总记录表!K:K,SMALL(IF(信誉提升汇总记录表!$A:$A=$C$2,ROW($B:$B),36500),ROW(G137)))&"" ->  | H140: =INDEX(信誉提升汇总记录表!M:M,SMALL(IF(信誉提升汇总记录表!$A:$A=$C$2,ROW($B:$B),36500),ROW(H137)))&"" -> 
A141: =IF(B141="","",INDEX(信誉提升汇总记录表!B:B,SMALL(IF(信誉提升汇总记录表!$A:$A=$C$2,ROW($B:$B),36500),ROW(A138)))) ->  | B141: =INDEX(信誉提升汇总记录表!A:A,SMALL(IF(信誉提升汇总记录表!$A:$A=$C$2,ROW($B:$B),36500),ROW(B138)))&"" ->  | C141: =INDEX(信誉提升汇总记录表!C:C,SMALL(IF(信誉提升汇总记录表!$A:$A=$C$2,ROW($B:$B),36500),ROW(C138)))&"" ->  | D141: =INDEX(信誉提升汇总记录表!D:D,SMALL(IF(信誉提升汇总记录表!$A:$A=$C$2,ROW($B:$B),36500),ROW(D138)))&"" ->  | E141: =IF(ISERROR(VALUE(INDEX(信誉提升汇总记录表!E:E,SMALL(IF(信誉提升汇总记录表!$A:$A=$C$2,ROW($B:$B),36500),ROW(E138)))&"")),"",VALUE(INDEX(信誉提升汇总记录表!E:E,SMALL(IF(信誉提升汇总记录表!$A:$A=$C$2,ROW($B:$B),36500),ROW(E138)))&"")) ->  | F141: =INDEX(信誉提升汇总记录表!J:J,SMALL(IF(信誉提升汇总记录表!$A:$A=$C$2,ROW($B:$B),36500),ROW(F138)))&"" ->  | G141: =INDEX(信誉提升汇总记录表!K:K,SMALL(IF(信誉提升汇总记录表!$A:$A=$C$2,ROW($B:$B),36500),ROW(G138)))&"" ->  | H141: =INDEX(信誉提升汇总记录表!M:M,SMALL(IF(信誉提升汇总记录表!$A:$A=$C$2,ROW($B:$B),36500),ROW(H138)))&"" -> 
A142: =IF(B142="","",INDEX(信誉提升汇总记录表!B:B,SMALL(IF(信誉提升汇总记录表!$A:$A=$C$2,ROW($B:$B),36500),ROW(A139)))) ->  | B142: =INDEX(信誉提升汇总记录表!A:A,SMALL(IF(信誉提升汇总记录表!$A:$A=$C$2,ROW($B:$B),36500),ROW(B139)))&"" ->  | C142: =INDEX(信誉提升汇总记录表!C:C,SMALL(IF(信誉提升汇总记录表!$A:$A=$C$2,ROW($B:$B),36500),ROW(C139)))&"" ->  | D142: =INDEX(信誉提升汇总记录表!D:D,SMALL(IF(信誉提升汇总记录表!$A:$A=$C$2,ROW($B:$B),36500),ROW(D139)))&"" ->  | E142: =IF(ISERROR(VALUE(INDEX(信誉提升汇总记录表!E:E,SMALL(IF(信誉提升汇总记录表!$A:$A=$C$2,ROW($B:$B),36500),ROW(E139)))&"")),"",VALUE(INDEX(信誉提升汇总记录表!E:E,SMALL(IF(信誉提升汇总记录表!$A:$A=$C$2,ROW($B:$B),36500),ROW(E139)))&"")) ->  | F142: =INDEX(信誉提升汇总记录表!J:J,SMALL(IF(信誉提升汇总记录表!$A:$A=$C$2,ROW($B:$B),36500),ROW(F139)))&"" ->  | G142: =INDEX(信誉提升汇总记录表!K:K,SMALL(IF(信誉提升汇总记录表!$A:$A=$C$2,ROW($B:$B),36500),ROW(G139)))&"" ->  | H142: =INDEX(信誉提升汇总记录表!M:M,SMALL(IF(信誉提升汇总记录表!$A:$A=$C$2,ROW($B:$B),36500),ROW(H139)))&"" -> 
A143: =IF(B143="","",INDEX(信誉提升汇总记录表!B:B,SMALL(IF(信誉提升汇总记录表!$A:$A=$C$2,ROW($B:$B),36500),ROW(A140)))) ->  | B143: =INDEX(信誉提升汇总记录表!A:A,SMALL(IF(信誉提升汇总记录表!$A:$A=$C$2,ROW($B:$B),36500),ROW(B140)))&"" ->  | C143: =INDEX(信誉提升汇总记录表!C:C,SMALL(IF(信誉提升汇总记录表!$A:$A=$C$2,ROW($B:$B),36500),ROW(C140)))&"" ->  | D143: =INDEX(信誉提升汇总记录表!D:D,SMALL(IF(信誉提升汇总记录表!$A:$A=$C$2,ROW($B:$B),36500),ROW(D140)))&"" ->  | E143: =IF(ISERROR(VALUE(INDEX(信誉提升汇总记录表!E:E,SMALL(IF(信誉提升汇总记录表!$A:$A=$C$2,ROW($B:$B),36500),ROW(E140)))&"")),"",VALUE(INDEX(信誉提升汇总记录表!E:E,SMALL(IF(信誉提升汇总记录表!$A:$A=$C$2,ROW($B:$B),36500),ROW(E140)))&"")) ->  | F143: =INDEX(信誉提升汇总记录表!J:J,SMALL(IF(信誉提升汇总记录表!$A:$A=$C$2,ROW($B:$B),36500),ROW(F140)))&"" ->  | G143: =INDEX(信誉提升汇总记录表!K:K,SMALL(IF(信誉提升汇总记录表!$A:$A=$C$2,ROW($B:$B),36500),ROW(G140)))&"" ->  | H143: =INDEX(信誉提升汇总记录表!M:M,SMALL(IF(信誉提升汇总记录表!$A:$A=$C$2,ROW($B:$B),36500),ROW(H140)))&"" -> 
A144: =IF(B144="","",INDEX(信誉提升汇总记录表!B:B,SMALL(IF(信誉提升汇总记录表!$A:$A=$C$2,ROW($B:$B),36500),ROW(A141)))) ->  | B144: =INDEX(信誉提升汇总记录表!A:A,SMALL(IF(信誉提升汇总记录表!$A:$A=$C$2,ROW($B:$B),36500),ROW(B141)))&"" ->  | C144: =INDEX(信誉提升汇总记录表!C:C,SMALL(IF(信誉提升汇总记录表!$A:$A=$C$2,ROW($B:$B),36500),ROW(C141)))&"" ->  | D144: =INDEX(信誉提升汇总记录表!D:D,SMALL(IF(信誉提升汇总记录表!$A:$A=$C$2,ROW($B:$B),36500),ROW(D141)))&"" ->  | E144: =IF(ISERROR(VALUE(INDEX(信誉提升汇总记录表!E:E,SMALL(IF(信誉提升汇总记录表!$A:$A=$C$2,ROW($B:$B),36500),ROW(E141)))&"")),"",VALUE(INDEX(信誉提升汇总记录表!E:E,SMALL(IF(信誉提升汇总记录表!$A:$A=$C$2,ROW($B:$B),36500),ROW(E141)))&"")) ->  | F144: =INDEX(信誉提升汇总记录表!J:J,SMALL(IF(信誉提升汇总记录表!$A:$A=$C$2,ROW($B:$B),36500),ROW(F141)))&"" ->  | G144: =INDEX(信誉提升汇总记录表!K:K,SMALL(IF(信誉提升汇总记录表!$A:$A=$C$2,ROW($B:$B),36500),ROW(G141)))&"" ->  | H144: =INDEX(信誉提升汇总记录表!M:M,SMALL(IF(信誉提升汇总记录表!$A:$A=$C$2,ROW($B:$B),36500),ROW(H141)))&"" -> 
A145: =IF(B145="","",INDEX(信誉提升汇总记录表!B:B,SMALL(IF(信誉提升汇总记录表!$A:$A=$C$2,ROW($B:$B),36500),ROW(A142)))) ->  | B145: =INDEX(信誉提升汇总记录表!A:A,SMALL(IF(信誉提升汇总记录表!$A:$A=$C$2,ROW($B:$B),36500),ROW(B142)))&"" ->  | C145: =INDEX(信誉提升汇总记录表!C:C,SMALL(IF(信誉提升汇总记录表!$A:$A=$C$2,ROW($B:$B),36500),ROW(C142)))&"" ->  | D145: =INDEX(信誉提升汇总记录表!D:D,SMALL(IF(信誉提升汇总记录表!$A:$A=$C$2,ROW($B:$B),36500),ROW(D142)))&"" ->  | E145: =IF(ISERROR(VALUE(INDEX(信誉提升汇总记录表!E:E,SMALL(IF(信誉提升汇总记录表!$A:$A=$C$2,ROW($B:$B),36500),ROW(E142)))&"")),"",VALUE(INDEX(信誉提升汇总记录表!E:E,SMALL(IF(信誉提升汇总记录表!$A:$A=$C$2,ROW($B:$B),36500),ROW(E142)))&"")) ->  | F145: =INDEX(信誉提升汇总记录表!J:J,SMALL(IF(信誉提升汇总记录表!$A:$A=$C$2,ROW($B:$B),36500),ROW(F142)))&"" ->  | G145: =INDEX(信誉提升汇总记录表!K:K,SMALL(IF(信誉提升汇总记录表!$A:$A=$C$2,ROW($B:$B),36500),ROW(G142)))&"" ->  | H145: =INDEX(信誉提升汇总记录表!M:M,SMALL(IF(信誉提升汇总记录表!$A:$A=$C$2,ROW($B:$B),36500),ROW(H142)))&"" -> 
A146: =IF(B146="","",INDEX(信誉提升汇总记录表!B:B,SMALL(IF(信誉提升汇总记录表!$A:$A=$C$2,ROW($B:$B),36500),ROW(A143)))) ->  | B146: =INDEX(信誉提升汇总记录表!A:A,SMALL(IF(信誉提升汇总记录表!$A:$A=$C$2,ROW($B:$B),36500),ROW(B143)))&"" ->  | C146: =INDEX(信誉提升汇总记录表!C:C,SMALL(IF(信誉提升汇总记录表!$A:$A=$C$2,ROW($B:$B),36500),ROW(C143)))&"" ->  | D146: =INDEX(信誉提升汇总记录表!D:D,SMALL(IF(信誉提升汇总记录表!$A:$A=$C$2,ROW($B:$B),36500),ROW(D143)))&"" ->  | E146: =IF(ISERROR(VALUE(INDEX(信誉提升汇总记录表!E:E,SMALL(IF(信誉提升汇总记录表!$A:$A=$C$2,ROW($B:$B),36500),ROW(E143)))&"")),"",VALUE(INDEX(信誉提升汇总记录表!E:E,SMALL(IF(信誉提升汇总记录表!$A:$A=$C$2,ROW($B:$B),36500),ROW(E143)))&"")) ->  | F146: =INDEX(信誉提升汇总记录表!J:J,SMALL(IF(信誉提升汇总记录表!$A:$A=$C$2,ROW($B:$B),36500),ROW(F143)))&"" ->  | G146: =INDEX(信誉提升汇总记录表!K:K,SMALL(IF(信誉提升汇总记录表!$A:$A=$C$2,ROW($B:$B),36500),ROW(G143)))&"" ->  | H146: =INDEX(信誉提升汇总记录表!M:M,SMALL(IF(信誉提升汇总记录表!$A:$A=$C$2,ROW($B:$B),36500),ROW(H143)))&"" -> 
A147: =IF(B147="","",INDEX(信誉提升汇总记录表!B:B,SMALL(IF(信誉提升汇总记录表!$A:$A=$C$2,ROW($B:$B),36500),ROW(A144)))) ->  | B147: =INDEX(信誉提升汇总记录表!A:A,SMALL(IF(信誉提升汇总记录表!$A:$A=$C$2,ROW($B:$B),36500),ROW(B144)))&"" ->  | C147: =INDEX(信誉提升汇总记录表!C:C,SMALL(IF(信誉提升汇总记录表!$A:$A=$C$2,ROW($B:$B),36500),ROW(C144)))&"" ->  | D147: =INDEX(信誉提升汇总记录表!D:D,SMALL(IF(信誉提升汇总记录表!$A:$A=$C$2,ROW($B:$B),36500),ROW(D144)))&"" ->  | E147: =IF(ISERROR(VALUE(INDEX(信誉提升汇总记录表!E:E,SMALL(IF(信誉提升汇总记录表!$A:$A=$C$2,ROW($B:$B),36500),ROW(E144)))&"")),"",VALUE(INDEX(信誉提升汇总记录表!E:E,SMALL(IF(信誉提升汇总记录表!$A:$A=$C$2,ROW($B:$B),36500),ROW(E144)))&"")) ->  | F147: =INDEX(信誉提升汇总记录表!J:J,SMALL(IF(信誉提升汇总记录表!$A:$A=$C$2,ROW($B:$B),36500),ROW(F144)))&"" ->  | G147: =INDEX(信誉提升汇总记录表!K:K,SMALL(IF(信誉提升汇总记录表!$A:$A=$C$2,ROW($B:$B),36500),ROW(G144)))&"" ->  | H147: =INDEX(信誉提升汇总记录表!M:M,SMALL(IF(信誉提升汇总记录表!$A:$A=$C$2,ROW($B:$B),36500),ROW(H144)))&"" -> 
A148: =IF(B148="","",INDEX(信誉提升汇总记录表!B:B,SMALL(IF(信誉提升汇总记录表!$A:$A=$C$2,ROW($B:$B),36500),ROW(A145)))) ->  | B148: =INDEX(信誉提升汇总记录表!A:A,SMALL(IF(信誉提升汇总记录表!$A:$A=$C$2,ROW($B:$B),36500),ROW(B145)))&"" ->  | C148: =INDEX(信誉提升汇总记录表!C:C,SMALL(IF(信誉提升汇总记录表!$A:$A=$C$2,ROW($B:$B),36500),ROW(C145)))&"" ->  | D148: =INDEX(信誉提升汇总记录表!D:D,SMALL(IF(信誉提升汇总记录表!$A:$A=$C$2,ROW($B:$B),36500),ROW(D145)))&"" ->  | E148: =IF(ISERROR(VALUE(INDEX(信誉提升汇总记录表!E:E,SMALL(IF(信誉提升汇总记录表!$A:$A=$C$2,ROW($B:$B),36500),ROW(E145)))&"")),"",VALUE(INDEX(信誉提升汇总记录表!E:E,SMALL(IF(信誉提升汇总记录表!$A:$A=$C$2,ROW($B:$B),36500),ROW(E145)))&"")) ->  | F148: =INDEX(信誉提升汇总记录表!J:J,SMALL(IF(信誉提升汇总记录表!$A:$A=$C$2,ROW($B:$B),36500),ROW(F145)))&"" ->  | G148: =INDEX(信誉提升汇总记录表!K:K,SMALL(IF(信誉提升汇总记录表!$A:$A=$C$2,ROW($B:$B),36500),ROW(G145)))&"" ->  | H148: =INDEX(信誉提升汇总记录表!M:M,SMALL(IF(信誉提升汇总记录表!$A:$A=$C$2,ROW($B:$B),36500),ROW(H145)))&"" -> 
A149: =IF(B149="","",INDEX(信誉提升汇总记录表!B:B,SMALL(IF(信誉提升汇总记录表!$A:$A=$C$2,ROW($B:$B),36500),ROW(A146)))) ->  | B149: =INDEX(信誉提升汇总记录表!A:A,SMALL(IF(信誉提升汇总记录表!$A:$A=$C$2,ROW($B:$B),36500),ROW(B146)))&"" ->  | C149: =INDEX(信誉提升汇总记录表!C:C,SMALL(IF(信誉提升汇总记录表!$A:$A=$C$2,ROW($B:$B),36500),ROW(C146)))&"" ->  | D149: =INDEX(信誉提升汇总记录表!D:D,SMALL(IF(信誉提升汇总记录表!$A:$A=$C$2,ROW($B:$B),36500),ROW(D146)))&"" ->  | E149: =IF(ISERROR(VALUE(INDEX(信誉提升汇总记录表!E:E,SMALL(IF(信誉提升汇总记录表!$A:$A=$C$2,ROW($B:$B),36500),ROW(E146)))&"")),"",VALUE(INDEX(信誉提升汇总记录表!E:E,SMALL(IF(信誉提升汇总记录表!$A:$A=$C$2,ROW($B:$B),36500),ROW(E146)))&"")) ->  | F149: =INDEX(信誉提升汇总记录表!J:J,SMALL(IF(信誉提升汇总记录表!$A:$A=$C$2,ROW($B:$B),36500),ROW(F146)))&"" ->  | G149: =INDEX(信誉提升汇总记录表!K:K,SMALL(IF(信誉提升汇总记录表!$A:$A=$C$2,ROW($B:$B),36500),ROW(G146)))&"" ->  | H149: =INDEX(信誉提升汇总记录表!M:M,SMALL(IF(信誉提升汇总记录表!$A:$A=$C$2,ROW($B:$B),36500),ROW(H146)))&"" -> 
A150: =IF(B150="","",INDEX(信誉提升汇总记录表!B:B,SMALL(IF(信誉提升汇总记录表!$A:$A=$C$2,ROW($B:$B),36500),ROW(A147)))) ->  | B150: =INDEX(信誉提升汇总记录表!A:A,SMALL(IF(信誉提升汇总记录表!$A:$A=$C$2,ROW($B:$B),36500),ROW(B147)))&"" ->  | C150: =INDEX(信誉提升汇总记录表!C:C,SMALL(IF(信誉提升汇总记录表!$A:$A=$C$2,ROW($B:$B),36500),ROW(C147)))&"" ->  | D150: =INDEX(信誉提升汇总记录表!D:D,SMALL(IF(信誉提升汇总记录表!$A:$A=$C$2,ROW($B:$B),36500),ROW(D147)))&"" ->  | E150: =IF(ISERROR(VALUE(INDEX(信誉提升汇总记录表!E:E,SMALL(IF(信誉提升汇总记录表!$A:$A=$C$2,ROW($B:$B),36500),ROW(E147)))&"")),"",VALUE(INDEX(信誉提升汇总记录表!E:E,SMALL(IF(信誉提升汇总记录表!$A:$A=$C$2,ROW($B:$B),36500),ROW(E147)))&"")) ->  | F150: =INDEX(信誉提升汇总记录表!J:J,SMALL(IF(信誉提升汇总记录表!$A:$A=$C$2,ROW($B:$B),36500),ROW(F147)))&"" ->  | G150: =INDEX(信誉提升汇总记录表!K:K,SMALL(IF(信誉提升汇总记录表!$A:$A=$C$2,ROW($B:$B),36500),ROW(G147)))&"" ->  | H150: =INDEX(信誉提升汇总记录表!M:M,SMALL(IF(信誉提升汇总记录表!$A:$A=$C$2,ROW($B:$B),36500),ROW(H147)))&"" -> 
A151: =IF(B151="","",INDEX(信誉提升汇总记录表!B:B,SMALL(IF(信誉提升汇总记录表!$A:$A=$C$2,ROW($B:$B),36500),ROW(A148)))) ->  | B151: =INDEX(信誉提升汇总记录表!A:A,SMALL(IF(信誉提升汇总记录表!$A:$A=$C$2,ROW($B:$B),36500),ROW(B148)))&"" ->  | C151: =INDEX(信誉提升汇总记录表!C:C,SMALL(IF(信誉提升汇总记录表!$A:$A=$C$2,ROW($B:$B),36500),ROW(C148)))&"" ->  | D151: =INDEX(信誉提升汇总记录表!D:D,SMALL(IF(信誉提升汇总记录表!$A:$A=$C$2,ROW($B:$B),36500),ROW(D148)))&"" ->  | E151: =IF(ISERROR(VALUE(INDEX(信誉提升汇总记录表!E:E,SMALL(IF(信誉提升汇总记录表!$A:$A=$C$2,ROW($B:$B),36500),ROW(E148)))&"")),"",VALUE(INDEX(信誉提升汇总记录表!E:E,SMALL(IF(信誉提升汇总记录表!$A:$A=$C$2,ROW($B:$B),36500),ROW(E148)))&"")) ->  | F151: =INDEX(信誉提升汇总记录表!J:J,SMALL(IF(信誉提升汇总记录表!$A:$A=$C$2,ROW($B:$B),36500),ROW(F148)))&"" ->  | G151: =INDEX(信誉提升汇总记录表!K:K,SMALL(IF(信誉提升汇总记录表!$A:$A=$C$2,ROW($B:$B),36500),ROW(G148)))&"" ->  | H151: =INDEX(信誉提升汇总记录表!M:M,SMALL(IF(信誉提升汇总记录表!$A:$A=$C$2,ROW($B:$B),36500),ROW(H148)))&"" -> 
A152: =IF(B152="","",INDEX(信誉提升汇总记录表!B:B,SMALL(IF(信誉提升汇总记录表!$A:$A=$C$2,ROW($B:$B),36500),ROW(A149)))) ->  | B152: =INDEX(信誉提升汇总记录表!A:A,SMALL(IF(信誉提升汇总记录表!$A:$A=$C$2,ROW($B:$B),36500),ROW(B149)))&"" ->  | C152: =INDEX(信誉提升汇总记录表!C:C,SMALL(IF(信誉提升汇总记录表!$A:$A=$C$2,ROW($B:$B),36500),ROW(C149)))&"" ->  | D152: =INDEX(信誉提升汇总记录表!D:D,SMALL(IF(信誉提升汇总记录表!$A:$A=$C$2,ROW($B:$B),36500),ROW(D149)))&"" ->  | E152: =IF(ISERROR(VALUE(INDEX(信誉提升汇总记录表!E:E,SMALL(IF(信誉提升汇总记录表!$A:$A=$C$2,ROW($B:$B),36500),ROW(E149)))&"")),"",VALUE(INDEX(信誉提升汇总记录表!E:E,SMALL(IF(信誉提升汇总记录表!$A:$A=$C$2,ROW($B:$B),36500),ROW(E149)))&"")) ->  | F152: =INDEX(信誉提升汇总记录表!J:J,SMALL(IF(信誉提升汇总记录表!$A:$A=$C$2,ROW($B:$B),36500),ROW(F149)))&"" ->  | G152: =INDEX(信誉提升汇总记录表!K:K,SMALL(IF(信誉提升汇总记录表!$A:$A=$C$2,ROW($B:$B),36500),ROW(G149)))&"" ->  | H152: =INDEX(信誉提升汇总记录表!M:M,SMALL(IF(信誉提升汇总记录表!$A:$A=$C$2,ROW($B:$B),36500),ROW(H149)))&"" -> 
A153: =IF(B153="","",INDEX(信誉提升汇总记录表!B:B,SMALL(IF(信誉提升汇总记录表!$A:$A=$C$2,ROW($B:$B),36500),ROW(A150)))) ->  | B153: =INDEX(信誉提升汇总记录表!A:A,SMALL(IF(信誉提升汇总记录表!$A:$A=$C$2,ROW($B:$B),36500),ROW(B150)))&"" ->  | C153: =INDEX(信誉提升汇总记录表!C:C,SMALL(IF(信誉提升汇总记录表!$A:$A=$C$2,ROW($B:$B),36500),ROW(C150)))&"" ->  | D153: =INDEX(信誉提升汇总记录表!D:D,SMALL(IF(信誉提升汇总记录表!$A:$A=$C$2,ROW($B:$B),36500),ROW(D150)))&"" ->  | E153: =IF(ISERROR(VALUE(INDEX(信誉提升汇总记录表!E:E,SMALL(IF(信誉提升汇总记录表!$A:$A=$C$2,ROW($B:$B),36500),ROW(E150)))&"")),"",VALUE(INDEX(信誉提升汇总记录表!E:E,SMALL(IF(信誉提升汇总记录表!$A:$A=$C$2,ROW($B:$B),36500),ROW(E150)))&"")) ->  | F153: =INDEX(信誉提升汇总记录表!J:J,SMALL(IF(信誉提升汇总记录表!$A:$A=$C$2,ROW($B:$B),36500),ROW(F150)))&"" ->  | G153: =INDEX(信誉提升汇总记录表!K:K,SMALL(IF(信誉提升汇总记录表!$A:$A=$C$2,ROW($B:$B),36500),ROW(G150)))&"" ->  | H153: =INDEX(信誉提升汇总记录表!M:M,SMALL(IF(信誉提升汇总记录表!$A:$A=$C$2,ROW($B:$B),36500),ROW(H150)))&"" -> 
A154: =IF(B154="","",INDEX(信誉提升汇总记录表!B:B,SMALL(IF(信誉提升汇总记录表!$A:$A=$C$2,ROW($B:$B),36500),ROW(A151)))) ->  | B154: =INDEX(信誉提升汇总记录表!A:A,SMALL(IF(信誉提升汇总记录表!$A:$A=$C$2,ROW($B:$B),36500),ROW(B151)))&"" ->  | C154: =INDEX(信誉提升汇总记录表!C:C,SMALL(IF(信誉提升汇总记录表!$A:$A=$C$2,ROW($B:$B),36500),ROW(C151)))&"" ->  | D154: =INDEX(信誉提升汇总记录表!D:D,SMALL(IF(信誉提升汇总记录表!$A:$A=$C$2,ROW($B:$B),36500),ROW(D151)))&"" ->  | E154: =IF(ISERROR(VALUE(INDEX(信誉提升汇总记录表!E:E,SMALL(IF(信誉提升汇总记录表!$A:$A=$C$2,ROW($B:$B),36500),ROW(E151)))&"")),"",VALUE(INDEX(信誉提升汇总记录表!E:E,SMALL(IF(信誉提升汇总记录表!$A:$A=$C$2,ROW($B:$B),36500),ROW(E151)))&"")) ->  | F154: =INDEX(信誉提升汇总记录表!J:J,SMALL(IF(信誉提升汇总记录表!$A:$A=$C$2,ROW($B:$B),36500),ROW(F151)))&"" ->  | G154: =INDEX(信誉提升汇总记录表!K:K,SMALL(IF(信誉提升汇总记录表!$A:$A=$C$2,ROW($B:$B),36500),ROW(G151)))&"" ->  | H154: =INDEX(信誉提升汇总记录表!M:M,SMALL(IF(信誉提升汇总记录表!$A:$A=$C$2,ROW($B:$B),36500),ROW(H151)))&"" -> 
A155: =IF(B155="","",INDEX(信誉提升汇总记录表!B:B,SMALL(IF(信誉提升汇总记录表!$A:$A=$C$2,ROW($B:$B),36500),ROW(A152)))) ->  | B155: =INDEX(信誉提升汇总记录表!A:A,SMALL(IF(信誉提升汇总记录表!$A:$A=$C$2,ROW($B:$B),36500),ROW(B152)))&"" ->  | C155: =INDEX(信誉提升汇总记录表!C:C,SMALL(IF(信誉提升汇总记录表!$A:$A=$C$2,ROW($B:$B),36500),ROW(C152)))&"" ->  | D155: =INDEX(信誉提升汇总记录表!D:D,SMALL(IF(信誉提升汇总记录表!$A:$A=$C$2,ROW($B:$B),36500),ROW(D152)))&"" ->  | E155: =IF(ISERROR(VALUE(INDEX(信誉提升汇总记录表!E:E,SMALL(IF(信誉提升汇总记录表!$A:$A=$C$2,ROW($B:$B),36500),ROW(E152)))&"")),"",VALUE(INDEX(信誉提升汇总记录表!E:E,SMALL(IF(信誉提升汇总记录表!$A:$A=$C$2,ROW($B:$B),36500),ROW(E152)))&"")) ->  | F155: =INDEX(信誉提升汇总记录表!J:J,SMALL(IF(信誉提升汇总记录表!$A:$A=$C$2,ROW($B:$B),36500),ROW(F152)))&"" ->  | G155: =INDEX(信誉提升汇总记录表!K:K,SMALL(IF(信誉提升汇总记录表!$A:$A=$C$2,ROW($B:$B),36500),ROW(G152)))&"" ->  | H155: =INDEX(信誉提升汇总记录表!M:M,SMALL(IF(信誉提升汇总记录表!$A:$A=$C$2,ROW($B:$B),36500),ROW(H152)))&"" -> 
A156: =IF(B156="","",INDEX(信誉提升汇总记录表!B:B,SMALL(IF(信誉提升汇总记录表!$A:$A=$C$2,ROW($B:$B),36500),ROW(A153)))) ->  | B156: =INDEX(信誉提升汇总记录表!A:A,SMALL(IF(信誉提升汇总记录表!$A:$A=$C$2,ROW($B:$B),36500),ROW(B153)))&"" ->  | C156: =INDEX(信誉提升汇总记录表!C:C,SMALL(IF(信誉提升汇总记录表!$A:$A=$C$2,ROW($B:$B),36500),ROW(C153)))&"" ->  | D156: =INDEX(信誉提升汇总记录表!D:D,SMALL(IF(信誉提升汇总记录表!$A:$A=$C$2,ROW($B:$B),36500),ROW(D153)))&"" ->  | E156: =IF(ISERROR(VALUE(INDEX(信誉提升汇总记录表!E:E,SMALL(IF(信誉提升汇总记录表!$A:$A=$C$2,ROW($B:$B),36500),ROW(E153)))&"")),"",VALUE(INDEX(信誉提升汇总记录表!E:E,SMALL(IF(信誉提升汇总记录表!$A:$A=$C$2,ROW($B:$B),36500),ROW(E153)))&"")) ->  | F156: =INDEX(信誉提升汇总记录表!J:J,SMALL(IF(信誉提升汇总记录表!$A:$A=$C$2,ROW($B:$B),36500),ROW(F153)))&"" ->  | G156: =INDEX(信誉提升汇总记录表!K:K,SMALL(IF(信誉提升汇总记录表!$A:$A=$C$2,ROW($B:$B),36500),ROW(G153)))&"" ->  | H156: =INDEX(信誉提升汇总记录表!M:M,SMALL(IF(信誉提升汇总记录表!$A:$A=$C$2,ROW($B:$B),36500),ROW(H153)))&"" -> 
A157: =IF(B157="","",INDEX(信誉提升汇总记录表!B:B,SMALL(IF(信誉提升汇总记录表!$A:$A=$C$2,ROW($B:$B),36500),ROW(A154)))) ->  | B157: =INDEX(信誉提升汇总记录表!A:A,SMALL(IF(信誉提升汇总记录表!$A:$A=$C$2,ROW($B:$B),36500),ROW(B154)))&"" ->  | C157: =INDEX(信誉提升汇总记录表!C:C,SMALL(IF(信誉提升汇总记录表!$A:$A=$C$2,ROW($B:$B),36500),ROW(C154)))&"" ->  | D157: =INDEX(信誉提升汇总记录表!D:D,SMALL(IF(信誉提升汇总记录表!$A:$A=$C$2,ROW($B:$B),36500),ROW(D154)))&"" ->  | E157: =IF(ISERROR(VALUE(INDEX(信誉提升汇总记录表!E:E,SMALL(IF(信誉提升汇总记录表!$A:$A=$C$2,ROW($B:$B),36500),ROW(E154)))&"")),"",VALUE(INDEX(信誉提升汇总记录表!E:E,SMALL(IF(信誉提升汇总记录表!$A:$A=$C$2,ROW($B:$B),36500),ROW(E154)))&"")) ->  | F157: =INDEX(信誉提升汇总记录表!J:J,SMALL(IF(信誉提升汇总记录表!$A:$A=$C$2,ROW($B:$B),36500),ROW(F154)))&"" ->  | G157: =INDEX(信誉提升汇总记录表!K:K,SMALL(IF(信誉提升汇总记录表!$A:$A=$C$2,ROW($B:$B),36500),ROW(G154)))&"" ->  | H157: =INDEX(信誉提升汇总记录表!M:M,SMALL(IF(信誉提升汇总记录表!$A:$A=$C$2,ROW($B:$B),36500),ROW(H154)))&"" -> 
A158: =IF(B158="","",INDEX(信誉提升汇总记录表!B:B,SMALL(IF(信誉提升汇总记录表!$A:$A=$C$2,ROW($B:$B),36500),ROW(A155)))) ->  | B158: =INDEX(信誉提升汇总记录表!A:A,SMALL(IF(信誉提升汇总记录表!$A:$A=$C$2,ROW($B:$B),36500),ROW(B155)))&"" ->  | C158: =INDEX(信誉提升汇总记录表!C:C,SMALL(IF(信誉提升汇总记录表!$A:$A=$C$2,ROW($B:$B),36500),ROW(C155)))&"" ->  | D158: =INDEX(信誉提升汇总记录表!D:D,SMALL(IF(信誉提升汇总记录表!$A:$A=$C$2,ROW($B:$B),36500),ROW(D155)))&"" ->  | E158: =IF(ISERROR(VALUE(INDEX(信誉提升汇总记录表!E:E,SMALL(IF(信誉提升汇总记录表!$A:$A=$C$2,ROW($B:$B),36500),ROW(E155)))&"")),"",VALUE(INDEX(信誉提升汇总记录表!E:E,SMALL(IF(信誉提升汇总记录表!$A:$A=$C$2,ROW($B:$B),36500),ROW(E155)))&"")) ->  | F158: =INDEX(信誉提升汇总记录表!J:J,SMALL(IF(信誉提升汇总记录表!$A:$A=$C$2,ROW($B:$B),36500),ROW(F155)))&"" ->  | G158: =INDEX(信誉提升汇总记录表!K:K,SMALL(IF(信誉提升汇总记录表!$A:$A=$C$2,ROW($B:$B),36500),ROW(G155)))&"" ->  | H158: =INDEX(信誉提升汇总记录表!M:M,SMALL(IF(信誉提升汇总记录表!$A:$A=$C$2,ROW($B:$B),36500),ROW(H155)))&"" -> 
A159: =IF(B159="","",INDEX(信誉提升汇总记录表!B:B,SMALL(IF(信誉提升汇总记录表!$A:$A=$C$2,ROW($B:$B),36500),ROW(A156)))) ->  | B159: =INDEX(信誉提升汇总记录表!A:A,SMALL(IF(信誉提升汇总记录表!$A:$A=$C$2,ROW($B:$B),36500),ROW(B156)))&"" ->  | C159: =INDEX(信誉提升汇总记录表!C:C,SMALL(IF(信誉提升汇总记录表!$A:$A=$C$2,ROW($B:$B),36500),ROW(C156)))&"" ->  | D159: =INDEX(信誉提升汇总记录表!D:D,SMALL(IF(信誉提升汇总记录表!$A:$A=$C$2,ROW($B:$B),36500),ROW(D156)))&"" ->  | E159: =IF(ISERROR(VALUE(INDEX(信誉提升汇总记录表!E:E,SMALL(IF(信誉提升汇总记录表!$A:$A=$C$2,ROW($B:$B),36500),ROW(E156)))&"")),"",VALUE(INDEX(信誉提升汇总记录表!E:E,SMALL(IF(信誉提升汇总记录表!$A:$A=$C$2,ROW($B:$B),36500),ROW(E156)))&"")) ->  | F159: =INDEX(信誉提升汇总记录表!J:J,SMALL(IF(信誉提升汇总记录表!$A:$A=$C$2,ROW($B:$B),36500),ROW(F156)))&"" ->  | G159: =INDEX(信誉提升汇总记录表!K:K,SMALL(IF(信誉提升汇总记录表!$A:$A=$C$2,ROW($B:$B),36500),ROW(G156)))&"" ->  | H159: =INDEX(信誉提升汇总记录表!M:M,SMALL(IF(信誉提升汇总记录表!$A:$A=$C$2,ROW($B:$B),36500),ROW(H156)))&"" -> 
A160: =IF(B160="","",INDEX(信誉提升汇总记录表!B:B,SMALL(IF(信誉提升汇总记录表!$A:$A=$C$2,ROW($B:$B),36500),ROW(A157)))) ->  | B160: =INDEX(信誉提升汇总记录表!A:A,SMALL(IF(信誉提升汇总记录表!$A:$A=$C$2,ROW($B:$B),36500),ROW(B157)))&"" ->  | C160: =INDEX(信誉提升汇总记录表!C:C,SMALL(IF(信誉提升汇总记录表!$A:$A=$C$2,ROW($B:$B),36500),ROW(C157)))&"" ->  | D160: =INDEX(信誉提升汇总记录表!D:D,SMALL(IF(信誉提升汇总记录表!$A:$A=$C$2,ROW($B:$B),36500),ROW(D157)))&"" ->  | E160: =IF(ISERROR(VALUE(INDEX(信誉提升汇总记录表!E:E,SMALL(IF(信誉提升汇总记录表!$A:$A=$C$2,ROW($B:$B),36500),ROW(E157)))&"")),"",VALUE(INDEX(信誉提升汇总记录表!E:E,SMALL(IF(信誉提升汇总记录表!$A:$A=$C$2,ROW($B:$B),36500),ROW(E157)))&"")) ->  | F160: =INDEX(信誉提升汇总记录表!J:J,SMALL(IF(信誉提升汇总记录表!$A:$A=$C$2,ROW($B:$B),36500),ROW(F157)))&"" ->  | G160: =INDEX(信誉提升汇总记录表!K:K,SMALL(IF(信誉提升汇总记录表!$A:$A=$C$2,ROW($B:$B),36500),ROW(G157)))&"" ->  | H160: =INDEX(信誉提升汇总记录表!M:M,SMALL(IF(信誉提升汇总记录表!$A:$A=$C$2,ROW($B:$B),36500),ROW(H157)))&"" -> 
A161: =IF(B161="","",INDEX(信誉提升汇总记录表!B:B,SMALL(IF(信誉提升汇总记录表!$A:$A=$C$2,ROW($B:$B),36500),ROW(A158)))) ->  | B161: =INDEX(信誉提升汇总记录表!A:A,SMALL(IF(信誉提升汇总记录表!$A:$A=$C$2,ROW($B:$B),36500),ROW(B158)))&"" ->  | C161: =INDEX(信誉提升汇总记录表!C:C,SMALL(IF(信誉提升汇总记录表!$A:$A=$C$2,ROW($B:$B),36500),ROW(C158)))&"" ->  | D161: =INDEX(信誉提升汇总记录表!D:D,SMALL(IF(信誉提升汇总记录表!$A:$A=$C$2,ROW($B:$B),36500),ROW(D158)))&"" ->  | E161: =IF(ISERROR(VALUE(INDEX(信誉提升汇总记录表!E:E,SMALL(IF(信誉提升汇总记录表!$A:$A=$C$2,ROW($B:$B),36500),ROW(E158)))&"")),"",VALUE(INDEX(信誉提升汇总记录表!E:E,SMALL(IF(信誉提升汇总记录表!$A:$A=$C$2,ROW($B:$B),36500),ROW(E158)))&"")) ->  | F161: =INDEX(信誉提升汇总记录表!J:J,SMALL(IF(信誉提升汇总记录表!$A:$A=$C$2,ROW($B:$B),36500),ROW(F158)))&"" ->  | G161: =INDEX(信誉提升汇总记录表!K:K,SMALL(IF(信誉提升汇总记录表!$A:$A=$C$2,ROW($B:$B),36500),ROW(G158)))&"" ->  | H161: =INDEX(信誉提升汇总记录表!M:M,SMALL(IF(信誉提升汇总记录表!$A:$A=$C$2,ROW($B:$B),36500),ROW(H158)))&"" -> 
A162: =IF(B162="","",INDEX(信誉提升汇总记录表!B:B,SMALL(IF(信誉提升汇总记录表!$A:$A=$C$2,ROW($B:$B),36500),ROW(A159)))) ->  | B162: =INDEX(信誉提升汇总记录表!A:A,SMALL(IF(信誉提升汇总记录表!$A:$A=$C$2,ROW($B:$B),36500),ROW(B159)))&"" ->  | C162: =INDEX(信誉提升汇总记录表!C:C,SMALL(IF(信誉提升汇总记录表!$A:$A=$C$2,ROW($B:$B),36500),ROW(C159)))&"" ->  | D162: =INDEX(信誉提升汇总记录表!D:D,SMALL(IF(信誉提升汇总记录表!$A:$A=$C$2,ROW($B:$B),36500),ROW(D159)))&"" ->  | E162: =IF(ISERROR(VALUE(INDEX(信誉提升汇总记录表!E:E,SMALL(IF(信誉提升汇总记录表!$A:$A=$C$2,ROW($B:$B),36500),ROW(E159)))&"")),"",VALUE(INDEX(信誉提升汇总记录表!E:E,SMALL(IF(信誉提升汇总记录表!$A:$A=$C$2,ROW($B:$B),36500),ROW(E159)))&"")) ->  | F162: =INDEX(信誉提升汇总记录表!J:J,SMALL(IF(信誉提升汇总记录表!$A:$A=$C$2,ROW($B:$B),36500),ROW(F159)))&"" ->  | G162: =INDEX(信誉提升汇总记录表!K:K,SMALL(IF(信誉提升汇总记录表!$A:$A=$C$2,ROW($B:$B),36500),ROW(G159)))&"" ->  | H162: =INDEX(信誉提升汇总记录表!M:M,SMALL(IF(信誉提升汇总记录表!$A:$A=$C$2,ROW($B:$B),36500),ROW(H159)))&"" -> 
A163: =IF(B163="","",INDEX(信誉提升汇总记录表!B:B,SMALL(IF(信誉提升汇总记录表!$A:$A=$C$2,ROW($B:$B),36500),ROW(A160)))) ->  | B163: =INDEX(信誉提升汇总记录表!A:A,SMALL(IF(信誉提升汇总记录表!$A:$A=$C$2,ROW($B:$B),36500),ROW(B160)))&"" ->  | C163: =INDEX(信誉提升汇总记录表!C:C,SMALL(IF(信誉提升汇总记录表!$A:$A=$C$2,ROW($B:$B),36500),ROW(C160)))&"" ->  | D163: =INDEX(信誉提升汇总记录表!D:D,SMALL(IF(信誉提升汇总记录表!$A:$A=$C$2,ROW($B:$B),36500),ROW(D160)))&"" ->  | E163: =IF(ISERROR(VALUE(INDEX(信誉提升汇总记录表!E:E,SMALL(IF(信誉提升汇总记录表!$A:$A=$C$2,ROW($B:$B),36500),ROW(E160)))&"")),"",VALUE(INDEX(信誉提升汇总记录表!E:E,SMALL(IF(信誉提升汇总记录表!$A:$A=$C$2,ROW($B:$B),36500),ROW(E160)))&"")) ->  | F163: =INDEX(信誉提升汇总记录表!J:J,SMALL(IF(信誉提升汇总记录表!$A:$A=$C$2,ROW($B:$B),36500),ROW(F160)))&"" ->  | G163: =INDEX(信誉提升汇总记录表!K:K,SMALL(IF(信誉提升汇总记录表!$A:$A=$C$2,ROW($B:$B),36500),ROW(G160)))&"" ->  | H163: =INDEX(信誉提升汇总记录表!M:M,SMALL(IF(信誉提升汇总记录表!$A:$A=$C$2,ROW($B:$B),36500),ROW(H160)))&"" -> 
A164: =IF(B164="","",INDEX(信誉提升汇总记录表!B:B,SMALL(IF(信誉提升汇总记录表!$A:$A=$C$2,ROW($B:$B),36500),ROW(A161)))) ->  | B164: =INDEX(信誉提升汇总记录表!A:A,SMALL(IF(信誉提升汇总记录表!$A:$A=$C$2,ROW($B:$B),36500),ROW(B161)))&"" ->  | C164: =INDEX(信誉提升汇总记录表!C:C,SMALL(IF(信誉提升汇总记录表!$A:$A=$C$2,ROW($B:$B),36500),ROW(C161)))&"" ->  | D164: =INDEX(信誉提升汇总记录表!D:D,SMALL(IF(信誉提升汇总记录表!$A:$A=$C$2,ROW($B:$B),36500),ROW(D161)))&"" ->  | E164: =IF(ISERROR(VALUE(INDEX(信誉提升汇总记录表!E:E,SMALL(IF(信誉提升汇总记录表!$A:$A=$C$2,ROW($B:$B),36500),ROW(E161)))&"")),"",VALUE(INDEX(信誉提升汇总记录表!E:E,SMALL(IF(信誉提升汇总记录表!$A:$A=$C$2,ROW($B:$B),36500),ROW(E161)))&"")) ->  | F164: =INDEX(信誉提升汇总记录表!J:J,SMALL(IF(信誉提升汇总记录表!$A:$A=$C$2,ROW($B:$B),36500),ROW(F161)))&"" ->  | G164: =INDEX(信誉提升汇总记录表!K:K,SMALL(IF(信誉提升汇总记录表!$A:$A=$C$2,ROW($B:$B),36500),ROW(G161)))&"" ->  | H164: =INDEX(信誉提升汇总记录表!M:M,SMALL(IF(信誉提升汇总记录表!$A:$A=$C$2,ROW($B:$B),36500),ROW(H161)))&"" -> 
A165: =IF(B165="","",INDEX(信誉提升汇总记录表!B:B,SMALL(IF(信誉提升汇总记录表!$A:$A=$C$2,ROW($B:$B),36500),ROW(A162)))) ->  | B165: =INDEX(信誉提升汇总记录表!A:A,SMALL(IF(信誉提升汇总记录表!$A:$A=$C$2,ROW($B:$B),36500),ROW(B162)))&"" ->  | C165: =INDEX(信誉提升汇总记录表!C:C,SMALL(IF(信誉提升汇总记录表!$A:$A=$C$2,ROW($B:$B),36500),ROW(C162)))&"" ->  | D165: =INDEX(信誉提升汇总记录表!D:D,SMALL(IF(信誉提升汇总记录表!$A:$A=$C$2,ROW($B:$B),36500),ROW(D162)))&"" ->  | E165: =IF(ISERROR(VALUE(INDEX(信誉提升汇总记录表!E:E,SMALL(IF(信誉提升汇总记录表!$A:$A=$C$2,ROW($B:$B),36500),ROW(E162)))&"")),"",VALUE(INDEX(信誉提升汇总记录表!E:E,SMALL(IF(信誉提升汇总记录表!$A:$A=$C$2,ROW($B:$B),36500),ROW(E162)))&"")) ->  | F165: =INDEX(信誉提升汇总记录表!J:J,SMALL(IF(信誉提升汇总记录表!$A:$A=$C$2,ROW($B:$B),36500),ROW(F162)))&"" ->  | G165: =INDEX(信誉提升汇总记录表!K:K,SMALL(IF(信誉提升汇总记录表!$A:$A=$C$2,ROW($B:$B),36500),ROW(G162)))&"" ->  | H165: =INDEX(信誉提升汇总记录表!M:M,SMALL(IF(信誉提升汇总记录表!$A:$A=$C$2,ROW($B:$B),36500),ROW(H162)))&"" -> 
A166: =IF(B166="","",INDEX(信誉提升汇总记录表!B:B,SMALL(IF(信誉提升汇总记录表!$A:$A=$C$2,ROW($B:$B),36500),ROW(A163)))) ->  | B166: =INDEX(信誉提升汇总记录表!A:A,SMALL(IF(信誉提升汇总记录表!$A:$A=$C$2,ROW($B:$B),36500),ROW(B163)))&"" ->  | C166: =INDEX(信誉提升汇总记录表!C:C,SMALL(IF(信誉提升汇总记录表!$A:$A=$C$2,ROW($B:$B),36500),ROW(C163)))&"" ->  | D166: =INDEX(信誉提升汇总记录表!D:D,SMALL(IF(信誉提升汇总记录表!$A:$A=$C$2,ROW($B:$B),36500),ROW(D163)))&"" ->  | E166: =IF(ISERROR(VALUE(INDEX(信誉提升汇总记录表!E:E,SMALL(IF(信誉提升汇总记录表!$A:$A=$C$2,ROW($B:$B),36500),ROW(E163)))&"")),"",VALUE(INDEX(信誉提升汇总记录表!E:E,SMALL(IF(信誉提升汇总记录表!$A:$A=$C$2,ROW($B:$B),36500),ROW(E163)))&"")) ->  | F166: =INDEX(信誉提升汇总记录表!J:J,SMALL(IF(信誉提升汇总记录表!$A:$A=$C$2,ROW($B:$B),36500),ROW(F163)))&"" ->  | G166: =INDEX(信誉提升汇总记录表!K:K,SMALL(IF(信誉提升汇总记录表!$A:$A=$C$2,ROW($B:$B),36500),ROW(G163)))&"" ->  | H166: =INDEX(信誉提升汇总记录表!M:M,SMALL(IF(信誉提升汇总记录表!$A:$A=$C$2,ROW($B:$B),36500),ROW(H163)))&"" -> 
A167: =IF(B167="","",INDEX(信誉提升汇总记录表!B:B,SMALL(IF(信誉提升汇总记录表!$A:$A=$C$2,ROW($B:$B),36500),ROW(A164)))) ->  | B167: =INDEX(信誉提升汇总记录表!A:A,SMALL(IF(信誉提升汇总记录表!$A:$A=$C$2,ROW($B:$B),36500),ROW(B164)))&"" ->  | C167: =INDEX(信誉提升汇总记录表!C:C,SMALL(IF(信誉提升汇总记录表!$A:$A=$C$2,ROW($B:$B),36500),ROW(C164)))&"" ->  | D167: =INDEX(信誉提升汇总记录表!D:D,SMALL(IF(信誉提升汇总记录表!$A:$A=$C$2,ROW($B:$B),36500),ROW(D164)))&"" ->  | E167: =IF(ISERROR(VALUE(INDEX(信誉提升汇总记录表!E:E,SMALL(IF(信誉提升汇总记录表!$A:$A=$C$2,ROW($B:$B),36500),ROW(E164)))&"")),"",VALUE(INDEX(信誉提升汇总记录表!E:E,SMALL(IF(信誉提升汇总记录表!$A:$A=$C$2,ROW($B:$B),36500),ROW(E164)))&"")) ->  | F167: =INDEX(信誉提升汇总记录表!J:J,SMALL(IF(信誉提升汇总记录表!$A:$A=$C$2,ROW($B:$B),36500),ROW(F164)))&"" ->  | G167: =INDEX(信誉提升汇总记录表!K:K,SMALL(IF(信誉提升汇总记录表!$A:$A=$C$2,ROW($B:$B),36500),ROW(G164)))&"" ->  | H167: =INDEX(信誉提升汇总记录表!M:M,SMALL(IF(信誉提升汇总记录表!$A:$A=$C$2,ROW($B:$B),36500),ROW(H164)))&"" -> 
A168: =IF(B168="","",INDEX(信誉提升汇总记录表!B:B,SMALL(IF(信誉提升汇总记录表!$A:$A=$C$2,ROW($B:$B),36500),ROW(A165)))) ->  | B168: =INDEX(信誉提升汇总记录表!A:A,SMALL(IF(信誉提升汇总记录表!$A:$A=$C$2,ROW($B:$B),36500),ROW(B165)))&"" ->  | C168: =INDEX(信誉提升汇总记录表!C:C,SMALL(IF(信誉提升汇总记录表!$A:$A=$C$2,ROW($B:$B),36500),ROW(C165)))&"" ->  | D168: =INDEX(信誉提升汇总记录表!D:D,SMALL(IF(信誉提升汇总记录表!$A:$A=$C$2,ROW($B:$B),36500),ROW(D165)))&"" ->  | E168: =IF(ISERROR(VALUE(INDEX(信誉提升汇总记录表!E:E,SMALL(IF(信誉提升汇总记录表!$A:$A=$C$2,ROW($B:$B),36500),ROW(E165)))&"")),"",VALUE(INDEX(信誉提升汇总记录表!E:E,SMALL(IF(信誉提升汇总记录表!$A:$A=$C$2,ROW($B:$B),36500),ROW(E165)))&"")) ->  | F168: =INDEX(信誉提升汇总记录表!J:J,SMALL(IF(信誉提升汇总记录表!$A:$A=$C$2,ROW($B:$B),36500),ROW(F165)))&"" ->  | G168: =INDEX(信誉提升汇总记录表!K:K,SMALL(IF(信誉提升汇总记录表!$A:$A=$C$2,ROW($B:$B),36500),ROW(G165)))&"" ->  | H168: =INDEX(信誉提升汇总记录表!M:M,SMALL(IF(信誉提升汇总记录表!$A:$A=$C$2,ROW($B:$B),36500),ROW(H165)))&"" -> 
A169: =IF(B169="","",INDEX(信誉提升汇总记录表!B:B,SMALL(IF(信誉提升汇总记录表!$A:$A=$C$2,ROW($B:$B),36500),ROW(A166)))) ->  | B169: =INDEX(信誉提升汇总记录表!A:A,SMALL(IF(信誉提升汇总记录表!$A:$A=$C$2,ROW($B:$B),36500),ROW(B166)))&"" ->  | C169: =INDEX(信誉提升汇总记录表!C:C,SMALL(IF(信誉提升汇总记录表!$A:$A=$C$2,ROW($B:$B),36500),ROW(C166)))&"" ->  | D169: =INDEX(信誉提升汇总记录表!D:D,SMALL(IF(信誉提升汇总记录表!$A:$A=$C$2,ROW($B:$B),36500),ROW(D166)))&"" ->  | E169: =IF(ISERROR(VALUE(INDEX(信誉提升汇总记录表!E:E,SMALL(IF(信誉提升汇总记录表!$A:$A=$C$2,ROW($B:$B),36500),ROW(E166)))&"")),"",VALUE(INDEX(信誉提升汇总记录表!E:E,SMALL(IF(信誉提升汇总记录表!$A:$A=$C$2,ROW($B:$B),36500),ROW(E166)))&"")) ->  | F169: =INDEX(信誉提升汇总记录表!J:J,SMALL(IF(信誉提升汇总记录表!$A:$A=$C$2,ROW($B:$B),36500),ROW(F166)))&"" ->  | G169: =INDEX(信誉提升汇总记录表!K:K,SMALL(IF(信誉提升汇总记录表!$A:$A=$C$2,ROW($B:$B),36500),ROW(G166)))&"" ->  | H169: =INDEX(信誉提升汇总记录表!M:M,SMALL(IF(信誉提升汇总记录表!$A:$A=$C$2,ROW($B:$B),36500),ROW(H166)))&"" -> 
A170: =IF(B170="","",INDEX(信誉提升汇总记录表!B:B,SMALL(IF(信誉提升汇总记录表!$A:$A=$C$2,ROW($B:$B),36500),ROW(A167)))) ->  | B170: =INDEX(信誉提升汇总记录表!A:A,SMALL(IF(信誉提升汇总记录表!$A:$A=$C$2,ROW($B:$B),36500),ROW(B167)))&"" ->  | C170: =INDEX(信誉提升汇总记录表!C:C,SMALL(IF(信誉提升汇总记录表!$A:$A=$C$2,ROW($B:$B),36500),ROW(C167)))&"" ->  | D170: =INDEX(信誉提升汇总记录表!D:D,SMALL(IF(信誉提升汇总记录表!$A:$A=$C$2,ROW($B:$B),36500),ROW(D167)))&"" ->  | E170: =IF(ISERROR(VALUE(INDEX(信誉提升汇总记录表!E:E,SMALL(IF(信誉提升汇总记录表!$A:$A=$C$2,ROW($B:$B),36500),ROW(E167)))&"")),"",VALUE(INDEX(信誉提升汇总记录表!E:E,SMALL(IF(信誉提升汇总记录表!$A:$A=$C$2,ROW($B:$B),36500),ROW(E167)))&"")) ->  | F170: =INDEX(信誉提升汇总记录表!J:J,SMALL(IF(信誉提升汇总记录表!$A:$A=$C$2,ROW($B:$B),36500),ROW(F167)))&"" ->  | G170: =INDEX(信誉提升汇总记录表!K:K,SMALL(IF(信誉提升汇总记录表!$A:$A=$C$2,ROW($B:$B),36500),ROW(G167)))&"" ->  | H170: =INDEX(信誉提升汇总记录表!M:M,SMALL(IF(信誉提升汇总记录表!$A:$A=$C$2,ROW($B:$B),36500),ROW(H167)))&"" -> 
A171: =IF(B171="","",INDEX(信誉提升汇总记录表!B:B,SMALL(IF(信誉提升汇总记录表!$A:$A=$C$2,ROW($B:$B),36500),ROW(A168)))) ->  | B171: =INDEX(信誉提升汇总记录表!A:A,SMALL(IF(信誉提升汇总记录表!$A:$A=$C$2,ROW($B:$B),36500),ROW(B168)))&"" ->  | C171: =INDEX(信誉提升汇总记录表!C:C,SMALL(IF(信誉提升汇总记录表!$A:$A=$C$2,ROW($B:$B),36500),ROW(C168)))&"" ->  | D171: =INDEX(信誉提升汇总记录表!D:D,SMALL(IF(信誉提升汇总记录表!$A:$A=$C$2,ROW($B:$B),36500),ROW(D168)))&"" ->  | E171: =IF(ISERROR(VALUE(INDEX(信誉提升汇总记录表!E:E,SMALL(IF(信誉提升汇总记录表!$A:$A=$C$2,ROW($B:$B),36500),ROW(E168)))&"")),"",VALUE(INDEX(信誉提升汇总记录表!E:E,SMALL(IF(信誉提升汇总记录表!$A:$A=$C$2,ROW($B:$B),36500),ROW(E168)))&"")) ->  | F171: =INDEX(信誉提升汇总记录表!J:J,SMALL(IF(信誉提升汇总记录表!$A:$A=$C$2,ROW($B:$B),36500),ROW(F168)))&"" ->  | G171: =INDEX(信誉提升汇总记录表!K:K,SMALL(IF(信誉提升汇总记录表!$A:$A=$C$2,ROW($B:$B),36500),ROW(G168)))&"" ->  | H171: =INDEX(信誉提升汇总记录表!M:M,SMALL(IF(信誉提升汇总记录表!$A:$A=$C$2,ROW($B:$B),36500),ROW(H168)))&"" -> 
A172: =IF(B172="","",INDEX(信誉提升汇总记录表!B:B,SMALL(IF(信誉提升汇总记录表!$A:$A=$C$2,ROW($B:$B),36500),ROW(A169)))) ->  | B172: =INDEX(信誉提升汇总记录表!A:A,SMALL(IF(信誉提升汇总记录表!$A:$A=$C$2,ROW($B:$B),36500),ROW(B169)))&"" ->  | C172: =INDEX(信誉提升汇总记录表!C:C,SMALL(IF(信誉提升汇总记录表!$A:$A=$C$2,ROW($B:$B),36500),ROW(C169)))&"" ->  | D172: =INDEX(信誉提升汇总记录表!D:D,SMALL(IF(信誉提升汇总记录表!$A:$A=$C$2,ROW($B:$B),36500),ROW(D169)))&"" ->  | E172: =IF(ISERROR(VALUE(INDEX(信誉提升汇总记录表!E:E,SMALL(IF(信誉提升汇总记录表!$A:$A=$C$2,ROW($B:$B),36500),ROW(E169)))&"")),"",VALUE(INDEX(信誉提升汇总记录表!E:E,SMALL(IF(信誉提升汇总记录表!$A:$A=$C$2,ROW($B:$B),36500),ROW(E169)))&"")) ->  | F172: =INDEX(信誉提升汇总记录表!J:J,SMALL(IF(信誉提升汇总记录表!$A:$A=$C$2,ROW($B:$B),36500),ROW(F169)))&"" ->  | G172: =INDEX(信誉提升汇总记录表!K:K,SMALL(IF(信誉提升汇总记录表!$A:$A=$C$2,ROW($B:$B),36500),ROW(G169)))&"" ->  | H172: =INDEX(信誉提升汇总记录表!M:M,SMALL(IF(信誉提升汇总记录表!$A:$A=$C$2,ROW($B:$B),36500),ROW(H169)))&"" -> 
A173: =IF(B173="","",INDEX(信誉提升汇总记录表!B:B,SMALL(IF(信誉提升汇总记录表!$A:$A=$C$2,ROW($B:$B),36500),ROW(A170)))) ->  | B173: =INDEX(信誉提升汇总记录表!A:A,SMALL(IF(信誉提升汇总记录表!$A:$A=$C$2,ROW($B:$B),36500),ROW(B170)))&"" ->  | C173: =INDEX(信誉提升汇总记录表!C:C,SMALL(IF(信誉提升汇总记录表!$A:$A=$C$2,ROW($B:$B),36500),ROW(C170)))&"" ->  | D173: =INDEX(信誉提升汇总记录表!D:D,SMALL(IF(信誉提升汇总记录表!$A:$A=$C$2,ROW($B:$B),36500),ROW(D170)))&"" ->  | E173: =IF(ISERROR(VALUE(INDEX(信誉提升汇总记录表!E:E,SMALL(IF(信誉提升汇总记录表!$A:$A=$C$2,ROW($B:$B),36500),ROW(E170)))&"")),"",VALUE(INDEX(信誉提升汇总记录表!E:E,SMALL(IF(信誉提升汇总记录表!$A:$A=$C$2,ROW($B:$B),36500),ROW(E170)))&"")) ->  | F173: =INDEX(信誉提升汇总记录表!J:J,SMALL(IF(信誉提升汇总记录表!$A:$A=$C$2,ROW($B:$B),36500),ROW(F170)))&"" ->  | G173: =INDEX(信誉提升汇总记录表!K:K,SMALL(IF(信誉提升汇总记录表!$A:$A=$C$2,ROW($B:$B),36500),ROW(G170)))&"" ->  | H173: =INDEX(信誉提升汇总记录表!M:M,SMALL(IF(信誉提升汇总记录表!$A:$A=$C$2,ROW($B:$B),36500),ROW(H170)))&"" -> 
A174: =IF(B174="","",INDEX(信誉提升汇总记录表!B:B,SMALL(IF(信誉提升汇总记录表!$A:$A=$C$2,ROW($B:$B),36500),ROW(A171)))) ->  | B174: =INDEX(信誉提升汇总记录表!A:A,SMALL(IF(信誉提升汇总记录表!$A:$A=$C$2,ROW($B:$B),36500),ROW(B171)))&"" ->  | C174: =INDEX(信誉提升汇总记录表!C:C,SMALL(IF(信誉提升汇总记录表!$A:$A=$C$2,ROW($B:$B),36500),ROW(C171)))&"" ->  | D174: =INDEX(信誉提升汇总记录表!D:D,SMALL(IF(信誉提升汇总记录表!$A:$A=$C$2,ROW($B:$B),36500),ROW(D171)))&"" ->  | E174: =IF(ISERROR(VALUE(INDEX(信誉提升汇总记录表!E:E,SMALL(IF(信誉提升汇总记录表!$A:$A=$C$2,ROW($B:$B),36500),ROW(E171)))&"")),"",VALUE(INDEX(信誉提升汇总记录表!E:E,SMALL(IF(信誉提升汇总记录表!$A:$A=$C$2,ROW($B:$B),36500),ROW(E171)))&"")) ->  | F174: =INDEX(信誉提升汇总记录表!J:J,SMALL(IF(信誉提升汇总记录表!$A:$A=$C$2,ROW($B:$B),36500),ROW(F171)))&"" ->  | G174: =INDEX(信誉提升汇总记录表!K:K,SMALL(IF(信誉提升汇总记录表!$A:$A=$C$2,ROW($B:$B),36500),ROW(G171)))&"" ->  | H174: =INDEX(信誉提升汇总记录表!M:M,SMALL(IF(信誉提升汇总记录表!$A:$A=$C$2,ROW($B:$B),36500),ROW(H171)))&"" -> 
A175: =IF(B175="","",INDEX(信誉提升汇总记录表!B:B,SMALL(IF(信誉提升汇总记录表!$A:$A=$C$2,ROW($B:$B),36500),ROW(A172)))) ->  | B175: =INDEX(信誉提升汇总记录表!A:A,SMALL(IF(信誉提升汇总记录表!$A:$A=$C$2,ROW($B:$B),36500),ROW(B172)))&"" ->  | C175: =INDEX(信誉提升汇总记录表!C:C,SMALL(IF(信誉提升汇总记录表!$A:$A=$C$2,ROW($B:$B),36500),ROW(C172)))&"" ->  | D175: =INDEX(信誉提升汇总记录表!D:D,SMALL(IF(信誉提升汇总记录表!$A:$A=$C$2,ROW($B:$B),36500),ROW(D172)))&"" ->  | E175: =IF(ISERROR(VALUE(INDEX(信誉提升汇总记录表!E:E,SMALL(IF(信誉提升汇总记录表!$A:$A=$C$2,ROW($B:$B),36500),ROW(E172)))&"")),"",VALUE(INDEX(信誉提升汇总记录表!E:E,SMALL(IF(信誉提升汇总记录表!$A:$A=$C$2,ROW($B:$B),36500),ROW(E172)))&"")) ->  | F175: =INDEX(信誉提升汇总记录表!J:J,SMALL(IF(信誉提升汇总记录表!$A:$A=$C$2,ROW($B:$B),36500),ROW(F172)))&"" ->  | G175: =INDEX(信誉提升汇总记录表!K:K,SMALL(IF(信誉提升汇总记录表!$A:$A=$C$2,ROW($B:$B),36500),ROW(G172)))&"" ->  | H175: =INDEX(信誉提升汇总记录表!M:M,SMALL(IF(信誉提升汇总记录表!$A:$A=$C$2,ROW($B:$B),36500),ROW(H172)))&"" -> 
A176: =IF(B176="","",INDEX(信誉提升汇总记录表!B:B,SMALL(IF(信誉提升汇总记录表!$A:$A=$C$2,ROW($B:$B),36500),ROW(A173)))) ->  | B176: =INDEX(信誉提升汇总记录表!A:A,SMALL(IF(信誉提升汇总记录表!$A:$A=$C$2,ROW($B:$B),36500),ROW(B173)))&"" ->  | C176: =INDEX(信誉提升汇总记录表!C:C,SMALL(IF(信誉提升汇总记录表!$A:$A=$C$2,ROW($B:$B),36500),ROW(C173)))&"" ->  | D176: =INDEX(信誉提升汇总记录表!D:D,SMALL(IF(信誉提升汇总记录表!$A:$A=$C$2,ROW($B:$B),36500),ROW(D173)))&"" ->  | E176: =IF(ISERROR(VALUE(INDEX(信誉提升汇总记录表!E:E,SMALL(IF(信誉提升汇总记录表!$A:$A=$C$2,ROW($B:$B),36500),ROW(E173)))&"")),"",VALUE(INDEX(信誉提升汇总记录表!E:E,SMALL(IF(信誉提升汇总记录表!$A:$A=$C$2,ROW($B:$B),36500),ROW(E173)))&"")) ->  | F176: =INDEX(信誉提升汇总记录表!J:J,SMALL(IF(信誉提升汇总记录表!$A:$A=$C$2,ROW($B:$B),36500),ROW(F173)))&"" ->  | G176: =INDEX(信誉提升汇总记录表!K:K,SMALL(IF(信誉提升汇总记录表!$A:$A=$C$2,ROW($B:$B),36500),ROW(G173)))&"" ->  | H176: =INDEX(信誉提升汇总记录表!M:M,SMALL(IF(信誉提升汇总记录表!$A:$A=$C$2,ROW($B:$B),36500),ROW(H173)))&"" -> 
A177: =IF(B177="","",INDEX(信誉提升汇总记录表!B:B,SMALL(IF(信誉提升汇总记录表!$A:$A=$C$2,ROW($B:$B),36500),ROW(A174)))) ->  | B177: =INDEX(信誉提升汇总记录表!A:A,SMALL(IF(信誉提升汇总记录表!$A:$A=$C$2,ROW($B:$B),36500),ROW(B174)))&"" ->  | C177: =INDEX(信誉提升汇总记录表!C:C,SMALL(IF(信誉提升汇总记录表!$A:$A=$C$2,ROW($B:$B),36500),ROW(C174)))&"" ->  | D177: =INDEX(信誉提升汇总记录表!D:D,SMALL(IF(信誉提升汇总记录表!$A:$A=$C$2,ROW($B:$B),36500),ROW(D174)))&"" ->  | E177: =IF(ISERROR(VALUE(INDEX(信誉提升汇总记录表!E:E,SMALL(IF(信誉提升汇总记录表!$A:$A=$C$2,ROW($B:$B),36500),ROW(E174)))&"")),"",VALUE(INDEX(信誉提升汇总记录表!E:E,SMALL(IF(信誉提升汇总记录表!$A:$A=$C$2,ROW($B:$B),36500),ROW(E174)))&"")) ->  | F177: =INDEX(信誉提升汇总记录表!J:J,SMALL(IF(信誉提升汇总记录表!$A:$A=$C$2,ROW($B:$B),36500),ROW(F174)))&"" ->  | G177: =INDEX(信誉提升汇总记录表!K:K,SMALL(IF(信誉提升汇总记录表!$A:$A=$C$2,ROW($B:$B),36500),ROW(G174)))&"" ->  | H177: =INDEX(信誉提升汇总记录表!M:M,SMALL(IF(信誉提升汇总记录表!$A:$A=$C$2,ROW($B:$B),36500),ROW(H174)))&"" -> 
A178: =IF(B178="","",INDEX(信誉提升汇总记录表!B:B,SMALL(IF(信誉提升汇总记录表!$A:$A=$C$2,ROW($B:$B),36500),ROW(A175)))) ->  | B178: =INDEX(信誉提升汇总记录表!A:A,SMALL(IF(信誉提升汇总记录表!$A:$A=$C$2,ROW($B:$B),36500),ROW(B175)))&"" ->  | C178: =INDEX(信誉提升汇总记录表!C:C,SMALL(IF(信誉提升汇总记录表!$A:$A=$C$2,ROW($B:$B),36500),ROW(C175)))&"" ->  | D178: =INDEX(信誉提升汇总记录表!D:D,SMALL(IF(信誉提升汇总记录表!$A:$A=$C$2,ROW($B:$B),36500),ROW(D175)))&"" ->  | E178: =IF(ISERROR(VALUE(INDEX(信誉提升汇总记录表!E:E,SMALL(IF(信誉提升汇总记录表!$A:$A=$C$2,ROW($B:$B),36500),ROW(E175)))&"")),"",VALUE(INDEX(信誉提升汇总记录表!E:E,SMALL(IF(信誉提升汇总记录表!$A:$A=$C$2,ROW($B:$B),36500),ROW(E175)))&"")) ->  | F178: =INDEX(信誉提升汇总记录表!J:J,SMALL(IF(信誉提升汇总记录表!$A:$A=$C$2,ROW($B:$B),36500),ROW(F175)))&"" ->  | G178: =INDEX(信誉提升汇总记录表!K:K,SMALL(IF(信誉提升汇总记录表!$A:$A=$C$2,ROW($B:$B),36500),ROW(G175)))&"" ->  | H178: =INDEX(信誉提升汇总记录表!M:M,SMALL(IF(信誉提升汇总记录表!$A:$A=$C$2,ROW($B:$B),36500),ROW(H175)))&"" -> 
A179: =IF(B179="","",INDEX(信誉提升汇总记录表!B:B,SMALL(IF(信誉提升汇总记录表!$A:$A=$C$2,ROW($B:$B),36500),ROW(A176)))) ->  | B179: =INDEX(信誉提升汇总记录表!A:A,SMALL(IF(信誉提升汇总记录表!$A:$A=$C$2,ROW($B:$B),36500),ROW(B176)))&"" ->  | C179: =INDEX(信誉提升汇总记录表!C:C,SMALL(IF(信誉提升汇总记录表!$A:$A=$C$2,ROW($B:$B),36500),ROW(C176)))&"" ->  | D179: =INDEX(信誉提升汇总记录表!D:D,SMALL(IF(信誉提升汇总记录表!$A:$A=$C$2,ROW($B:$B),36500),ROW(D176)))&"" ->  | E179: =IF(ISERROR(VALUE(INDEX(信誉提升汇总记录表!E:E,SMALL(IF(信誉提升汇总记录表!$A:$A=$C$2,ROW($B:$B),36500),ROW(E176)))&"")),"",VALUE(INDEX(信誉提升汇总记录表!E:E,SMALL(IF(信誉提升汇总记录表!$A:$A=$C$2,ROW($B:$B),36500),ROW(E176)))&"")) ->  | F179: =INDEX(信誉提升汇总记录表!J:J,SMALL(IF(信誉提升汇总记录表!$A:$A=$C$2,ROW($B:$B),36500),ROW(F176)))&"" ->  | G179: =INDEX(信誉提升汇总记录表!K:K,SMALL(IF(信誉提升汇总记录表!$A:$A=$C$2,ROW($B:$B),36500),ROW(G176)))&"" ->  | H179: =INDEX(信誉提升汇总记录表!M:M,SMALL(IF(信誉提升汇总记录表!$A:$A=$C$2,ROW($B:$B),36500),ROW(H176)))&"" -> 
A180: =IF(B180="","",INDEX(信誉提升汇总记录表!B:B,SMALL(IF(信誉提升汇总记录表!$A:$A=$C$2,ROW($B:$B),36500),ROW(A177)))) ->  | B180: =INDEX(信誉提升汇总记录表!A:A,SMALL(IF(信誉提升汇总记录表!$A:$A=$C$2,ROW($B:$B),36500),ROW(B177)))&"" ->  | C180: =INDEX(信誉提升汇总记录表!C:C,SMALL(IF(信誉提升汇总记录表!$A:$A=$C$2,ROW($B:$B),36500),ROW(C177)))&"" ->  | D180: =INDEX(信誉提升汇总记录表!D:D,SMALL(IF(信誉提升汇总记录表!$A:$A=$C$2,ROW($B:$B),36500),ROW(D177)))&"" ->  | E180: =IF(ISERROR(VALUE(INDEX(信誉提升汇总记录表!E:E,SMALL(IF(信誉提升汇总记录表!$A:$A=$C$2,ROW($B:$B),36500),ROW(E177)))&"")),"",VALUE(INDEX(信誉提升汇总记录表!E:E,SMALL(IF(信誉提升汇总记录表!$A:$A=$C$2,ROW($B:$B),36500),ROW(E177)))&"")) ->  | F180: =INDEX(信誉提升汇总记录表!J:J,SMALL(IF(信誉提升汇总记录表!$A:$A=$C$2,ROW($B:$B),36500),ROW(F177)))&"" ->  | G180: =INDEX(信誉提升汇总记录表!K:K,SMALL(IF(信誉提升汇总记录表!$A:$A=$C$2,ROW($B:$B),36500),ROW(G177)))&"" ->  | H180: =INDEX(信誉提升汇总记录表!M:M,SMALL(IF(信誉提升汇总记录表!$A:$A=$C$2,ROW($B:$B),36500),ROW(H177)))&"" -> 
A181: =IF(B181="","",INDEX(信誉提升汇总记录表!B:B,SMALL(IF(信誉提升汇总记录表!$A:$A=$C$2,ROW($B:$B),36500),ROW(A178)))) ->  | B181: =INDEX(信誉提升汇总记录表!A:A,SMALL(IF(信誉提升汇总记录表!$A:$A=$C$2,ROW($B:$B),36500),ROW(B178)))&"" ->  | C181: =INDEX(信誉提升汇总记录表!C:C,SMALL(IF(信誉提升汇总记录表!$A:$A=$C$2,ROW($B:$B),36500),ROW(C178)))&"" ->  | D181: =INDEX(信誉提升汇总记录表!D:D,SMALL(IF(信誉提升汇总记录表!$A:$A=$C$2,ROW($B:$B),36500),ROW(D178)))&"" ->  | E181: =IF(ISERROR(VALUE(INDEX(信誉提升汇总记录表!E:E,SMALL(IF(信誉提升汇总记录表!$A:$A=$C$2,ROW($B:$B),36500),ROW(E178)))&"")),"",VALUE(INDEX(信誉提升汇总记录表!E:E,SMALL(IF(信誉提升汇总记录表!$A:$A=$C$2,ROW($B:$B),36500),ROW(E178)))&"")) ->  | F181: =INDEX(信誉提升汇总记录表!J:J,SMALL(IF(信誉提升汇总记录表!$A:$A=$C$2,ROW($B:$B),36500),ROW(F178)))&"" ->  | G181: =INDEX(信誉提升汇总记录表!K:K,SMALL(IF(信誉提升汇总记录表!$A:$A=$C$2,ROW($B:$B),36500),ROW(G178)))&"" ->  | H181: =INDEX(信誉提升汇总记录表!M:M,SMALL(IF(信誉提升汇总记录表!$A:$A=$C$2,ROW($B:$B),36500),ROW(H178)))&"" -> 
A182: =IF(B182="","",INDEX(信誉提升汇总记录表!B:B,SMALL(IF(信誉提升汇总记录表!$A:$A=$C$2,ROW($B:$B),36500),ROW(A179)))) ->  | B182: =INDEX(信誉提升汇总记录表!A:A,SMALL(IF(信誉提升汇总记录表!$A:$A=$C$2,ROW($B:$B),36500),ROW(B179)))&"" ->  | C182: =INDEX(信誉提升汇总记录表!C:C,SMALL(IF(信誉提升汇总记录表!$A:$A=$C$2,ROW($B:$B),36500),ROW(C179)))&"" ->  | D182: =INDEX(信誉提升汇总记录表!D:D,SMALL(IF(信誉提升汇总记录表!$A:$A=$C$2,ROW($B:$B),36500),ROW(D179)))&"" ->  | E182: =IF(ISERROR(VALUE(INDEX(信誉提升汇总记录表!E:E,SMALL(IF(信誉提升汇总记录表!$A:$A=$C$2,ROW($B:$B),36500),ROW(E179)))&"")),"",VALUE(INDEX(信誉提升汇总记录表!E:E,SMALL(IF(信誉提升汇总记录表!$A:$A=$C$2,ROW($B:$B),36500),ROW(E179)))&"")) ->  | F182: =INDEX(信誉提升汇总记录表!J:J,SMALL(IF(信誉提升汇总记录表!$A:$A=$C$2,ROW($B:$B),36500),ROW(F179)))&"" ->  | G182: =INDEX(信誉提升汇总记录表!K:K,SMALL(IF(信誉提升汇总记录表!$A:$A=$C$2,ROW($B:$B),36500),ROW(G179)))&"" ->  | H182: =INDEX(信誉提升汇总记录表!M:M,SMALL(IF(信誉提升汇总记录表!$A:$A=$C$2,ROW($B:$B),36500),ROW(H179)))&"" -> 
A183: =IF(B183="","",INDEX(信誉提升汇总记录表!B:B,SMALL(IF(信誉提升汇总记录表!$A:$A=$C$2,ROW($B:$B),36500),ROW(A180)))) ->  | B183: =INDEX(信誉提升汇总记录表!A:A,SMALL(IF(信誉提升汇总记录表!$A:$A=$C$2,ROW($B:$B),36500),ROW(B180)))&"" ->  | C183: =INDEX(信誉提升汇总记录表!C:C,SMALL(IF(信誉提升汇总记录表!$A:$A=$C$2,ROW($B:$B),36500),ROW(C180)))&"" ->  | D183: =INDEX(信誉提升汇总记录表!D:D,SMALL(IF(信誉提升汇总记录表!$A:$A=$C$2,ROW($B:$B),36500),ROW(D180)))&"" ->  | E183: =IF(ISERROR(VALUE(INDEX(信誉提升汇总记录表!E:E,SMALL(IF(信誉提升汇总记录表!$A:$A=$C$2,ROW($B:$B),36500),ROW(E180)))&"")),"",VALUE(INDEX(信誉提升汇总记录表!E:E,SMALL(IF(信誉提升汇总记录表!$A:$A=$C$2,ROW($B:$B),36500),ROW(E180)))&"")) ->  | F183: =INDEX(信誉提升汇总记录表!J:J,SMALL(IF(信誉提升汇总记录表!$A:$A=$C$2,ROW($B:$B),36500),ROW(F180)))&"" ->  | G183: =INDEX(信誉提升汇总记录表!K:K,SMALL(IF(信誉提升汇总记录表!$A:$A=$C$2,ROW($B:$B),36500),ROW(G180)))&"" ->  | H183: =INDEX(信誉提升汇总记录表!M:M,SMALL(IF(信誉提升汇总记录表!$A:$A=$C$2,ROW($B:$B),36500),ROW(H180)))&"" -> 
A184: =IF(B184="","",INDEX(信誉提升汇总记录表!B:B,SMALL(IF(信誉提升汇总记录表!$A:$A=$C$2,ROW($B:$B),36500),ROW(A181)))) ->  | B184: =INDEX(信誉提升汇总记录表!A:A,SMALL(IF(信誉提升汇总记录表!$A:$A=$C$2,ROW($B:$B),36500),ROW(B181)))&"" ->  | C184: =INDEX(信誉提升汇总记录表!C:C,SMALL(IF(信誉提升汇总记录表!$A:$A=$C$2,ROW($B:$B),36500),ROW(C181)))&"" ->  | D184: =INDEX(信誉提升汇总记录表!D:D,SMALL(IF(信誉提升汇总记录表!$A:$A=$C$2,ROW($B:$B),36500),ROW(D181)))&"" ->  | E184: =IF(ISERROR(VALUE(INDEX(信誉提升汇总记录表!E:E,SMALL(IF(信誉提升汇总记录表!$A:$A=$C$2,ROW($B:$B),36500),ROW(E181)))&"")),"",VALUE(INDEX(信誉提升汇总记录表!E:E,SMALL(IF(信誉提升汇总记录表!$A:$A=$C$2,ROW($B:$B),36500),ROW(E181)))&"")) ->  | F184: =INDEX(信誉提升汇总记录表!J:J,SMALL(IF(信誉提升汇总记录表!$A:$A=$C$2,ROW($B:$B),36500),ROW(F181)))&"" ->  | G184: =INDEX(信誉提升汇总记录表!K:K,SMALL(IF(信誉提升汇总记录表!$A:$A=$C$2,ROW($B:$B),36500),ROW(G181)))&"" ->  | H184: =INDEX(信誉提升汇总记录表!M:M,SMALL(IF(信誉提升汇总记录表!$A:$A=$C$2,ROW($B:$B),36500),ROW(H181)))&"" -> 
A185: =IF(B185="","",INDEX(信誉提升汇总记录表!B:B,SMALL(IF(信誉提升汇总记录表!$A:$A=$C$2,ROW($B:$B),36500),ROW(A182)))) ->  | B185: =INDEX(信誉提升汇总记录表!A:A,SMALL(IF(信誉提升汇总记录表!$A:$A=$C$2,ROW($B:$B),36500),ROW(B182)))&"" ->  | C185: =INDEX(信誉提升汇总记录表!C:C,SMALL(IF(信誉提升汇总记录表!$A:$A=$C$2,ROW($B:$B),36500),ROW(C182)))&"" ->  | D185: =INDEX(信誉提升汇总记录表!D:D,SMALL(IF(信誉提升汇总记录表!$A:$A=$C$2,ROW($B:$B),36500),ROW(D182)))&"" ->  | E185: =IF(ISERROR(VALUE(INDEX(信誉提升汇总记录表!E:E,SMALL(IF(信誉提升汇总记录表!$A:$A=$C$2,ROW($B:$B),36500),ROW(E182)))&"")),"",VALUE(INDEX(信誉提升汇总记录表!E:E,SMALL(IF(信誉提升汇总记录表!$A:$A=$C$2,ROW($B:$B),36500),ROW(E182)))&"")) ->  | F185: =INDEX(信誉提升汇总记录表!J:J,SMALL(IF(信誉提升汇总记录表!$A:$A=$C$2,ROW($B:$B),36500),ROW(F182)))&"" ->  | G185: =INDEX(信誉提升汇总记录表!K:K,SMALL(IF(信誉提升汇总记录表!$A:$A=$C$2,ROW($B:$B),36500),ROW(G182)))&"" ->  | H185: =INDEX(信誉提升汇总记录表!M:M,SMALL(IF(信誉提升汇总记录表!$A:$A=$C$2,ROW($B:$B),36500),ROW(H182)))&"" -> 
A186: =IF(B186="","",INDEX(信誉提升汇总记录表!B:B,SMALL(IF(信誉提升汇总记录表!$A:$A=$C$2,ROW($B:$B),36500),ROW(A183)))) ->  | B186: =INDEX(信誉提升汇总记录表!A:A,SMALL(IF(信誉提升汇总记录表!$A:$A=$C$2,ROW($B:$B),36500),ROW(B183)))&"" ->  | C186: =INDEX(信誉提升汇总记录表!C:C,SMALL(IF(信誉提升汇总记录表!$A:$A=$C$2,ROW($B:$B),36500),ROW(C183)))&"" ->  | D186: =INDEX(信誉提升汇总记录表!D:D,SMALL(IF(信誉提升汇总记录表!$A:$A=$C$2,ROW($B:$B),36500),ROW(D183)))&"" ->  | E186: =IF(ISERROR(VALUE(INDEX(信誉提升汇总记录表!E:E,SMALL(IF(信誉提升汇总记录表!$A:$A=$C$2,ROW($B:$B),36500),ROW(E183)))&"")),"",VALUE(INDEX(信誉提升汇总记录表!E:E,SMALL(IF(信誉提升汇总记录表!$A:$A=$C$2,ROW($B:$B),36500),ROW(E183)))&"")) ->  | F186: =INDEX(信誉提升汇总记录表!J:J,SMALL(IF(信誉提升汇总记录表!$A:$A=$C$2,ROW($B:$B),36500),ROW(F183)))&"" ->  | G186: =INDEX(信誉提升汇总记录表!K:K,SMALL(IF(信誉提升汇总记录表!$A:$A=$C$2,ROW($B:$B),36500),ROW(G183)))&"" ->  | H186: =INDEX(信誉提升汇总记录表!M:M,SMALL(IF(信誉提升汇总记录表!$A:$A=$C$2,ROW($B:$B),36500),ROW(H183)))&"" -> 
A187: =IF(B187="","",INDEX(信誉提升汇总记录表!B:B,SMALL(IF(信誉提升汇总记录表!$A:$A=$C$2,ROW($B:$B),36500),ROW(A184)))) ->  | B187: =INDEX(信誉提升汇总记录表!A:A,SMALL(IF(信誉提升汇总记录表!$A:$A=$C$2,ROW($B:$B),36500),ROW(B184)))&"" ->  | C187: =INDEX(信誉提升汇总记录表!C:C,SMALL(IF(信誉提升汇总记录表!$A:$A=$C$2,ROW($B:$B),36500),ROW(C184)))&"" ->  | D187: =INDEX(信誉提升汇总记录表!D:D,SMALL(IF(信誉提升汇总记录表!$A:$A=$C$2,ROW($B:$B),36500),ROW(D184)))&"" ->  | E187: =IF(ISERROR(VALUE(INDEX(信誉提升汇总记录表!E:E,SMALL(IF(信誉提升汇总记录表!$A:$A=$C$2,ROW($B:$B),36500),ROW(E184)))&"")),"",VALUE(INDEX(信誉提升汇总记录表!E:E,SMALL(IF(信誉提升汇总记录表!$A:$A=$C$2,ROW($B:$B),36500),ROW(E184)))&"")) ->  | F187: =INDEX(信誉提升汇总记录表!J:J,SMALL(IF(信誉提升汇总记录表!$A:$A=$C$2,ROW($B:$B),36500),ROW(F184)))&"" ->  | G187: =INDEX(信誉提升汇总记录表!K:K,SMALL(IF(信誉提升汇总记录表!$A:$A=$C$2,ROW($B:$B),36500),ROW(G184)))&"" ->  | H187: =INDEX(信誉提升汇总记录表!M:M,SMALL(IF(信誉提升汇总记录表!$A:$A=$C$2,ROW($B:$B),36500),ROW(H184)))&"" -> 
A188: =IF(B188="","",INDEX(信誉提升汇总记录表!B:B,SMALL(IF(信誉提升汇总记录表!$A:$A=$C$2,ROW($B:$B),36500),ROW(A185)))) ->  | B188: =INDEX(信誉提升汇总记录表!A:A,SMALL(IF(信誉提升汇总记录表!$A:$A=$C$2,ROW($B:$B),36500),ROW(B185)))&"" ->  | C188: =INDEX(信誉提升汇总记录表!C:C,SMALL(IF(信誉提升汇总记录表!$A:$A=$C$2,ROW($B:$B),36500),ROW(C185)))&"" ->  | D188: =INDEX(信誉提升汇总记录表!D:D,SMALL(IF(信誉提升汇总记录表!$A:$A=$C$2,ROW($B:$B),36500),ROW(D185)))&"" ->  | E188: =IF(ISERROR(VALUE(INDEX(信誉提升汇总记录表!E:E,SMALL(IF(信誉提升汇总记录表!$A:$A=$C$2,ROW($B:$B),36500),ROW(E185)))&"")),"",VALUE(INDEX(信誉提升汇总记录表!E:E,SMALL(IF(信誉提升汇总记录表!$A:$A=$C$2,ROW($B:$B),36500),ROW(E185)))&"")) ->  | F188: =INDEX(信誉提升汇总记录表!J:J,SMALL(IF(信誉提升汇总记录表!$A:$A=$C$2,ROW($B:$B),36500),ROW(F185)))&"" ->  | G188: =INDEX(信誉提升汇总记录表!K:K,SMALL(IF(信誉提升汇总记录表!$A:$A=$C$2,ROW($B:$B),36500),ROW(G185)))&"" ->  | H188: =INDEX(信誉提升汇总记录表!M:M,SMALL(IF(信誉提升汇总记录表!$A:$A=$C$2,ROW($B:$B),36500),ROW(H185)))&"" -> 
A189: =IF(B189="","",INDEX(信誉提升汇总记录表!B:B,SMALL(IF(信誉提升汇总记录表!$A:$A=$C$2,ROW($B:$B),36500),ROW(A186)))) ->  | B189: =INDEX(信誉提升汇总记录表!A:A,SMALL(IF(信誉提升汇总记录表!$A:$A=$C$2,ROW($B:$B),36500),ROW(B186)))&"" ->  | C189: =INDEX(信誉提升汇总记录表!C:C,SMALL(IF(信誉提升汇总记录表!$A:$A=$C$2,ROW($B:$B),36500),ROW(C186)))&"" ->  | D189: =INDEX(信誉提升汇总记录表!D:D,SMALL(IF(信誉提升汇总记录表!$A:$A=$C$2,ROW($B:$B),36500),ROW(D186)))&"" ->  | E189: =IF(ISERROR(VALUE(INDEX(信誉提升汇总记录表!E:E,SMALL(IF(信誉提升汇总记录表!$A:$A=$C$2,ROW($B:$B),36500),ROW(E186)))&"")),"",VALUE(INDEX(信誉提升汇总记录表!E:E,SMALL(IF(信誉提升汇总记录表!$A:$A=$C$2,ROW($B:$B),36500),ROW(E186)))&"")) ->  | F189: =INDEX(信誉提升汇总记录表!J:J,SMALL(IF(信誉提升汇总记录表!$A:$A=$C$2,ROW($B:$B),36500),ROW(F186)))&"" ->  | G189: =INDEX(信誉提升汇总记录表!K:K,SMALL(IF(信誉提升汇总记录表!$A:$A=$C$2,ROW($B:$B),36500),ROW(G186)))&"" ->  | H189: =INDEX(信誉提升汇总记录表!M:M,SMALL(IF(信誉提升汇总记录表!$A:$A=$C$2,ROW($B:$B),36500),ROW(H186)))&"" -> 
A190: =IF(B190="","",INDEX(信誉提升汇总记录表!B:B,SMALL(IF(信誉提升汇总记录表!$A:$A=$C$2,ROW($B:$B),36500),ROW(A187)))) ->  | B190: =INDEX(信誉提升汇总记录表!A:A,SMALL(IF(信誉提升汇总记录表!$A:$A=$C$2,ROW($B:$B),36500),ROW(B187)))&"" ->  | C190: =INDEX(信誉提升汇总记录表!C:C,SMALL(IF(信誉提升汇总记录表!$A:$A=$C$2,ROW($B:$B),36500),ROW(C187)))&"" ->  | D190: =INDEX(信誉提升汇总记录表!D:D,SMALL(IF(信誉提升汇总记录表!$A:$A=$C$2,ROW($B:$B),36500),ROW(D187)))&"" ->  | E190: =IF(ISERROR(VALUE(INDEX(信誉提升汇总记录表!E:E,SMALL(IF(信誉提升汇总记录表!$A:$A=$C$2,ROW($B:$B),36500),ROW(E187)))&"")),"",VALUE(INDEX(信誉提升汇总记录表!E:E,SMALL(IF(信誉提升汇总记录表!$A:$A=$C$2,ROW($B:$B),36500),ROW(E187)))&"")) ->  | F190: =INDEX(信誉提升汇总记录表!J:J,SMALL(IF(信誉提升汇总记录表!$A:$A=$C$2,ROW($B:$B),36500),ROW(F187)))&"" ->  | G190: =INDEX(信誉提升汇总记录表!K:K,SMALL(IF(信誉提升汇总记录表!$A:$A=$C$2,ROW($B:$B),36500),ROW(G187)))&"" ->  | H190: =INDEX(信誉提升汇总记录表!M:M,SMALL(IF(信誉提升汇总记录表!$A:$A=$C$2,ROW($B:$B),36500),ROW(H187)))&"" -> 
A191: =IF(B191="","",INDEX(信誉提升汇总记录表!B:B,SMALL(IF(信誉提升汇总记录表!$A:$A=$C$2,ROW($B:$B),36500),ROW(A188)))) ->  | B191: =INDEX(信誉提升汇总记录表!A:A,SMALL(IF(信誉提升汇总记录表!$A:$A=$C$2,ROW($B:$B),36500),ROW(B188)))&"" ->  | C191: =INDEX(信誉提升汇总记录表!C:C,SMALL(IF(信誉提升汇总记录表!$A:$A=$C$2,ROW($B:$B),36500),ROW(C188)))&"" ->  | D191: =INDEX(信誉提升汇总记录表!D:D,SMALL(IF(信誉提升汇总记录表!$A:$A=$C$2,ROW($B:$B),36500),ROW(D188)))&"" ->  | E191: =IF(ISERROR(VALUE(INDEX(信誉提升汇总记录表!E:E,SMALL(IF(信誉提升汇总记录表!$A:$A=$C$2,ROW($B:$B),36500),ROW(E188)))&"")),"",VALUE(INDEX(信誉提升汇总记录表!E:E,SMALL(IF(信誉提升汇总记录表!$A:$A=$C$2,ROW($B:$B),36500),ROW(E188)))&"")) ->  | F191: =INDEX(信誉提升汇总记录表!J:J,SMALL(IF(信誉提升汇总记录表!$A:$A=$C$2,ROW($B:$B),36500),ROW(F188)))&"" ->  | G191: =INDEX(信誉提升汇总记录表!K:K,SMALL(IF(信誉提升汇总记录表!$A:$A=$C$2,ROW($B:$B),36500),ROW(G188)))&"" ->  | H191: =INDEX(信誉提升汇总记录表!M:M,SMALL(IF(信誉提升汇总记录表!$A:$A=$C$2,ROW($B:$B),36500),ROW(H188)))&"" -> 
A192: =IF(B192="","",INDEX(信誉提升汇总记录表!B:B,SMALL(IF(信誉提升汇总记录表!$A:$A=$C$2,ROW($B:$B),36500),ROW(A189)))) ->  | B192: =INDEX(信誉提升汇总记录表!A:A,SMALL(IF(信誉提升汇总记录表!$A:$A=$C$2,ROW($B:$B),36500),ROW(B189)))&"" ->  | C192: =INDEX(信誉提升汇总记录表!C:C,SMALL(IF(信誉提升汇总记录表!$A:$A=$C$2,ROW($B:$B),36500),ROW(C189)))&"" ->  | D192: =INDEX(信誉提升汇总记录表!D:D,SMALL(IF(信誉提升汇总记录表!$A:$A=$C$2,ROW($B:$B),36500),ROW(D189)))&"" ->  | E192: =IF(ISERROR(VALUE(INDEX(信誉提升汇总记录表!E:E,SMALL(IF(信誉提升汇总记录表!$A:$A=$C$2,ROW($B:$B),36500),ROW(E189)))&"")),"",VALUE(INDEX(信誉提升汇总记录表!E:E,SMALL(IF(信誉提升汇总记录表!$A:$A=$C$2,ROW($B:$B),36500),ROW(E189)))&"")) ->  | F192: =INDEX(信誉提升汇总记录表!J:J,SMALL(IF(信誉提升汇总记录表!$A:$A=$C$2,ROW($B:$B),36500),ROW(F189)))&"" ->  | G192: =INDEX(信誉提升汇总记录表!K:K,SMALL(IF(信誉提升汇总记录表!$A:$A=$C$2,ROW($B:$B),36500),ROW(G189)))&"" ->  | H192: =INDEX(信誉提升汇总记录表!M:M,SMALL(IF(信誉提升汇总记录表!$A:$A=$C$2,ROW($B:$B),36500),ROW(H189)))&"" -> 
A193: =IF(B193="","",INDEX(信誉提升汇总记录表!B:B,SMALL(IF(信誉提升汇总记录表!$A:$A=$C$2,ROW($B:$B),36500),ROW(A190)))) ->  | B193: =INDEX(信誉提升汇总记录表!A:A,SMALL(IF(信誉提升汇总记录表!$A:$A=$C$2,ROW($B:$B),36500),ROW(B190)))&"" ->  | C193: =INDEX(信誉提升汇总记录表!C:C,SMALL(IF(信誉提升汇总记录表!$A:$A=$C$2,ROW($B:$B),36500),ROW(C190)))&"" ->  | D193: =INDEX(信誉提升汇总记录表!D:D,SMALL(IF(信誉提升汇总记录表!$A:$A=$C$2,ROW($B:$B),36500),ROW(D190)))&"" ->  | E193: =IF(ISERROR(VALUE(INDEX(信誉提升汇总记录表!E:E,SMALL(IF(信誉提升汇总记录表!$A:$A=$C$2,ROW($B:$B),36500),ROW(E190)))&"")),"",VALUE(INDEX(信誉提升汇总记录表!E:E,SMALL(IF(信誉提升汇总记录表!$A:$A=$C$2,ROW($B:$B),36500),ROW(E190)))&"")) ->  | F193: =INDEX(信誉提升汇总记录表!J:J,SMALL(IF(信誉提升汇总记录表!$A:$A=$C$2,ROW($B:$B),36500),ROW(F190)))&"" ->  | G193: =INDEX(信誉提升汇总记录表!K:K,SMALL(IF(信誉提升汇总记录表!$A:$A=$C$2,ROW($B:$B),36500),ROW(G190)))&"" ->  | H193: =INDEX(信誉提升汇总记录表!M:M,SMALL(IF(信誉提升汇总记录表!$A:$A=$C$2,ROW($B:$B),36500),ROW(H190)))&"" -> 
A194: =IF(B194="","",INDEX(信誉提升汇总记录表!B:B,SMALL(IF(信誉提升汇总记录表!$A:$A=$C$2,ROW($B:$B),36500),ROW(A191)))) ->  | B194: =INDEX(信誉提升汇总记录表!A:A,SMALL(IF(信誉提升汇总记录表!$A:$A=$C$2,ROW($B:$B),36500),ROW(B191)))&"" ->  | C194: =INDEX(信誉提升汇总记录表!C:C,SMALL(IF(信誉提升汇总记录表!$A:$A=$C$2,ROW($B:$B),36500),ROW(C191)))&"" ->  | D194: =INDEX(信誉提升汇总记录表!D:D,SMALL(IF(信誉提升汇总记录表!$A:$A=$C$2,ROW($B:$B),36500),ROW(D191)))&"" ->  | E194: =IF(ISERROR(VALUE(INDEX(信誉提升汇总记录表!E:E,SMALL(IF(信誉提升汇总记录表!$A:$A=$C$2,ROW($B:$B),36500),ROW(E191)))&"")),"",VALUE(INDEX(信誉提升汇总记录表!E:E,SMALL(IF(信誉提升汇总记录表!$A:$A=$C$2,ROW($B:$B),36500),ROW(E191)))&"")) ->  | F194: =INDEX(信誉提升汇总记录表!J:J,SMALL(IF(信誉提升汇总记录表!$A:$A=$C$2,ROW($B:$B),36500),ROW(F191)))&"" ->  | G194: =INDEX(信誉提升汇总记录表!K:K,SMALL(IF(信誉提升汇总记录表!$A:$A=$C$2,ROW($B:$B),36500),ROW(G191)))&"" ->  | H194: =INDEX(信誉提升汇总记录表!M:M,SMALL(IF(信誉提升汇总记录表!$A:$A=$C$2,ROW($B:$B),36500),ROW(H191)))&"" -> 

Sheet 螺旋计划款操作总表
C1: =螺旋计划款信誉提升明细表!C2&"-21天信誉提升螺旋计划表" -> 测试货号1-拼接撞色连衣裙-21天信誉提升螺旋计划表
A2: 固定 | B2: 周 期 | C2: 第一周 | K2: 第二周 | R2: 第三周
A3: 固定 | B3: 上架天数 | C3: 上架当天 | D3: 第1天 | E3: 第2天 | F3: 第3天 | G3: 第4天 | H3: 第5天 | I3: 第6天 | J3: 第7天 | K3: 第8天 | L3: 第9天 | M3: 第10天 | N3: 第11天 | O3: 第12天 | P3: 第13天 | Q3: 第14天 | R3: 第15天 | S3: 第16天 | T3: 第17天 | U3: 第18天 | V3: 第19天 | W3: 第20天 | X3: 第21天
A4: 自己填 | B4: 上架日期 | C4: 2014-07-21 | D4: 2014-07-22 | E4: 2014-07-23 | F4: 2014-07-24 | G4: 2014-07-25 | H4: 2014-07-26 | I4: 2014-07-27 | J4: 2014-07-28 | K4: 2014-07-29 | L4: 2014-07-30 | M4: 2014-07-31 | N4: 2014-08-01 | O4: 2014-08-02 | P4: 2014-08-03 | Q4: 2014-08-04 | R4: 2014-08-05 | S4: 2014-08-06 | T4: 2014-08-07 | U4: 2014-08-08 | V4: 2014-08-09 | W4: 2014-08-10 | X4: 2014-08-11
A5: 自己填 | B5: 上架星期 | C5: 星期一 | D5: 星期二 | E5: 星期三 | F5: 星期四 | G5: 星期五 | H5: 星期六 | I5: 星期日 | J5: 星期一 | K5: 星期二 | L5: 星期三 | M5: 星期四 | N5: 星期五 | O5: 星期六 | P5: 星期日 | Q5: 星期一 | R5: 星期二 | S5: 星期三 | T5: 星期四 | U5: 星期五 | V5: 星期六 | W5: 星期日 | X5: 星期一
A6: 自己填 | B6: 真实流量 | D6: 2 | E6: 5 | F6: 10 | G6: 35 | H6: 76 | I6: 130 | J6: 270 | K6: 20 | L6: 56 | M6: 112 | N6: 156 | O6: 230 | P6: 310 | Q6: 523 | R6: 152 | S6: 270 | T6: 345 | U6: 467 | V6: 580 | W6: 790 | X6: 1600
A7: 自己填 | B7: 真实销量 | D7: 0 | E7: 0 | F7: 0 | G7: 1 | H7: 2 | I7: 5 | J7: 8 | K7: 1 | L7: 2 | M7: 4 | N7: 5 | O7: 8 | P7: 13 | Q7: 19 | R7: 5 | S7: 9 | T7: 13 | U7: 16 | V7: 20 | W7: 32 | X7: 56
A8: 有公式 | B8: 真实转换率 | D8: =IF(D6=0,0,D7/D6) -> 0 | E8: =IF(E6=0,0,E7/E6) -> 0 | F8: =IF(F6=0,0,F7/F6) -> 0 | G8: =IF(G6=0,0,G7/G6) -> 0.02857142857 | H8: =IF(H6=0,0,H7/H6) -> 0.02631578947 | I8: =IF(I6=0,0,I7/I6) -> 0.03846153846 | J8: =IF(J6=0,0,J7/J6) -> 0.02962962963 | K8: =IF(K6=0,0,K7/K6) -> 0.05 | L8: =IF(L6=0,0,L7/L6) -> 0.03571428571 | M8: =IF(M6=0,0,M7/M6) -> 0.03571428571 | N8: =IF(N6=0,0,N7/N6) -> 0.03205128205 | O8: =IF(O6=0,0,O7/O6) -> 0.0347826087 | P8: =IF(P6=0,0,P7/P6) -> 0.04193548387 | Q8: =IF(Q6=0,0,Q7/Q6) -> 0.03632887189 | R8: =IF(R6=0,0,R7/R6) -> 0.03289473684 | S8: =IF(S6=0,0,S7/S6) -> 0.03333333333 | T8: =IF(T6=0,0,T7/T6) -> 0.03768115942 | U8: =IF(U6=0,0,U7/U6) -> 0.03426124197 | V8: =IF(V6=0,0,V7/V6) -> 0.03448275862 | W8: =IF(W6=0,0,W7/W6) -> 0.04050632911 | X8: =IF(X6=0,0,X7/X6) -> 0.035
A9: 自己填 | B9: 虚假流量占比真实流量 | D9: 8 | E9: 7 | F9: 7 | G9: 3 | H9: 2 | I9: 1.5 | J9: 1.2 | K9: 7 | L9: 4 | M9: 2.5 | N9: 2 | O9: 1.5 | P9: 1.2 | Q9: 1 | R9: 1.8 | S9: 1.6 | T9: 1.5 | U9: 1.3 | V9: 1.2 | W9: 0.98 | X9: 0.95
A10: 有公式 | B10: 需要导入的虚假流量 | D10: =IF(IF(D6=0,1,D6)*D9=0,"",IF(D6=0,1,D6)*D9) -> 16 | E10: =IF(IF(E6=0,1,E6)*E9=0,"",IF(E6=0,1,E6)*E9) -> 35 | F10: =IF(IF(F6=0,1,F6)*F9=0,"",IF(F6=0,1,F6)*F9) -> 70 | G10: =IF(IF(G6=0,1,G6)*G9=0,"",IF(G6=0,1,G6)*G9) -> 105 | H10: =IF(IF(H6=0,1,H6)*H9=0,"",IF(H6=0,1,H6)*H9) -> 152 | I10: =IF(IF(I6=0,1,I6)*I9=0,"",IF(I6=0,1,I6)*I9) -> 195 | J10: =IF(IF(J6=0,1,J6)*J9=0,"",IF(J6=0,1,J6)*J9) -> 324 | K10: =IF(IF(K6=0,1,K6)*K9=0,"",IF(K6=0,1,K6)*K9) -> 140 | L10: =IF(IF(L6=0,1,L6)*L9=0,"",IF(L6=0,1,L6)*L9) -> 224 | M10: =IF(IF(M6=0,1,M6)*M9=0,"",IF(M6=0,1,M6)*M9) -> 280 | N10: =IF(IF(N6=0,1,N6)*N9=0,"",IF(N6=0,1,N6)*N9) -> 312 | O10: =IF(IF(O6=0,1,O6)*O9=0,"",IF(O6=0,1,O6)*O9) -> 345 | P10: =IF(IF(P6=0,1,P6)*P9=0,"",IF(P6=0,1,P6)*P9) -> 372 | Q10: =IF(IF(Q6=0,1,Q6)*Q9=0,"",IF(Q6=0,1,Q6)*Q9) -> 523 | R10: =IF(IF(R6=0,1,R6)*R9=0,"",IF(R6=0,1,R6)*R9) -> 273.6 | S10: =IF(IF(S6=0,1,S6)*S9=0,"",IF(S6=0,1,S6)*S9) -> 432 | T10: =IF(IF(T6=0,1,T6)*T9=0,"",IF(T6=0,1,T6)*T9) -> 517.5 | U10: =IF(IF(U6=0,1,U6)*U9=0,"",IF(U6=0,1,U6)*U9) -> 607.1 | V10: =IF(IF(V6=0,1,V6)*V9=0,"",IF(V6=0,1,V6)*V9) -> 696 | W10: =IF(IF(W6=0,1,W6)*W9=0,"",IF(W6=0,1,W6)*W9) -> 774.2 | X10: =IF(IF(X6=0,1,X6)*X9=0,"",IF(X6=0,1,X6)*X9) -> 1520
A11: 固定 | B11: 需要控制的转换率 | D11: 0.035 | E11: 0.023 | F11: 0.023 | G11: 0.02 | H11: 0.045 | I11: 0.055 | J11: 0.045 | K11: 0.035 | L11: 0.023 | M11: 0.023 | N11: 0.02 | O11: 0.045 | P11: 0.055 | Q11: 0.045 | R11: 0.035 | S11: 0.023 | T11: 0.023 | U11: 0.02 | V11: 0.045 | W11: 0.055 | X11: 0.045
A12: 有公式 | B12: 需要导入的虚假销量 | D12: =IF(D11="",0,D11)*IF(D10="",0,D10) -> 0.56 | E12: =IF(E11="",0,E11)*IF(E10="",0,E10) -> 0.805 | F12: =IF(F11="",0,F11)*IF(F10="",0,F10) -> 1.61 | G12: =IF(G11="",0,G11)*IF(G10="",0,G10) -> 2.1 | H12: =IF(H11="",0,H11)*IF(H10="",0,H10) -> 6.84 | I12: =IF(I11="",0,I11)*IF(I10="",0,I10) -> 10.725 | J12: =IF(J11="",0,J11)*IF(J10="",0,J10) -> 14.58 | K12: =IF(K11="",0,K11)*IF(K10="",0,K10) -> 4.9 | L12: =IF(L11="",0,L11)*IF(L10="",0,L10) -> 5.152 | M12: =IF(M11="",0,M11)*IF(M10="",0,M10) -> 6.44 | N12: =IF(N11="",0,N11)*IF(N10="",0,N10) -> 6.24 | O12: =IF(O11="",0,O11)*IF(O10="",0,O10) -> 15.525 | P12: =IF(P11="",0,P11)*IF(P10="",0,P10) -> 20.46 | Q12: =IF(Q11="",0,Q11)*IF(Q10="",0,Q10) -> 23.535 | R12: =IF(R11="",0,R11)*IF(R10="",0,R10) -> 9.576 | S12: =IF(S11="",0,S11)*IF(S10="",0,S10) -> 9.936 | T12: =IF(T11="",0,T11)*IF(T10="",0,T10) -> 11.9025 | U12: =IF(U11="",0,U11)*IF(U10="",0,U10) -> 12.142 | V12: =IF(V11="",0,V11)*IF(V10="",0,V10) -> 31.32 | W12: =IF(W11="",0,W11)*IF(W10="",0,W10) -> 42.581 | X12: =IF(X11="",0,X11)*IF(X10="",0,X10) -> 68.4
A13: 有公式 | B13: 实际完成的虚假销量 | D13: =IF(SUMIF(螺旋计划款信誉提升明细表!$A$4:$A$500,D$4,螺旋计划款信誉提升明细表!$E$4:$E$500)=0,"",SUMIF(螺旋计划款信誉提升明细表!$A$4:$A$500,D$4,螺旋计划款信誉提升明细表!$E$4:$E$500)) -> 2 | E13: =IF(SUMIF(螺旋计划款信誉提升明细表!$A$4:$A$500,E$4,螺旋计划款信誉提升明细表!$E$4:$E$500)=0,"",SUMIF(螺旋计划款信誉提升明细表!$A$4:$A$500,E$4,螺旋计划款信誉提升明细表!$E$4:$E$500)) -> 3 | F13: =IF(SUMIF(螺旋计划款信誉提升明细表!$A$4:$A$500,F$4,螺旋计划款信誉提升明细表!$E$4:$E$500)=0,"",SUMIF(螺旋计划款信誉提升明细表!$A$4:$A$500,F$4,螺旋计划款信誉提升明细表!$E$4:$E$500)) -> 2 | G13: =IF(SUMIF(螺旋计划款信誉提升明细表!$A$4:$A$500,G$4,螺旋计划款信誉提升明细表!$E$4:$E$500)=0,"",SUMIF(螺旋计划款信誉提升明细表!$A$4:$A$500,G$4,螺旋计划款信誉提升明细表!$E$4:$E$500)) ->  | H13: =IF(SUMIF(螺旋计划款信誉提升明细表!$A$4:$A$500,H$4,螺旋计划款信誉提升明细表!$E$4:$E$500)=0,"",SUMIF(螺旋计划款信誉提升明细表!$A$4:$A$500,H$4,螺旋计划款信誉提升明细表!$E$4:$E$500)) ->  | I13: =IF(SUMIF(螺旋计划款信誉提升明细表!$A$4:$A$500,I$4,螺旋计划款信誉提升明细表!$E$4:$E$500)=0,"",SUMIF(螺旋计划款信誉提升明细表!$A$4:$A$500,I$4,螺旋计划款信誉提升明细表!$E$4:$E$500)) ->  | J13: =IF(SUMIF(螺旋计划款信誉提升明细表!$A$4:$A$500,J$4,螺旋计划款信誉提升明细表!$E$4:$E$500)=0,"",SUMIF(螺旋计划款信誉提升明细表!$A$4:$A$500,J$4,螺旋计划款信誉提升明细表!$E$4:$E$500)) ->  | K13: =IF(SUMIF(螺旋计划款信誉提升明细表!$A$4:$A$500,K$4,螺旋计划款信誉提升明细表!$E$4:$E$500)=0,"",SUMIF(螺旋计划款信誉提升明细表!$A$4:$A$500,K$4,螺旋计划款信誉提升明细表!$E$4:$E$500)) ->  | L13: =IF(SUMIF(螺旋计划款信誉提升明细表!$A$4:$A$500,L$4,螺旋计划款信誉提升明细表!$E$4:$E$500)=0,"",SUMIF(螺旋计划款信誉提升明细表!$A$4:$A$500,L$4,螺旋计划款信誉提升明细表!$E$4:$E$500)) ->  | M13: =IF(SUMIF(螺旋计划款信誉提升明细表!$A$4:$A$500,M$4,螺旋计划款信誉提升明细表!$E$4:$E$500)=0,"",SUMIF(螺旋计划款信誉提升明细表!$A$4:$A$500,M$4,螺旋计划款信誉提升明细表!$E$4:$E$500)) ->  | N13: =IF(SUMIF(螺旋计划款信誉提升明细表!$A$4:$A$500,N$4,螺旋计划款信誉提升明细表!$E$4:$E$500)=0,"",SUMIF(螺旋计划款信誉提升明细表!$A$4:$A$500,N$4,螺旋计划款信誉提升明细表!$E$4:$E$500)) ->  | O13: =IF(SUMIF(螺旋计划款信誉提升明细表!$A$4:$A$500,O$4,螺旋计划款信誉提升明细表!$E$4:$E$500)=0,"",SUMIF(螺旋计划款信誉提升明细表!$A$4:$A$500,O$4,螺旋计划款信誉提升明细表!$E$4:$E$500)) ->  | P13: =IF(SUMIF(螺旋计划款信誉提升明细表!$A$4:$A$500,P$4,螺旋计划款信誉提升明细表!$E$4:$E$500)=0,"",SUMIF(螺旋计划款信誉提升明细表!$A$4:$A$500,P$4,螺旋计划款信誉提升明细表!$E$4:$E$500)) ->  | Q13: =IF(SUMIF(螺旋计划款信誉提升明细表!$A$4:$A$500,Q$4,螺旋计划款信誉提升明细表!$E$4:$E$500)=0,"",SUMIF(螺旋计划款信誉提升明细表!$A$4:$A$500,Q$4,螺旋计划款信誉提升明细表!$E$4:$E$500)) ->  | R13: =IF(SUMIF(螺旋计划款信誉提升明细表!$A$4:$A$500,R$4,螺旋计划款信誉提升明细表!$E$4:$E$500)=0,"",SUMIF(螺旋计划款信誉提升明细表!$A$4:$A$500,R$4,螺旋计划款信誉提升明细表!$E$4:$E$500)) ->  | S13: =IF(SUMIF(螺旋计划款信誉提升明细表!$A$4:$A$500,S$4,螺旋计划款信誉提升明细表!$E$4:$E$500)=0,"",SUMIF(螺旋计划款信誉提升明细表!$A$4:$A$500,S$4,螺旋计划款信誉提升明细表!$E$4:$E$500)) ->  | T13: =IF(SUMIF(螺旋计划款信誉提升明细表!$A$4:$A$500,T$4,螺旋计划款信誉提升明细表!$E$4:$E$500)=0,"",SUMIF(螺旋计划款信誉提升明细表!$A$4:$A$500,T$4,螺旋计划款信誉提升明细表!$E$4:$E$500)) ->  | U13: =IF(SUMIF(螺旋计划款信誉提升明细表!$A$4:$A$500,U$4,螺旋计划款信誉提升明细表!$E$4:$E$500)=0,"",SUMIF(螺旋计划款信誉提升明细表!$A$4:$A$500,U$4,螺旋计划款信誉提升明细表!$E$4:$E$500)) ->  | V13: =IF(SUMIF(螺旋计划款信誉提升明细表!$A$4:$A$500,V$4,螺旋计划款信誉提升明细表!$E$4:$E$500)=0,"",SUMIF(螺旋计划款信誉提升明细表!$A$4:$A$500,V$4,螺旋计划款信誉提升明细表!$E$4:$E$500)) ->  | W13: =IF(SUMIF(螺旋计划款信誉提升明细表!$A$4:$A$500,W$4,螺旋计划款信誉提升明细表!$E$4:$E$500)=0,"",SUMIF(螺旋计划款信誉提升明细表!$A$4:$A$500,W$4,螺旋计划款信誉提升明细表!$E$4:$E$500)) ->  | X13: =IF(SUMIF(螺旋计划款信誉提升明细表!$A$4:$A$500,X$4,螺旋计划款信誉提升明细表!$E$4:$E$500)=0,"",SUMIF(螺旋计划款信誉提升明细表!$A$4:$A$500,X$4,螺旋计划款信誉提升明细表!$E$4:$E$500)) -> 
A14: 有公式 | B14: 实际总流量 | D14: =D6+IF(D10="",0,D10) -> 18 | E14: =E6+IF(E10="",0,E10) -> 40 | F14: =F6+IF(F10="",0,F10) -> 80 | G14: =G6+IF(G10="",0,G10) -> 140 | H14: =H6+IF(H10="",0,H10) -> 228 | I14: =I6+IF(I10="",0,I10) -> 325 | J14: =J6+IF(J10="",0,J10) -> 594 | K14: =K6+IF(K10="",0,K10) -> 160 | L14: =L6+IF(L10="",0,L10) -> 280 | M14: =M6+IF(M10="",0,M10) -> 392 | N14: =N6+IF(N10="",0,N10) -> 468 | O14: =O6+IF(O10="",0,O10) -> 575 | P14: =P6+IF(P10="",0,P10) -> 682 | Q14: =Q6+IF(Q10="",0,Q10) -> 1046 | R14: =R6+IF(R10="",0,R10) -> 425.6 | S14: =S6+IF(S10="",0,S10) -> 702 | T14: =T6+IF(T10="",0,T10) -> 862.5 | U14: =U6+IF(U10="",0,U10) -> 1074.1 | V14: =V6+IF(V10="",0,V10) -> 1276 | W14: =W6+IF(W10="",0,W10) -> 1564.2 | X14: =X6+IF(X10="",0,X10) -> 3120
A15: 有公式 | B15: 实际总销量 | D15: =IF(ISERROR(VALUE(D13)),IF(D7=0,"",D7),D7+D13) -> 2 | E15: =IF(ISERROR(VALUE(E13)),IF(E7=0,"",E7),E7+E13) -> 3 | F15: =IF(ISERROR(VALUE(F13)),IF(F7=0,"",F7),F7+F13) -> 2 | G15: =IF(ISERROR(VALUE(G13)),IF(G7=0,"",G7),G7+G13) -> 1 | H15: =IF(ISERROR(VALUE(H13)),IF(H7=0,"",H7),H7+H13) -> 2 | I15: =IF(ISERROR(VALUE(I13)),IF(I7=0,"",I7),I7+I13) -> 5 | J15: =IF(ISERROR(VALUE(J13)),IF(J7=0,"",J7),J7+J13) -> 8 | K15: =IF(ISERROR(VALUE(K13)),IF(K7=0,"",K7),K7+K13) -> 1 | L15: =IF(ISERROR(VALUE(L13)),IF(L7=0,"",L7),L7+L13) -> 2 | M15: =IF(ISERROR(VALUE(M13)),IF(M7=0,"",M7),M7+M13) -> 4 | N15: =IF(ISERROR(VALUE(N13)),IF(N7=0,"",N7),N7+N13) -> 5 | O15: =IF(ISERROR(VALUE(O13)),IF(O7=0,"",O7),O7+O13) -> 8 | P15: =IF(ISERROR(VALUE(P13)),IF(P7=0,"",P7),P7+P13) -> 13 | Q15: =IF(ISERROR(VALUE(Q13)),IF(Q7=0,"",Q7),Q7+Q13) -> 19 | R15: =IF(ISERROR(VALUE(R13)),IF(R7=0,"",R7),R7+R13) -> 5 | S15: =IF(ISERROR(VALUE(S13)),IF(S7=0,"",S7),S7+S13) -> 9 | T15: =IF(ISERROR(VALUE(T13)),IF(T7=0,"",T7),T7+T13) -> 13 | U15: =IF(ISERROR(VALUE(U13)),IF(U7=0,"",U7),U7+U13) -> 16 | V15: =IF(ISERROR(VALUE(V13)),IF(V7=0,"",V7),V7+V13) -> 20 | W15: =IF(ISERROR(VALUE(W13)),IF(W7=0,"",W7),W7+W13) -> 32 | X15: =IF(ISERROR(VALUE(X13)),IF(X7=0,"",X7),X7+X13) -> 56
A16: 有公式 | B16: 实际总转换率 | D16: =IF(ISERROR(D15/D14),"",D15/D14) -> 0.1111111111 | E16: =IF(ISERROR(E15/E14),"",E15/E14) -> 0.075 | F16: =IF(ISERROR(F15/F14),"",F15/F14) -> 0.025 | G16: =IF(ISERROR(G15/G14),"",G15/G14) -> 0.007142857143 | H16: =IF(ISERROR(H15/H14),"",H15/H14) -> 0.008771929825 | I16: =IF(ISERROR(I15/I14),"",I15/I14) -> 0.01538461538 | J16: =IF(ISERROR(J15/J14),"",J15/J14) -> 0.01346801347 | K16: =IF(ISERROR(K15/K14),"",K15/K14) -> 0.00625 | L16: =IF(ISERROR(L15/L14),"",L15/L14) -> 0.007142857143 | M16: =IF(ISERROR(M15/M14),"",M15/M14) -> 0.01020408163 | N16: =IF(ISERROR(N15/N14),"",N15/N14) -> 0.01068376068 | O16: =IF(ISERROR(O15/O14),"",O15/O14) -> 0.01391304348 | P16: =IF(ISERROR(P15/P14),"",P15/P14) -> 0.01906158358 | Q16: =IF(ISERROR(Q15/Q14),"",Q15/Q14) -> 0.01816443595 | R16: =IF(ISERROR(R15/R14),"",R15/R14) -> 0.0117481203 | S16: =IF(ISERROR(S15/S14),"",S15/S14) -> 0.01282051282 | T16: =IF(ISERROR(T15/T14),"",T15/T14) -> 0.01507246377 | U16: =IF(ISERROR(U15/U14),"",U15/U14) -> 0.01489619216 | V16: =IF(ISERROR(V15/V14),"",V15/V14) -> 0.01567398119 | W16: =IF(ISERROR(W15/W14),"",W15/W14) -> 0.02045774198 | X16: =IF(ISERROR(X15/X14),"",X15/X14) -> 0.01794871795
A17: 有公式 | B17: 完 成 率 | D17: =IF(ISERROR(IF(D13="",0,D13/IF(0<D12<0.5,0,ROUND(D12,0)))),"",IF(D13="",0,D13/IF(0<D12<0.5,0,ROUND(D12,0)))) -> 2 | E17: =IF(ISERROR(IF(E13="",0,E13/IF(0<E12<0.5,0,ROUND(E12,0)))),"",IF(E13="",0,E13/IF(0<E12<0.5,0,ROUND(E12,0)))) -> 3 | F17: =IF(ISERROR(IF(F13="",0,F13/IF(0<F12<0.5,0,ROUND(F12,0)))),"",IF(F13="",0,F13/IF(0<F12<0.5,0,ROUND(F12,0)))) -> 1 | G17: =IF(ISERROR(IF(G13="",0,G13/IF(0<G12<0.5,0,ROUND(G12,0)))),"",IF(G13="",0,G13/IF(0<G12<0.5,0,ROUND(G12,0)))) -> 0 | H17: =IF(ISERROR(IF(H13="",0,H13/IF(0<H12<0.5,0,ROUND(H12,0)))),"",IF(H13="",0,H13/IF(0<H12<0.5,0,ROUND(H12,0)))) -> 0 | I17: =IF(ISERROR(IF(I13="",0,I13/IF(0<I12<0.5,0,ROUND(I12,0)))),"",IF(I13="",0,I13/IF(0<I12<0.5,0,ROUND(I12,0)))) -> 0 | J17: =IF(ISERROR(IF(J13="",0,J13/IF(0<J12<0.5,0,ROUND(J12,0)))),"",IF(J13="",0,J13/IF(0<J12<0.5,0,ROUND(J12,0)))) -> 0 | K17: =IF(ISERROR(IF(K13="",0,K13/IF(0<K12<0.5,0,ROUND(K12,0)))),"",IF(K13="",0,K13/IF(0<K12<0.5,0,ROUND(K12,0)))) -> 0 | L17: =IF(ISERROR(IF(L13="",0,L13/IF(0<L12<0.5,0,ROUND(L12,0)))),"",IF(L13="",0,L13/IF(0<L12<0.5,0,ROUND(L12,0)))) -> 0 | M17: =IF(ISERROR(IF(M13="",0,M13/IF(0<M12<0.5,0,ROUND(M12,0)))),"",IF(M13="",0,M13/IF(0<M12<0.5,0,ROUND(M12,0)))) -> 0 | N17: =IF(ISERROR(IF(N13="",0,N13/IF(0<N12<0.5,0,ROUND(N12,0)))),"",IF(N13="",0,N13/IF(0<N12<0.5,0,ROUND(N12,0)))) -> 0 | O17: =IF(ISERROR(IF(O13="",0,O13/IF(0<O12<0.5,0,ROUND(O12,0)))),"",IF(O13="",0,O13/IF(0<O12<0.5,0,ROUND(O12,0)))) -> 0 | P17: =IF(ISERROR(IF(P13="",0,P13/IF(0<P12<0.5,0,ROUND(P12,0)))),"",IF(P13="",0,P13/IF(0<P12<0.5,0,ROUND(P12,0)))) -> 0 | Q17: =IF(ISERROR(IF(Q13="",0,Q13/IF(0<Q12<0.5,0,ROUND(Q12,0)))),"",IF(Q13="",0,Q13/IF(0<Q12<0.5,0,ROUND(Q12,0)))) -> 0 | R17: =IF(ISERROR(IF(R13="",0,R13/IF(0<R12<0.5,0,ROUND(R12,0)))),"",IF(R13="",0,R13/IF(0<R12<0.5,0,ROUND(R12,0)))) -> 0 | S17: =IF(ISERROR(IF(S13="",0,S13/IF(0<S12<0.5,0,ROUND(S12,0)))),"",IF(S13="",0,S13/IF(0<S12<0.5,0,ROUND(S12,0)))) -> 0 | T17: =IF(ISERROR(IF(T13="",0,T13/IF(0<T12<0.5,0,ROUND(T12,0)))),"",IF(T13="",0,T13/IF(0<T12<0.5,0,ROUND(T12,0)))) -> 0 | U17: =IF(ISERROR(IF(U13="",0,U13/IF(0<U12<0.5,0,ROUND(U12,0)))),"",IF(U13="",0,U13/IF(0<U12<0.5,0,ROUND(U12,0)))) -> 0 | V17: =IF(ISERROR(IF(V13="",0,V13/IF(0<V12<0.5,0,ROUND(V12,0)))),"",IF(V13="",0,V13/IF(0<V12<0.5,0,ROUND(V12,0)))) -> 0 | W17: =IF(ISERROR(IF(W13="",0,W13/IF(0<W12<0.5,0,ROUND(W12,0)))),"",IF(W13="",0,W13/IF(0<W12<0.5,0,ROUND(W12,0)))) -> 0 | X17: =IF(ISERROR(IF(X13="",0,X13/IF(0<X12<0.5,0,ROUND(X12,0)))),"",IF(X13="",0,X13/IF(0<X12<0.5,0,ROUND(X12,0)))) -> 0
A18: 有公式 | B18: 实际环比 | E18: =IF(ISERROR((E15-D15)/D15),"",(E15-D15)/D15) -> 0.5 | F18: =IF(ISERROR((F15-E15)/E15),"",(F15-E15)/E15) -> -0.3333333333 | G18: =IF(ISERROR((G15-F15)/F15),"",(G15-F15)/F15) -> -0.5 | H18: =IF(ISERROR((H15-G15)/G15),"",(H15-G15)/G15) -> 1 | I18: =IF(ISERROR((I15-H15)/H15),"",(I15-H15)/H15) -> 1.5 | J18: =IF(ISERROR((J15-I15)/I15),"",(J15-I15)/I15) -> 0.6 | K18: =IF(ISERROR((K15-J15)/J15),"",(K15-J15)/J15) -> -0.875 | L18: =IF(ISERROR((L15-K15)/K15),"",(L15-K15)/K15) -> 1 | M18: =IF(ISERROR((M15-L15)/L15),"",(M15-L15)/L15) -> 1 | N18: =IF(ISERROR((N15-M15)/M15),"",(N15-M15)/M15) -> 0.25 | O18: =IF(ISERROR((O15-N15)/N15),"",(O15-N15)/N15) -> 0.6 | P18: =IF(ISERROR((P15-O15)/O15),"",(P15-O15)/O15) -> 0.625 | Q18: =IF(ISERROR((Q15-P15)/P15),"",(Q15-P15)/P15) -> 0.4615384615 | R18: =IF(ISERROR((R15-Q15)/Q15),"",(R15-Q15)/Q15) -> -0.7368421053 | S18: =IF(ISERROR((S15-R15)/R15),"",(S15-R15)/R15) -> 0.8 | T18: =IF(ISERROR((T15-S15)/S15),"",(T15-S15)/S15) -> 0.4444444444 | U18: =IF(ISERROR((U15-T15)/T15),"",(U15-T15)/T15) -> 0.2307692308 | V18: =IF(ISERROR((V15-U15)/U15),"",(V15-U15)/U15) -> 0.25 | W18: =IF(ISERROR((W15-V15)/V15),"",(W15-V15)/V15) -> 0.6 | X18: =IF(ISERROR((X15-W15)/W15),"",(X15-W15)/W15) -> 0.75
A19: 有公式 | B19: 实际同比 | K19: =IF(ISERROR((K15-D15)/D15),"",(K15-D15)/D15) -> -0.5 | L19: =IF(ISERROR((L15-E15)/E15),"",(L15-E15)/E15) -> -0.3333333333 | M19: =IF(ISERROR((M15-F15)/F15),"",(M15-F15)/F15) -> 1 | N19: =IF(ISERROR((N15-G15)/G15),"",(N15-G15)/G15) -> 4 | O19: =IF(ISERROR((O15-H15)/H15),"",(O15-H15)/H15) -> 3 | P19: =IF(ISERROR((P15-I15)/I15),"",(P15-I15)/I15) -> 1.6 | Q19: =IF(ISERROR((Q15-J15)/J15),"",(Q15-J15)/J15) -> 1.375 | R19: =IF(ISERROR((R15-K15)/K15),"",(R15-K15)/K15) -> 4 | S19: =IF(ISERROR((S15-L15)/L15),"",(S15-L15)/L15) -> 3.5 | T19: =IF(ISERROR((T15-M15)/M15),"",(T15-M15)/M15) -> 2.25 | U19: =IF(ISERROR((U15-N15)/N15),"",(U15-N15)/N15) -> 2.2 | V19: =IF(ISERROR((V15-O15)/O15),"",(V15-O15)/O15) -> 1.5 | W19: =IF(ISERROR((W15-P15)/P15),"",(W15-P15)/P15) -> 1.461538462 | X19: =IF(ISERROR((X15-Q15)/Q15),"",(X15-Q15)/Q15) -> 1.947368421

Sheet 螺旋计划款操作效果图表
B49: 2 3 2 1 2 5 8 | G49: 1 2 3 5 8 13 19 | L49: 5 8 13 15 20 30 55
B50: 4 6 4 2 4 10 16 | G50: 2 4 6 10 13 19

Sheet Sheet1
